{"text_format":"1","workbook":"xlsx","n_sheets":10,"sheets":["INTRO","COUNTRY_INFO","DEC","ALB_MBD","PZQ","IVM","IVM+","SUMMARY","SHIPMENT","DATA_POLICY"],"not_rendered":{"charts":0,"images":3,"macros":1,"external_links":0,"defined_names":10,"comments":9,"pivot_tables":0},"unopened":[],"bounds":{"document_bytes":16777216,"sheet_cells":100000,"rows_first":2000,"rows_last":500,"rows_between":2000,"halvings":0,"cell_chars":16384,"cell_head_chars":4096},"cells_cut":0,"cells_raw":0,"read":"whole","date_system":"1900"}

{"sheet":"INTRO","index":0,"n_rows":51,"n_cols":8,"rows_kept":51,"cut":false,"hidden":false,"merged":[[21,1,21,4],[46,1,46,4],[38,1,38,2],[40,1,40,2],[42,1,42,2],[44,1,44,2],[36,1,36,2],[22,2,23,4],[25,2,26,4],[27,1,27,4],[32,1,32,2],[29,1,29,4],[30,1,30,4],[28,2,28,4],[24,1,24,4],[34,1,34,2],[0,1,0,4],[2,1,2,4],[1,1,1,4],[5,1,5,4],[3,1,3,4],[7,2,7,4],[11,1,11,4],[4,1,4,4],[10,2,10,4],[20,2,20,4],[17,1,17,4],[13,1,13,4],[18,2,18,4],[8,2,8,4],[9,2,9,4],[19,1,19,4],[12,1,12,4],[16,1,16,4],[14,1,14,4],[15,1,15,4]]}
[]
[null,"Joint request for selected PC medicines v.4.1"]
[]
[null,"As part of global efforts to accelerate expansion of preventive chemotherapy (PC) for control and elimination of lymphatic filariasis, schistosomiasis and soil-transmitted helminthiases, the World Health Organization (WHO) facilitates the supply of albendazole 400 mg tablets (GSK) to national lymphatic filariasis elimination programmes and national soil-transmitted helminth control programmes; diethylcarbamazine citrate 100 mg tablets (Eisai) to national lymphatic filariasis elimination programmes; mebendazole 500 mg tablets (J&J) for national soil-transmitted helminth control programmes; and praziquantel 600 mg tablets (Merck KGaA)  for school-age children to national schistosomiasis control programmes. WHO also collaborates to supply ivermectin 3 mg tablets (Merck) for onchocerciasis and lymphatic filariasis donation programmes.  \nThis Excel-based tool is designed to assist countries in quantifying the number of tablets of relevant PC medicines required to reach the planned target population and districts for the year of request. Output of the tool is a joint request for PC medicines, which can be printed, signed and submitted to WHO to request these medicines."]
[]
[null,"Structure of the application (worksheets):"]
[]
[null,"INTRO","This worksheet includes guides on how to complete the joint request for selected PC medicines and information about the status of PC for endemic diseases in the country."]
[null,"COUNTRY_INFO","This worksheet includes information about administrative structure of the country, population by age group, status of endemicity for each disease, population requiring PC and planned interventions."]
[null,"DEC, ALB_MBD, PZQ and IVM","These worksheets include information about endemic districts targeted for treatment with specified PC medicines, treatment plan, and number of tablets required and requested. "]
[null,"SUMMARY","This worksheet includes summary of number of tablets requested, information about stock, and date for submission of requested medicines. Before generating the report (run macros) please select the medicine for which the report is needed. Follow the same rule to see the number of people to be treated for the specific disease. \nThis worksheet should be printed and submitted as a joint request for selected PC medicines (see the instruction for submission in the SUMMARY worksheet)."]
[]
[null,"Instruction for data entry"]
[]
[null,"Most of the cells in the above-mentioned worksheets include formula that are calculated automatically according to the treatment policy recommended by WHO for each disease.\nSee the link https://www.who.int/publications/i/item/9789241599993."]
[]
[null,"Please enter your data into the cells according to their colour code:"]
[]
[null,null,"White - cell is not protected. Please enter the value of the requested indicator."]
[]
[null,null,"Yellow - cell is protected and includes name of indicator. No data entry required."]
[]
[null,null,"Orange - cell is not protected and includes a drop-down menu. Please select the value from the drop-down list."]
[]
[]
[null,null,"Green - cell is not protected and includes formula. Please change the value only if your data are different from those that are calculated automatically."]
[]
[]
[null,null,"Blue - cell is protected and includes formula. No data entry required."]
[]
[null,"Country data"]
[]
[null,"COUNTRY",null,null,"MALAWI",null,"MW","MWI"]
[null,null,null,null,5]
[null,"Year for request of the medicine",null,null,2024]
[]
[null,"Is country endemic for lymphatic filariasis (LF)?",null,null,"Endemic but PC is not required"]
[]
[null,"Is country endemic for onchocerciasis (ONCHO)?",null,null,"Endemic"]
[]
[null,"Is country endemic for soil-transmitted helminthiases (STH)?",null,null,"Endemic"]
[]
[null,"Is country endemic for schistosomiasis (SCH)?",null,null,"Endemic"]
[]
[null,"How many administrative units in the country?",null,null,29]
[]
[null,"If demographical data at the second administrative level are not available by age group, please enter the proportion (%) of population by age group in the country. If data are available, please leave these cells blank."]
[null,"1-4 years age","Preschool-age children (PreSAC)",null,0]
[null,"5-14 years age","School-age children (SAC)",null,0.27900000000000003]
[null,"15 years +","Adults",null,0.56840000000000002]
[null,"15-49 years","Women of reproductive age (WRA)"]

{"sheet":"COUNTRY_INFO","index":1,"n_rows":38,"n_cols":35,"rows_kept":38,"cut":false,"hidden":false,"merged":[[3,0,3,2],[3,7,3,10],[3,21,3,24],[5,0,5,2],[3,26,3,29],[5,26,5,29],[5,3,5,6],[5,7,5,10],[5,11,5,20],[5,21,5,24],[6,3,7,3],[6,2,7,2],[6,1,7,1],[6,0,7,0],[6,21,7,21],[6,13,6,16],[6,11,7,11],[6,12,7,12],[6,7,7,7],[6,8,7,8],[6,9,7,9],[6,10,7,10],[6,6,7,6],[6,5,7,5],[6,4,7,4],[6,28,7,28],[6,29,7,29],[6,17,6,20],[6,25,7,25],[6,22,7,22],[6,23,7,23],[6,24,7,24],[6,26,7,26],[6,27,7,27]]}
["COUNTRY INFORMATION"]
["Administrative structure, population by age group, status of endemicity and planned interventions"]
[]
["TOTAL",null,null,{"$f":"SUBTOTAL(9,D$10:D$1010)","v":20122734.423999999},{"$f":"SUBTOTAL(9,E$10:E$1010)","v":0},5614245,11437761,null,null,null,null,{"$f":"SUBTOTAL(9,L$10:L$1010)","v":0},3050992,0,2459358,0,2459358,1075377,3348548,6821922,11245847]
[]
["Country administrative structure",null,null,"Population",null,null,null,"Endemicity",null,null,null,"Population requiring PC",null,null,null,null,null,null,null,null,null,"Number of treatment rounds planned for the year",null,null,null,"Criteria to apply for \nIVM+DEC+ALB therapy","Epidemiological surveys planned for the year"]
["Country","Province/State","District","Total","PreSAC","SAC","Adults","LF","Oncho","STH","SCH","LF","ONCHO","STH",null,null,null,"SCH",null,null,null,"LF","Oncho","STH","SCH","LF","LF","Oncho","STH","SCH"]
[null,null,null,null,null,null,null,null,null,null,null,null,null,"PreSAC","SAC","WRA","TOTAL","PreSAC","SAC","Adults","TOTAL",null,null,null,null,null,null,null,null,null,null,null,null,"IU_ID","IU_Name"]
[]
[{"$f":"IF(INTRO!$E$33<>0,INTRO!$E$33, \" \")","v":"MALAWI"},"North","Chitipa",270419.14199999999,{"$f":"IF(INTRO!$E$48=\"\",\"\",ROUND($D10*INTRO!$E$48,0))","v":0},{"$f":"IF(INTRO!$E$49=\"\",\"\",ROUND($D10*INTRO!$E$49,0))","v":75447},{"$f":"IF(INTRO!$E$50=\"\",\"\",ROUND($D10*INTRO!$E$50,0))","v":153706},null,0,1,2,{"$f":"IF(INTRO!$E$37=\"Endemic\",IF($H10>0,IF($H10=4,\"Unknown\",IF($H10=99,\"Stopped\",$D10)),0),\"Not required\")","v":"Not required"},{"$f":"IF(INTRO!$E$39=\"Endemic\", IF($I10>0, IF($I10=4,\"Unknown\",IF($I10=99,\"Stopped\",$D10)), 0),\"Not required\")","v":0},{"$f":"IF(INTRO!$E$41=\"Endemic\", IF($J10>1, IF($J10=4, \"Unknown\", IF($J10=99, \"Surveillance\", E10)), 0),\"Not required\")","v":0},{"$f":"IF(INTRO!$E$41=\"Endemic\", IF($J10>1, IF($J10=4, \"Unknown\", IF($J10=99, \"Surveillance\", F10)), 0),\"Not required\")","v":0},{"$f":"IF(INTRO!$E$41=\"Endemic\", IF($J10>1, IF($J10=4, \"Unknown\", IF($J10=99, \"Surveillance\", ROUND(D10*INTRO!$E$51,0))), 0),\"Not required\")","v":0},{"$f":"IF(INTRO!$E$41=\"Endemic\", IF($J10>1, IF($J10=4, \"Unknown\", IF($J10=99, \"Surveillance\", SUM($N10:$P10))), 0),\"Not required\")","v":0},15176,47259,96278,158713,null,0,0,1,null,null,null,"Yes",null,null,null,null,28948,"Chitipa"]
[{"$f":"IF(INTRO!$E$33<>0,INTRO!$E$33, \" \")","v":"MALAWI"},"North","Karonga",420175.68599999999,{"$f":"IF(INTRO!$E$48=\"\",\"\",ROUND($D11*INTRO!$E$48,0))","v":0},{"$f":"IF(INTRO!$E$49=\"\",\"\",ROUND($D11*INTRO!$E$49,0))","v":117229},{"$f":"IF(INTRO!$E$50=\"\",\"\",ROUND($D11*INTRO!$E$50,0))","v":238828},null,0,0,2,{"$f":"IF(INTRO!$E$37=\"Endemic\",IF($H11>0,IF($H11=4,\"Unknown\",IF($H11=99,\"Stopped\",$D11)),0),\"Not required\")","v":"Not required"},{"$f":"IF(INTRO!$E$39=\"Endemic\", IF($I11>0, IF($I11=4,\"Unknown\",IF($I11=99,\"Stopped\",$D11)), 0),\"Not required\")","v":0},{"$f":"IF(INTRO!$E$41=\"Endemic\", IF($J11>1, IF($J11=4, \"Unknown\", IF($J11=99, \"Surveillance\", E11)), 0),\"Not required\")","v":0},{"$f":"IF(INTRO!$E$41=\"Endemic\", IF($J11>1, IF($J11=4, \"Unknown\", IF($J11=99, \"Surveillance\", F11)), 0),\"Not required\")","v":0},{"$f":"IF(INTRO!$E$41=\"Endemic\", IF($J11>1, IF($J11=4, \"Unknown\", IF($J11=99, \"Surveillance\", ROUND(D11*INTRO!$E$51,0))), 0),\"Not required\")","v":0},{"$f":"IF(INTRO!$E$41=\"Endemic\", IF($J11>1, IF($J11=4, \"Unknown\", IF($J11=99, \"Surveillance\", SUM($N11:$P11))), 0),\"Not required\")","v":0},18111,56393,114888,189392,null,0,0,1,null,null,null,null,null,null,null,null,28951,"Karonga"]
[{"$f":"IF(INTRO!$E$33<>0,INTRO!$E$33, \" \")","v":"MALAWI"},"North","Rumphi",263783.12099999998,{"$f":"IF(INTRO!$E$48=\"\",\"\",ROUND($D12*INTRO!$E$48,0))","v":0},{"$f":"IF(INTRO!$E$49=\"\",\"\",ROUND($D12*INTRO!$E$49,0))","v":73595},{"$f":"IF(INTRO!$E$50=\"\",\"\",ROUND($D12*INTRO!$E$50,0))","v":149934},null,0,1,2,{"$f":"IF(INTRO!$E$37=\"Endemic\",IF($H12>0,IF($H12=4,\"Unknown\",IF($H12=99,\"Stopped\",$D12)),0),\"Not required\")","v":"Not required"},{"$f":"IF(INTRO!$E$39=\"Endemic\", IF($I12>0, IF($I12=4,\"Unknown\",IF($I12=99,\"Stopped\",$D12)), 0),\"Not required\")","v":0},{"$f":"IF(INTRO!$E$41=\"Endemic\", IF($J12>1, IF($J12=4, \"Unknown\", IF($J12=99, \"Surveillance\", E12)), 0),\"Not required\")","v":0},{"$f":"IF(INTRO!$E$41=\"Endemic\", IF($J12>1, IF($J12=4, \"Unknown\", IF($J12=99, \"Surveillance\", F12)), 0),\"Not required\")","v":0},{"$f":"IF(INTRO!$E$41=\"Endemic\", IF($J12>1, IF($J12=4, \"Unknown\", IF($J12=99, \"Surveillance\", ROUND(D12*INTRO!$E$51,0))), 0),\"Not required\")","v":0},{"$f":"IF(INTRO!$E$41=\"Endemic\", IF($J12>1, IF($J12=4, \"Unknown\", IF($J12=99, \"Surveillance\", SUM($N12:$P12))), 0),\"Not required\")","v":0},3835,11943,24332,40110,null,0,0,1,null,null,null,"Yes",null,null,null,null,28968,"Rumphi"]
[{"$f":"IF(INTRO!$E$33<>0,INTRO!$E$33, \" \")","v":"MALAWI"},"North","Mzimba North",1082226.054,{"$f":"IF(INTRO!$E$48=\"\",\"\",ROUND($D13*INTRO!$E$48,0))","v":0},{"$f":"IF(INTRO!$E$49=\"\",\"\",ROUND($D13*INTRO!$E$49,0))","v":301941},{"$f":"IF(INTRO!$E$50=\"\",\"\",ROUND($D13*INTRO!$E$50,0))","v":615137},null,0,11,2,{"$f":"IF(INTRO!$E$37=\"Endemic\",IF($H13>0,IF($H13=4,\"Unknown\",IF($H13=99,\"Stopped\",$D13)),0),\"Not required\")","v":"Not required"},{"$f":"IF(INTRO!$E$39=\"Endemic\", IF($I13>0, IF($I13=4,\"Unknown\",IF($I13=99,\"Stopped\",$D13)), 0),\"Not required\")","v":0},{"$f":"IF(INTRO!$E$41=\"Endemic\", IF($J13>1, IF($J13=4, \"Unknown\", IF($J13=99, \"Surveillance\", E13)), 0),\"Not required\")","v":0},{"$f":"IF(INTRO!$E$41=\"Endemic\", IF($J13>1, IF($J13=4, \"Unknown\", IF($J13=99, \"Surveillance\", F13)), 0),\"Not required\")","v":301941},{"$f":"IF(INTRO!$E$41=\"Endemic\", IF($J13>1, IF($J13=4, \"Unknown\", IF($J13=99, \"Surveillance\", ROUND(D13*INTRO!$E$51,0))), 0),\"Not required\")","v":0},{"$f":"IF(INTRO!$E$41=\"Endemic\", IF($J13>1, IF($J13=4, \"Unknown\", IF($J13=99, \"Surveillance\", SUM($N13:$P13))), 0),\"Not required\")","v":301941},48246,150232,306067,504545,null,0,1,1,null,null,null,null,null,null,null,null,28972,"Mzimba North"]
[{"$f":"IF(INTRO!$E$33<>0,INTRO!$E$33, \" \")","v":"MALAWI"},"North","Mzimba South",254701.16699999999,{"$f":"IF(INTRO!$E$48=\"\",\"\",ROUND($D14*INTRO!$E$48,0))","v":0},{"$f":"IF(INTRO!$E$49=\"\",\"\",ROUND($D14*INTRO!$E$49,0))","v":71062},{"$f":"IF(INTRO!$E$50=\"\",\"\",ROUND($D14*INTRO!$E$50,0))","v":144772},null,0,11,2,{"$f":"IF(INTRO!$E$37=\"Endemic\",IF($H14>0,IF($H14=4,\"Unknown\",IF($H14=99,\"Stopped\",$D14)),0),\"Not required\")","v":"Not required"},{"$f":"IF(INTRO!$E$39=\"Endemic\", IF($I14>0, IF($I14=4,\"Unknown\",IF($I14=99,\"Stopped\",$D14)), 0),\"Not required\")","v":0},{"$f":"IF(INTRO!$E$41=\"Endemic\", IF($J14>1, IF($J14=4, \"Unknown\", IF($J14=99, \"Surveillance\", E14)), 0),\"Not required\")","v":0},{"$f":"IF(INTRO!$E$41=\"Endemic\", IF($J14>1, IF($J14=4, \"Unknown\", IF($J14=99, \"Surveillance\", F14)), 0),\"Not required\")","v":71062},{"$f":"IF(INTRO!$E$41=\"Endemic\", IF($J14>1, IF($J14=4, \"Unknown\", IF($J14=99, \"Surveillance\", ROUND(D14*INTRO!$E$51,0))), 0),\"Not required\")","v":0},{"$f":"IF(INTRO!$E$41=\"Endemic\", IF($J14>1, IF($J14=4, \"Unknown\", IF($J14=99, \"Surveillance\", SUM($N14:$P14))), 0),\"Not required\")","v":71062},11352,35349,72016,118717,null,0,1,1,null,null,null,null,null,null,null,null,28973,"Mzimba South"]
[{"$f":"IF(INTRO!$E$33<>0,INTRO!$E$33, \" \")","v":"MALAWI"},"North","Nkhata bay",327690.19500000001,{"$f":"IF(INTRO!$E$48=\"\",\"\",ROUND($D15*INTRO!$E$48,0))","v":0},{"$f":"IF(INTRO!$E$49=\"\",\"\",ROUND($D15*INTRO!$E$49,0))","v":91426},{"$f":"IF(INTRO!$E$50=\"\",\"\",ROUND($D15*INTRO!$E$50,0))","v":186259},null,0,11,2,{"$f":"IF(INTRO!$E$37=\"Endemic\",IF($H15>0,IF($H15=4,\"Unknown\",IF($H15=99,\"Stopped\",$D15)),0),\"Not required\")","v":"Not required"},{"$f":"IF(INTRO!$E$39=\"Endemic\", IF($I15>0, IF($I15=4,\"Unknown\",IF($I15=99,\"Stopped\",$D15)), 0),\"Not required\")","v":0},{"$f":"IF(INTRO!$E$41=\"Endemic\", IF($J15>1, IF($J15=4, \"Unknown\", IF($J15=99, \"Surveillance\", E15)), 0),\"Not required\")","v":0},{"$f":"IF(INTRO!$E$41=\"Endemic\", IF($J15>1, IF($J15=4, \"Unknown\", IF($J15=99, \"Surveillance\", F15)), 0),\"Not required\")","v":91426},{"$f":"IF(INTRO!$E$41=\"Endemic\", IF($J15>1, IF($J15=4, \"Unknown\", IF($J15=99, \"Surveillance\", ROUND(D15*INTRO!$E$51,0))), 0),\"Not required\")","v":0},{"$f":"IF(INTRO!$E$41=\"Endemic\", IF($J15>1, IF($J15=4, \"Unknown\", IF($J15=99, \"Surveillance\", SUM($N15:$P15))), 0),\"Not required\")","v":91426},17985,55997,114084,188066,null,0,1,1,null,null,null,null,null,null,null,null,28962,"Nkhatabay"]
[{"$f":"IF(INTRO!$E$33<>0,INTRO!$E$33, \" \")","v":"MALAWI"},"North","Likoma",16722.278999999999,{"$f":"IF(INTRO!$E$48=\"\",\"\",ROUND($D16*INTRO!$E$48,0))","v":0},{"$f":"IF(INTRO!$E$49=\"\",\"\",ROUND($D16*INTRO!$E$49,0))","v":4666},{"$f":"IF(INTRO!$E$50=\"\",\"\",ROUND($D16*INTRO!$E$50,0))","v":9505},null,0,1,2,{"$f":"IF(INTRO!$E$37=\"Endemic\",IF($H16>0,IF($H16=4,\"Unknown\",IF($H16=99,\"Stopped\",$D16)),0),\"Not required\")","v":"Not required"},{"$f":"IF(INTRO!$E$39=\"Endemic\", IF($I16>0, IF($I16=4,\"Unknown\",IF($I16=99,\"Stopped\",$D16)), 0),\"Not required\")","v":0},{"$f":"IF(INTRO!$E$41=\"Endemic\", IF($J16>1, IF($J16=4, \"Unknown\", IF($J16=99, \"Surveillance\", E16)), 0),\"Not required\")","v":0},{"$f":"IF(INTRO!$E$41=\"Endemic\", IF($J16>1, IF($J16=4, \"Unknown\", IF($J16=99, \"Surveillance\", F16)), 0),\"Not required\")","v":0},{"$f":"IF(INTRO!$E$41=\"Endemic\", IF($J16>1, IF($J16=4, \"Unknown\", IF($J16=99, \"Surveillance\", ROUND(D16*INTRO!$E$51,0))), 0),\"Not required\")","v":0},{"$f":"IF(INTRO!$E$41=\"Endemic\", IF($J16>1, IF($J16=4, \"Unknown\", IF($J16=99, \"Surveillance\", SUM($N16:$P16))), 0),\"Not required\")","v":0},1357,4224,8606,14187,null,0,0,1,null,null,null,"Yes",null,null,null,null,28953,"Likoma"]
[{"$f":"IF(INTRO!$E$33<>0,INTRO!$E$33, \" \")","v":"MALAWI"},"Central","Kasungu",970304.81099999999,{"$f":"IF(INTRO!$E$48=\"\",\"\",ROUND($D17*INTRO!$E$48,0))","v":0},{"$f":"IF(INTRO!$E$49=\"\",\"\",ROUND($D17*INTRO!$E$49,0))","v":270715},{"$f":"IF(INTRO!$E$50=\"\",\"\",ROUND($D17*INTRO!$E$50,0))","v":551521},null,0,1,2,{"$f":"IF(INTRO!$E$37=\"Endemic\",IF($H17>0,IF($H17=4,\"Unknown\",IF($H17=99,\"Stopped\",$D17)),0),\"Not required\")","v":"Not required"},{"$f":"IF(INTRO!$E$39=\"Endemic\", IF($I17>0, IF($I17=4,\"Unknown\",IF($I17=99,\"Stopped\",$D17)), 0),\"Not required\")","v":0},{"$f":"IF(INTRO!$E$41=\"Endemic\", IF($J17>1, IF($J17=4, \"Unknown\", IF($J17=99, \"Surveillance\", E17)), 0),\"Not required\")","v":0},{"$f":"IF(INTRO!$E$41=\"Endemic\", IF($J17>1, IF($J17=4, \"Unknown\", IF($J17=99, \"Surveillance\", F17)), 0),\"Not required\")","v":0},{"$f":"IF(INTRO!$E$41=\"Endemic\", IF($J17>1, IF($J17=4, \"Unknown\", IF($J17=99, \"Surveillance\", ROUND(D17*INTRO!$E$51,0))), 0),\"Not required\")","v":0},{"$f":"IF(INTRO!$E$41=\"Endemic\", IF($J17>1, IF($J17=4, \"Unknown\", IF($J17=99, \"Surveillance\", SUM($N17:$P17))), 0),\"Not required\")","v":0},56826,176946,360489,594261,null,0,0,1,null,null,null,"Yes",null,null,null,null,28952,"Kasungu"]
[{"$f":"IF(INTRO!$E$33<>0,INTRO!$E$33, \" \")","v":"MALAWI"},"Central","Dedza",955984.21799999999,{"$f":"IF(INTRO!$E$48=\"\",\"\",ROUND($D18*INTRO!$E$48,0))","v":0},{"$f":"IF(INTRO!$E$49=\"\",\"\",ROUND($D18*INTRO!$E$49,0))","v":266720},{"$f":"IF(INTRO!$E$50=\"\",\"\",ROUND($D18*INTRO!$E$50,0))","v":543381},null,0,0,2,{"$f":"IF(INTRO!$E$37=\"Endemic\",IF($H18>0,IF($H18=4,\"Unknown\",IF($H18=99,\"Stopped\",$D18)),0),\"Not required\")","v":"Not required"},{"$f":"IF(INTRO!$E$39=\"Endemic\", IF($I18>0, IF($I18=4,\"Unknown\",IF($I18=99,\"Stopped\",$D18)), 0),\"Not required\")","v":0},{"$f":"IF(INTRO!$E$41=\"Endemic\", IF($J18>1, IF($J18=4, \"Unknown\", IF($J18=99, \"Surveillance\", E18)), 0),\"Not required\")","v":0},{"$f":"IF(INTRO!$E$41=\"Endemic\", IF($J18>1, IF($J18=4, \"Unknown\", IF($J18=99, \"Surveillance\", F18)), 0),\"Not required\")","v":0},{"$f":"IF(INTRO!$E$41=\"Endemic\", IF($J18>1, IF($J18=4, \"Unknown\", IF($J18=99, \"Surveillance\", ROUND(D18*INTRO!$E$51,0))), 0),\"Not required\")","v":0},{"$f":"IF(INTRO!$E$41=\"Endemic\", IF($J18>1, IF($J18=4, \"Unknown\", IF($J18=99, \"Surveillance\", SUM($N18:$P18))), 0),\"Not required\")","v":0},52942,164853,335852,553647,null,0,0,1,null,null,null,null,null,null,null,null,28949,"Dedza"]
[{"$f":"IF(INTRO!$E$33<>0,INTRO!$E$33, \" \")","v":"MALAWI"},"Central","Dowa",889288.554,{"$f":"IF(INTRO!$E$48=\"\",\"\",ROUND($D19*INTRO!$E$48,0))","v":0},{"$f":"IF(INTRO!$E$49=\"\",\"\",ROUND($D19*INTRO!$E$49,0))","v":248112},{"$f":"IF(INTRO!$E$50=\"\",\"\",ROUND($D19*INTRO!$E$50,0))","v":505472},null,0,1,2,{"$f":"IF(INTRO!$E$37=\"Endemic\",IF($H19>0,IF($H19=4,\"Unknown\",IF($H19=99,\"Stopped\",$D19)),0),\"Not required\")","v":"Not required"},{"$f":"IF(INTRO!$E$39=\"Endemic\", IF($I19>0, IF($I19=4,\"Unknown\",IF($I19=99,\"Stopped\",$D19)), 0),\"Not required\")","v":0},{"$f":"IF(INTRO!$E$41=\"Endemic\", IF($J19>1, IF($J19=4, \"Unknown\", IF($J19=99, \"Surveillance\", E19)), 0),\"Not required\")","v":0},{"$f":"IF(INTRO!$E$41=\"Endemic\", IF($J19>1, IF($J19=4, \"Unknown\", IF($J19=99, \"Surveillance\", F19)), 0),\"Not required\")","v":0},{"$f":"IF(INTRO!$E$41=\"Endemic\", IF($J19>1, IF($J19=4, \"Unknown\", IF($J19=99, \"Surveillance\", ROUND(D19*INTRO!$E$51,0))), 0),\"Not required\")","v":0},{"$f":"IF(INTRO!$E$41=\"Endemic\", IF($J19>1, IF($J19=4, \"Unknown\", IF($J19=99, \"Surveillance\", SUM($N19:$P19))), 0),\"Not required\")","v":0},10859,33812,68885,113556,null,0,0,1,null,null,null,"Yes",null,null,null,null,28950,"Dowa"]
[{"$f":"IF(INTRO!$E$33<>0,INTRO!$E$33, \" \")","v":"MALAWI"},"Central","Lilongwe",3023770.0079999999,{"$f":"IF(INTRO!$E$48=\"\",\"\",ROUND($D20*INTRO!$E$48,0))","v":0},{"$f":"IF(INTRO!$E$49=\"\",\"\",ROUND($D20*INTRO!$E$49,0))","v":843632},{"$f":"IF(INTRO!$E$50=\"\",\"\",ROUND($D20*INTRO!$E$50,0))","v":1718711},null,0,11,3,{"$f":"IF(INTRO!$E$37=\"Endemic\",IF($H20>0,IF($H20=4,\"Unknown\",IF($H20=99,\"Stopped\",$D20)),0),\"Not required\")","v":"Not required"},{"$f":"IF(INTRO!$E$39=\"Endemic\", IF($I20>0, IF($I20=4,\"Unknown\",IF($I20=99,\"Stopped\",$D20)), 0),\"Not required\")","v":0},{"$f":"IF(INTRO!$E$41=\"Endemic\", IF($J20>1, IF($J20=4, \"Unknown\", IF($J20=99, \"Surveillance\", E20)), 0),\"Not required\")","v":0},{"$f":"IF(INTRO!$E$41=\"Endemic\", IF($J20>1, IF($J20=4, \"Unknown\", IF($J20=99, \"Surveillance\", F20)), 0),\"Not required\")","v":843632},{"$f":"IF(INTRO!$E$41=\"Endemic\", IF($J20>1, IF($J20=4, \"Unknown\", IF($J20=99, \"Surveillance\", ROUND(D20*INTRO!$E$51,0))), 0),\"Not required\")","v":0},{"$f":"IF(INTRO!$E$41=\"Endemic\", IF($J20>1, IF($J20=4, \"Unknown\", IF($J20=99, \"Surveillance\", SUM($N20:$P20))), 0),\"Not required\")","v":843632},140987,439008,894379,1474374,null,0,1,1,null,null,null,null,null,null,null,null,28954,"Lilongwe"]
[{"$f":"IF(INTRO!$E$33<>0,INTRO!$E$33, \" \")","v":"MALAWI"},"Central","Mchinji",693301.098,{"$f":"IF(INTRO!$E$48=\"\",\"\",ROUND($D21*INTRO!$E$48,0))","v":0},{"$f":"IF(INTRO!$E$49=\"\",\"\",ROUND($D21*INTRO!$E$49,0))","v":193431},{"$f":"IF(INTRO!$E$50=\"\",\"\",ROUND($D21*INTRO!$E$50,0))","v":394072},null,0,1,2,{"$f":"IF(INTRO!$E$37=\"Endemic\",IF($H21>0,IF($H21=4,\"Unknown\",IF($H21=99,\"Stopped\",$D21)),0),\"Not required\")","v":"Not required"},{"$f":"IF(INTRO!$E$39=\"Endemic\", IF($I21>0, IF($I21=4,\"Unknown\",IF($I21=99,\"Stopped\",$D21)), 0),\"Not required\")","v":0},{"$f":"IF(INTRO!$E$41=\"Endemic\", IF($J21>1, IF($J21=4, \"Unknown\", IF($J21=99, \"Surveillance\", E21)), 0),\"Not required\")","v":0},{"$f":"IF(INTRO!$E$41=\"Endemic\", IF($J21>1, IF($J21=4, \"Unknown\", IF($J21=99, \"Surveillance\", F21)), 0),\"Not required\")","v":0},{"$f":"IF(INTRO!$E$41=\"Endemic\", IF($J21>1, IF($J21=4, \"Unknown\", IF($J21=99, \"Surveillance\", ROUND(D21*INTRO!$E$51,0))), 0),\"Not required\")","v":0},{"$f":"IF(INTRO!$E$41=\"Endemic\", IF($J21>1, IF($J21=4, \"Unknown\", IF($J21=99, \"Surveillance\", SUM($N21:$P21))), 0),\"Not required\")","v":0},15227,47414,96596,159237,null,0,0,1,null,null,null,"Yes",null,null,null,null,28957,"Mchinji"]
[{"$f":"IF(INTRO!$E$33<>0,INTRO!$E$33, \" \")","v":"MALAWI"},"Central","Salima",550614.81299999997,{"$f":"IF(INTRO!$E$48=\"\",\"\",ROUND($D22*INTRO!$E$48,0))","v":0},{"$f":"IF(INTRO!$E$49=\"\",\"\",ROUND($D22*INTRO!$E$49,0))","v":153622},{"$f":"IF(INTRO!$E$50=\"\",\"\",ROUND($D22*INTRO!$E$50,0))","v":312969},null,0,99,3,{"$f":"IF(INTRO!$E$37=\"Endemic\",IF($H22>0,IF($H22=4,\"Unknown\",IF($H22=99,\"Stopped\",$D22)),0),\"Not required\")","v":"Not required"},{"$f":"IF(INTRO!$E$39=\"Endemic\", IF($I22>0, IF($I22=4,\"Unknown\",IF($I22=99,\"Stopped\",$D22)), 0),\"Not required\")","v":0},{"$f":"IF(INTRO!$E$41=\"Endemic\", IF($J22>1, IF($J22=4, \"Unknown\", IF($J22=99, \"Surveillance\", E22)), 0),\"Not required\")","v":"Surveillance"},{"$f":"IF(INTRO!$E$41=\"Endemic\", IF($J22>1, IF($J22=4, \"Unknown\", IF($J22=99, \"Surveillance\", F22)), 0),\"Not required\")","v":"Surveillance"},{"$f":"IF(INTRO!$E$41=\"Endemic\", IF($J22>1, IF($J22=4, \"Unknown\", IF($J22=99, \"Surveillance\", ROUND(D22*INTRO!$E$51,0))), 0),\"Not required\")","v":"Surveillance"},{"$f":"IF(INTRO!$E$41=\"Endemic\", IF($J22>1, IF($J22=4, \"Unknown\", IF($J22=99, \"Surveillance\", SUM($N22:$P22))), 0),\"Not required\")","v":"Surveillance"},31230,97249,198124,326603,null,0,0,1,null,null,null,null,null,null,null,null,28969,"Salima"]
[{"$f":"IF(INTRO!$E$33<>0,INTRO!$E$33, \" \")","v":"MALAWI"},"Central","Nkhotakota",452462.61900000001,{"$f":"IF(INTRO!$E$48=\"\",\"\",ROUND($D23*INTRO!$E$48,0))","v":0},{"$f":"IF(INTRO!$E$49=\"\",\"\",ROUND($D23*INTRO!$E$49,0))","v":126237},{"$f":"IF(INTRO!$E$50=\"\",\"\",ROUND($D23*INTRO!$E$50,0))","v":257180},null,0,11,3,{"$f":"IF(INTRO!$E$37=\"Endemic\",IF($H23>0,IF($H23=4,\"Unknown\",IF($H23=99,\"Stopped\",$D23)),0),\"Not required\")","v":"Not required"},{"$f":"IF(INTRO!$E$39=\"Endemic\", IF($I23>0, IF($I23=4,\"Unknown\",IF($I23=99,\"Stopped\",$D23)), 0),\"Not required\")","v":0},{"$f":"IF(INTRO!$E$41=\"Endemic\", IF($J23>1, IF($J23=4, \"Unknown\", IF($J23=99, \"Surveillance\", E23)), 0),\"Not required\")","v":0},{"$f":"IF(INTRO!$E$41=\"Endemic\", IF($J23>1, IF($J23=4, \"Unknown\", IF($J23=99, \"Surveillance\", F23)), 0),\"Not required\")","v":126237},{"$f":"IF(INTRO!$E$41=\"Endemic\", IF($J23>1, IF($J23=4, \"Unknown\", IF($J23=99, \"Surveillance\", ROUND(D23*INTRO!$E$51,0))), 0),\"Not required\")","v":0},{"$f":"IF(INTRO!$E$41=\"Endemic\", IF($J23>1, IF($J23=4, \"Unknown\", IF($J23=99, \"Surveillance\", SUM($N23:$P23))), 0),\"Not required\")","v":126237},40378,125732,256149,422259,null,0,1,1,null,null,null,null,null,null,null,null,28963,"Nkhotakota"]
[{"$f":"IF(INTRO!$E$33<>0,INTRO!$E$33, \" \")","v":"MALAWI"},"Central","Ntchisi",364971.89399999997,{"$f":"IF(INTRO!$E$48=\"\",\"\",ROUND($D24*INTRO!$E$48,0))","v":0},{"$f":"IF(INTRO!$E$49=\"\",\"\",ROUND($D24*INTRO!$E$49,0))","v":101827},{"$f":"IF(INTRO!$E$50=\"\",\"\",ROUND($D24*INTRO!$E$50,0))","v":207450},null,0,11,2,{"$f":"IF(INTRO!$E$37=\"Endemic\",IF($H24>0,IF($H24=4,\"Unknown\",IF($H24=99,\"Stopped\",$D24)),0),\"Not required\")","v":"Not required"},{"$f":"IF(INTRO!$E$39=\"Endemic\", IF($I24>0, IF($I24=4,\"Unknown\",IF($I24=99,\"Stopped\",$D24)), 0),\"Not required\")","v":0},{"$f":"IF(INTRO!$E$41=\"Endemic\", IF($J24>1, IF($J24=4, \"Unknown\", IF($J24=99, \"Surveillance\", E24)), 0),\"Not required\")","v":0},{"$f":"IF(INTRO!$E$41=\"Endemic\", IF($J24>1, IF($J24=4, \"Unknown\", IF($J24=99, \"Surveillance\", F24)), 0),\"Not required\")","v":101827},{"$f":"IF(INTRO!$E$41=\"Endemic\", IF($J24>1, IF($J24=4, \"Unknown\", IF($J24=99, \"Surveillance\", ROUND(D24*INTRO!$E$51,0))), 0),\"Not required\")","v":0},{"$f":"IF(INTRO!$E$41=\"Endemic\", IF($J24>1, IF($J24=4, \"Unknown\", IF($J24=99, \"Surveillance\", SUM($N24:$P24))), 0),\"Not required\")","v":101827},15374,47872,97528,160774,null,0,1,1,null,null,null,null,null,null,null,null,28966,"Ntchisi"]
[{"$f":"IF(INTRO!$E$33<>0,INTRO!$E$33, \" \")","v":"MALAWI"},"Central","Ntcheu",759261.027,{"$f":"IF(INTRO!$E$48=\"\",\"\",ROUND($D25*INTRO!$E$48,0))","v":0},{"$f":"IF(INTRO!$E$49=\"\",\"\",ROUND($D25*INTRO!$E$49,0))","v":211834},{"$f":"IF(INTRO!$E$50=\"\",\"\",ROUND($D25*INTRO!$E$50,0))","v":431564},null,1,11,2,{"$f":"IF(INTRO!$E$37=\"Endemic\",IF($H25>0,IF($H25=4,\"Unknown\",IF($H25=99,\"Stopped\",$D25)),0),\"Not required\")","v":"Not required"},214930,{"$f":"IF(INTRO!$E$41=\"Endemic\", IF($J25>1, IF($J25=4, \"Unknown\", IF($J25=99, \"Surveillance\", E25)), 0),\"Not required\")","v":0},{"$f":"IF(INTRO!$E$41=\"Endemic\", IF($J25>1, IF($J25=4, \"Unknown\", IF($J25=99, \"Surveillance\", F25)), 0),\"Not required\")","v":211834},{"$f":"IF(INTRO!$E$41=\"Endemic\", IF($J25>1, IF($J25=4, \"Unknown\", IF($J25=99, \"Surveillance\", ROUND(D25*INTRO!$E$51,0))), 0),\"Not required\")","v":0},{"$f":"IF(INTRO!$E$41=\"Endemic\", IF($J25>1, IF($J25=4, \"Unknown\", IF($J25=99, \"Surveillance\", SUM($N25:$P25))), 0),\"Not required\")","v":211834},19796,61641,125580,207017,null,2,1,1,null,null,null,null,null,null,null,null,28965,"Ntcheu"]
[{"$f":"IF(INTRO!$E$33<>0,INTRO!$E$33, \" \")","v":"MALAWI"},"South","Balaka",504609.25199999998,{"$f":"IF(INTRO!$E$48=\"\",\"\",ROUND($D26*INTRO!$E$48,0))","v":0},{"$f":"IF(INTRO!$E$49=\"\",\"\",ROUND($D26*INTRO!$E$49,0))","v":140786},{"$f":"IF(INTRO!$E$50=\"\",\"\",ROUND($D26*INTRO!$E$50,0))","v":286820},null,0,11,2,{"$f":"IF(INTRO!$E$37=\"Endemic\",IF($H26>0,IF($H26=4,\"Unknown\",IF($H26=99,\"Stopped\",$D26)),0),\"Not required\")","v":"Not required"},{"$f":"IF(INTRO!$E$39=\"Endemic\", IF($I26>0, IF($I26=4,\"Unknown\",IF($I26=99,\"Stopped\",$D26)), 0),\"Not required\")","v":0},{"$f":"IF(INTRO!$E$41=\"Endemic\", IF($J26>1, IF($J26=4, \"Unknown\", IF($J26=99, \"Surveillance\", E26)), 0),\"Not required\")","v":0},{"$f":"IF(INTRO!$E$41=\"Endemic\", IF($J26>1, IF($J26=4, \"Unknown\", IF($J26=99, \"Surveillance\", F26)), 0),\"Not required\")","v":140786},{"$f":"IF(INTRO!$E$41=\"Endemic\", IF($J26>1, IF($J26=4, \"Unknown\", IF($J26=99, \"Surveillance\", ROUND(D26*INTRO!$E$51,0))), 0),\"Not required\")","v":0},{"$f":"IF(INTRO!$E$41=\"Endemic\", IF($J26>1, IF($J26=4, \"Unknown\", IF($J26=99, \"Surveillance\", SUM($N26:$P26))), 0),\"Not required\")","v":140786},7185,22373,45580,75138,null,0,1,1,null,null,null,null,null,null,null,null,28944,"Balaka"]
[{"$f":"IF(INTRO!$E$33<>0,INTRO!$E$33, \" \")","v":"MALAWI"},"South","Chikwawa",649995.63300000003,{"$f":"IF(INTRO!$E$48=\"\",\"\",ROUND($D27*INTRO!$E$48,0))","v":0},{"$f":"IF(INTRO!$E$49=\"\",\"\",ROUND($D27*INTRO!$E$49,0))","v":181349},{"$f":"IF(INTRO!$E$50=\"\",\"\",ROUND($D27*INTRO!$E$50,0))","v":369458},null,1,1,2,{"$f":"IF(INTRO!$E$37=\"Endemic\",IF($H27>0,IF($H27=4,\"Unknown\",IF($H27=99,\"Stopped\",$D27)),0),\"Not required\")","v":"Not required"},139183,{"$f":"IF(INTRO!$E$41=\"Endemic\", IF($J27>1, IF($J27=4, \"Unknown\", IF($J27=99, \"Surveillance\", E27)), 0),\"Not required\")","v":0},{"$f":"IF(INTRO!$E$41=\"Endemic\", IF($J27>1, IF($J27=4, \"Unknown\", IF($J27=99, \"Surveillance\", F27)), 0),\"Not required\")","v":0},{"$f":"IF(INTRO!$E$41=\"Endemic\", IF($J27>1, IF($J27=4, \"Unknown\", IF($J27=99, \"Surveillance\", ROUND(D27*INTRO!$E$51,0))), 0),\"Not required\")","v":0},{"$f":"IF(INTRO!$E$41=\"Endemic\", IF($J27>1, IF($J27=4, \"Unknown\", IF($J27=99, \"Surveillance\", SUM($N27:$P27))), 0),\"Not required\")","v":0},58008,180624,367979,606611,null,1,0,1,null,null,"Yes","Yes",null,null,null,null,28946,"Chikwawa"]
[{"$f":"IF(INTRO!$E$33<>0,INTRO!$E$33, \" \")","v":"MALAWI"},"South","Chiradzulu",410791.20600000001,{"$f":"IF(INTRO!$E$48=\"\",\"\",ROUND($D28*INTRO!$E$48,0))","v":0},{"$f":"IF(INTRO!$E$49=\"\",\"\",ROUND($D28*INTRO!$E$49,0))","v":114611},{"$f":"IF(INTRO!$E$50=\"\",\"\",ROUND($D28*INTRO!$E$50,0))","v":233494},null,1,11,2,{"$f":"IF(INTRO!$E$37=\"Endemic\",IF($H28>0,IF($H28=4,\"Unknown\",IF($H28=99,\"Stopped\",$D28)),0),\"Not required\")","v":"Not required"},224426,{"$f":"IF(INTRO!$E$41=\"Endemic\", IF($J28>1, IF($J28=4, \"Unknown\", IF($J28=99, \"Surveillance\", E28)), 0),\"Not required\")","v":0},{"$f":"IF(INTRO!$E$41=\"Endemic\", IF($J28>1, IF($J28=4, \"Unknown\", IF($J28=99, \"Surveillance\", F28)), 0),\"Not required\")","v":114611},{"$f":"IF(INTRO!$E$41=\"Endemic\", IF($J28>1, IF($J28=4, \"Unknown\", IF($J28=99, \"Surveillance\", ROUND(D28*INTRO!$E$51,0))), 0),\"Not required\")","v":0},{"$f":"IF(INTRO!$E$41=\"Endemic\", IF($J28>1, IF($J28=4, \"Unknown\", IF($J28=99, \"Surveillance\", SUM($N28:$P28))), 0),\"Not required\")","v":114611},21452,66800,136088,224340,null,1,1,1,null,null,"Yes",null,null,null,null,null,28947,"Chiradzulu"]
[{"$f":"IF(INTRO!$E$33<>0,INTRO!$E$33, \" \")","v":"MALAWI"},"South","Machinga",846548.01,{"$f":"IF(INTRO!$E$48=\"\",\"\",ROUND($D29*INTRO!$E$48,0))","v":0},{"$f":"IF(INTRO!$E$49=\"\",\"\",ROUND($D29*INTRO!$E$49,0))","v":236187},{"$f":"IF(INTRO!$E$50=\"\",\"\",ROUND($D29*INTRO!$E$50,0))","v":481178},null,0,1,2,{"$f":"IF(INTRO!$E$37=\"Endemic\",IF($H29>0,IF($H29=4,\"Unknown\",IF($H29=99,\"Stopped\",$D29)),0),\"Not required\")","v":"Not required"},{"$f":"IF(INTRO!$E$39=\"Endemic\", IF($I29>0, IF($I29=4,\"Unknown\",IF($I29=99,\"Stopped\",$D29)), 0),\"Not required\")","v":0},{"$f":"IF(INTRO!$E$41=\"Endemic\", IF($J29>1, IF($J29=4, \"Unknown\", IF($J29=99, \"Surveillance\", E29)), 0),\"Not required\")","v":0},{"$f":"IF(INTRO!$E$41=\"Endemic\", IF($J29>1, IF($J29=4, \"Unknown\", IF($J29=99, \"Surveillance\", F29)), 0),\"Not required\")","v":0},{"$f":"IF(INTRO!$E$41=\"Endemic\", IF($J29>1, IF($J29=4, \"Unknown\", IF($J29=99, \"Surveillance\", ROUND(D29*INTRO!$E$51,0))), 0),\"Not required\")","v":0},{"$f":"IF(INTRO!$E$41=\"Endemic\", IF($J29>1, IF($J29=4, \"Unknown\", IF($J29=99, \"Surveillance\", SUM($N29:$P29))), 0),\"Not required\")","v":0},75546,235242,479253,790041,null,0,0,1,null,null,null,"Yes",null,null,null,null,28955,"Machinga"]
[{"$f":"IF(INTRO!$E$33<>0,INTRO!$E$33, \" \")","v":"MALAWI"},"South","Blantyre",1440557.811,{"$f":"IF(INTRO!$E$48=\"\",\"\",ROUND($D30*INTRO!$E$48,0))","v":0},{"$f":"IF(INTRO!$E$49=\"\",\"\",ROUND($D30*INTRO!$E$49,0))","v":401916},{"$f":"IF(INTRO!$E$50=\"\",\"\",ROUND($D30*INTRO!$E$50,0))","v":818813},null,1,11,2,{"$f":"IF(INTRO!$E$37=\"Endemic\",IF($H30>0,IF($H30=4,\"Unknown\",IF($H30=99,\"Stopped\",$D30)),0),\"Not required\")","v":"Not required"},555704,{"$f":"IF(INTRO!$E$41=\"Endemic\", IF($J30>1, IF($J30=4, \"Unknown\", IF($J30=99, \"Surveillance\", E30)), 0),\"Not required\")","v":0},{"$f":"IF(INTRO!$E$41=\"Endemic\", IF($J30>1, IF($J30=4, \"Unknown\", IF($J30=99, \"Surveillance\", F30)), 0),\"Not required\")","v":401916},{"$f":"IF(INTRO!$E$41=\"Endemic\", IF($J30>1, IF($J30=4, \"Unknown\", IF($J30=99, \"Surveillance\", ROUND(D30*INTRO!$E$51,0))), 0),\"Not required\")","v":0},{"$f":"IF(INTRO!$E$41=\"Endemic\", IF($J30>1, IF($J30=4, \"Unknown\", IF($J30=99, \"Surveillance\", SUM($N30:$P30))), 0),\"Not required\")","v":401916},39737,123735,252082,415554,null,1,1,1,null,null,"Yes",null,null,null,null,null,28945,"Blantyre"]
[{"$f":"IF(INTRO!$E$33<>0,INTRO!$E$33, \" \")","v":"MALAWI"},"South","Mangochi",1322141.52,{"$f":"IF(INTRO!$E$48=\"\",\"\",ROUND($D31*INTRO!$E$48,0))","v":0},{"$f":"IF(INTRO!$E$49=\"\",\"\",ROUND($D31*INTRO!$E$49,0))","v":368877},{"$f":"IF(INTRO!$E$50=\"\",\"\",ROUND($D31*INTRO!$E$50,0))","v":751505},null,0,99,3,{"$f":"IF(INTRO!$E$37=\"Endemic\",IF($H31>0,IF($H31=4,\"Unknown\",IF($H31=99,\"Stopped\",$D31)),0),\"Not required\")","v":"Not required"},{"$f":"IF(INTRO!$E$39=\"Endemic\", IF($I31>0, IF($I31=4,\"Unknown\",IF($I31=99,\"Stopped\",$D31)), 0),\"Not required\")","v":0},{"$f":"IF(INTRO!$E$41=\"Endemic\", IF($J31>1, IF($J31=4, \"Unknown\", IF($J31=99, \"Surveillance\", E31)), 0),\"Not required\")","v":"Surveillance"},{"$f":"IF(INTRO!$E$41=\"Endemic\", IF($J31>1, IF($J31=4, \"Unknown\", IF($J31=99, \"Surveillance\", F31)), 0),\"Not required\")","v":"Surveillance"},{"$f":"IF(INTRO!$E$41=\"Endemic\", IF($J31>1, IF($J31=4, \"Unknown\", IF($J31=99, \"Surveillance\", ROUND(D31*INTRO!$E$51,0))), 0),\"Not required\")","v":"Surveillance"},{"$f":"IF(INTRO!$E$41=\"Endemic\", IF($J31>1, IF($J31=4, \"Unknown\", IF($J31=99, \"Surveillance\", SUM($N31:$P31))), 0),\"Not required\")","v":"Surveillance"},107420,334492,681454,1123366,null,0,0,1,null,null,null,null,null,null,null,null,28956,"Mangochi"]
[{"$f":"IF(INTRO!$E$33<>0,INTRO!$E$33, \" \")","v":"MALAWI"},"South","Mulanje",787460.772,{"$f":"IF(INTRO!$E$48=\"\",\"\",ROUND($D32*INTRO!$E$48,0))","v":0},{"$f":"IF(INTRO!$E$49=\"\",\"\",ROUND($D32*INTRO!$E$49,0))","v":219702},{"$f":"IF(INTRO!$E$50=\"\",\"\",ROUND($D32*INTRO!$E$50,0))","v":447593},null,1,1,2,{"$f":"IF(INTRO!$E$37=\"Endemic\",IF($H32>0,IF($H32=4,\"Unknown\",IF($H32=99,\"Stopped\",$D32)),0),\"Not required\")","v":"Not required"},590458,{"$f":"IF(INTRO!$E$41=\"Endemic\", IF($J32>1, IF($J32=4, \"Unknown\", IF($J32=99, \"Surveillance\", E32)), 0),\"Not required\")","v":0},{"$f":"IF(INTRO!$E$41=\"Endemic\", IF($J32>1, IF($J32=4, \"Unknown\", IF($J32=99, \"Surveillance\", F32)), 0),\"Not required\")","v":0},{"$f":"IF(INTRO!$E$41=\"Endemic\", IF($J32>1, IF($J32=4, \"Unknown\", IF($J32=99, \"Surveillance\", ROUND(D32*INTRO!$E$51,0))), 0),\"Not required\")","v":0},{"$f":"IF(INTRO!$E$41=\"Endemic\", IF($J32>1, IF($J32=4, \"Unknown\", IF($J32=99, \"Surveillance\", SUM($N32:$P32))), 0),\"Not required\")","v":0},65023,202475,412497,679995,null,1,0,1,null,null,"Yes","Yes",null,null,null,null,28958,"Mulanje"]
[{"$f":"IF(INTRO!$E$33<>0,INTRO!$E$33, \" \")","v":"MALAWI"},"South","Nsanje",344366.16899999999,{"$f":"IF(INTRO!$E$48=\"\",\"\",ROUND($D33*INTRO!$E$48,0))","v":0},{"$f":"IF(INTRO!$E$49=\"\",\"\",ROUND($D33*INTRO!$E$49,0))","v":96078},{"$f":"IF(INTRO!$E$50=\"\",\"\",ROUND($D33*INTRO!$E$50,0))","v":195738},null,0,1,3,{"$f":"IF(INTRO!$E$37=\"Endemic\",IF($H33>0,IF($H33=4,\"Unknown\",IF($H33=99,\"Stopped\",$D33)),0),\"Not required\")","v":"Not required"},{"$f":"IF(INTRO!$E$39=\"Endemic\", IF($I33>0, IF($I33=4,\"Unknown\",IF($I33=99,\"Stopped\",$D33)), 0),\"Not required\")","v":0},{"$f":"IF(INTRO!$E$41=\"Endemic\", IF($J33>1, IF($J33=4, \"Unknown\", IF($J33=99, \"Surveillance\", E33)), 0),\"Not required\")","v":0},{"$f":"IF(INTRO!$E$41=\"Endemic\", IF($J33>1, IF($J33=4, \"Unknown\", IF($J33=99, \"Surveillance\", F33)), 0),\"Not required\")","v":0},{"$f":"IF(INTRO!$E$41=\"Endemic\", IF($J33>1, IF($J33=4, \"Unknown\", IF($J33=99, \"Surveillance\", ROUND(D33*INTRO!$E$51,0))), 0),\"Not required\")","v":0},{"$f":"IF(INTRO!$E$41=\"Endemic\", IF($J33>1, IF($J33=4, \"Unknown\", IF($J33=99, \"Surveillance\", SUM($N33:$P33))), 0),\"Not required\")","v":0},29834,92896,189257,311987,null,0,0,1,null,null,null,"Yes",null,null,null,null,28964,"Nsanje"]
[{"$f":"IF(INTRO!$E$33<>0,INTRO!$E$33, \" \")","v":"MALAWI"},"South","Phalombe",494330.571,{"$f":"IF(INTRO!$E$48=\"\",\"\",ROUND($D34*INTRO!$E$48,0))","v":0},{"$f":"IF(INTRO!$E$49=\"\",\"\",ROUND($D34*INTRO!$E$49,0))","v":137918},{"$f":"IF(INTRO!$E$50=\"\",\"\",ROUND($D34*INTRO!$E$50,0))","v":280977},null,1,0,2,{"$f":"IF(INTRO!$E$37=\"Endemic\",IF($H34>0,IF($H34=4,\"Unknown\",IF($H34=99,\"Stopped\",$D34)),0),\"Not required\")","v":"Not required"},55251,{"$f":"IF(INTRO!$E$41=\"Endemic\", IF($J34>1, IF($J34=4, \"Unknown\", IF($J34=99, \"Surveillance\", E34)), 0),\"Not required\")","v":0},{"$f":"IF(INTRO!$E$41=\"Endemic\", IF($J34>1, IF($J34=4, \"Unknown\", IF($J34=99, \"Surveillance\", F34)), 0),\"Not required\")","v":0},{"$f":"IF(INTRO!$E$41=\"Endemic\", IF($J34>1, IF($J34=4, \"Unknown\", IF($J34=99, \"Surveillance\", ROUND(D34*INTRO!$E$51,0))), 0),\"Not required\")","v":0},{"$f":"IF(INTRO!$E$41=\"Endemic\", IF($J34>1, IF($J34=4, \"Unknown\", IF($J34=99, \"Surveillance\", SUM($N34:$P34))), 0),\"Not required\")","v":0},33734,105039,213995,352768,null,1,0,1,null,null,"Yes",null,null,null,null,null,28967,"Phalombe"]
[{"$f":"IF(INTRO!$E$33<>0,INTRO!$E$33, \" \")","v":"MALAWI"},"South","Thyolo",694611,{"$f":"IF(INTRO!$E$48=\"\",\"\",ROUND($D35*INTRO!$E$48,0))","v":0},{"$f":"IF(INTRO!$E$49=\"\",\"\",ROUND($D35*INTRO!$E$49,0))","v":193796},{"$f":"IF(INTRO!$E$50=\"\",\"\",ROUND($D35*INTRO!$E$50,0))","v":394817},null,1,1,2,{"$f":"IF(INTRO!$E$37=\"Endemic\",IF($H35>0,IF($H35=4,\"Unknown\",IF($H35=99,\"Stopped\",$D35)),0),\"Not required\")","v":"Not required"},694611,{"$f":"IF(INTRO!$E$41=\"Endemic\", IF($J35>1, IF($J35=4, \"Unknown\", IF($J35=99, \"Surveillance\", E35)), 0),\"Not required\")","v":0},{"$f":"IF(INTRO!$E$41=\"Endemic\", IF($J35>1, IF($J35=4, \"Unknown\", IF($J35=99, \"Surveillance\", F35)), 0),\"Not required\")","v":0},{"$f":"IF(INTRO!$E$41=\"Endemic\", IF($J35>1, IF($J35=4, \"Unknown\", IF($J35=99, \"Surveillance\", ROUND(D35*INTRO!$E$51,0))), 0),\"Not required\")","v":0},{"$f":"IF(INTRO!$E$41=\"Endemic\", IF($J35>1, IF($J35=4, \"Unknown\", IF($J35=99, \"Surveillance\", SUM($N35:$P35))), 0),\"Not required\")","v":0},52316,162901,331876,547093,null,1,0,1,null,null,"Yes","Yes",null,null,null,null,28970,"Thyolo"]
[{"$f":"IF(INTRO!$E$33<>0,INTRO!$E$33, \" \")","v":"MALAWI"},"South","Zomba",980416.79399999999,{"$f":"IF(INTRO!$E$48=\"\",\"\",ROUND($D36*INTRO!$E$48,0))","v":0},{"$f":"IF(INTRO!$E$49=\"\",\"\",ROUND($D36*INTRO!$E$49,0))","v":273536},{"$f":"IF(INTRO!$E$50=\"\",\"\",ROUND($D36*INTRO!$E$50,0))","v":557269},null,1,99,2,{"$f":"IF(INTRO!$E$37=\"Endemic\",IF($H36>0,IF($H36=4,\"Unknown\",IF($H36=99,\"Stopped\",$D36)),0),\"Not required\")","v":"Not required"},225200,{"$f":"IF(INTRO!$E$41=\"Endemic\", IF($J36>1, IF($J36=4, \"Unknown\", IF($J36=99, \"Surveillance\", E36)), 0),\"Not required\")","v":"Surveillance"},{"$f":"IF(INTRO!$E$41=\"Endemic\", IF($J36>1, IF($J36=4, \"Unknown\", IF($J36=99, \"Surveillance\", F36)), 0),\"Not required\")","v":"Surveillance"},{"$f":"IF(INTRO!$E$41=\"Endemic\", IF($J36>1, IF($J36=4, \"Unknown\", IF($J36=99, \"Surveillance\", ROUND(D36*INTRO!$E$51,0))), 0),\"Not required\")","v":"Surveillance"},{"$f":"IF(INTRO!$E$41=\"Endemic\", IF($J36>1, IF($J36=4, \"Unknown\", IF($J36=99, \"Surveillance\", SUM($N36:$P36))), 0),\"Not required\")","v":"Surveillance"},71989,224160,456674,752823,null,2,0,1,null,null,null,null,null,null,null,null,28971,"Zomba"]
[{"$f":"IF(INTRO!$E$33<>0,INTRO!$E$33, \" \")","v":"MALAWI"},"South","Neno",193855,{"$f":"IF(INTRO!$E$48=\"\",\"\",ROUND($D37*INTRO!$E$48,0))","v":0},{"$f":"IF(INTRO!$E$49=\"\",\"\",ROUND($D37*INTRO!$E$49,0))","v":54086},{"$f":"IF(INTRO!$E$50=\"\",\"\",ROUND($D37*INTRO!$E$50,0))","v":110187},null,1,11,1,{"$f":"IF(INTRO!$E$37=\"Endemic\",IF($H37>0,IF($H37=4,\"Unknown\",IF($H37=99,\"Stopped\",$D37)),0),\"Not required\")","v":"Not required"},193855,{"$f":"IF(INTRO!$E$41=\"Endemic\", IF($J37>1, IF($J37=4, \"Unknown\", IF($J37=99, \"Surveillance\", E37)), 0),\"Not required\")","v":0},{"$f":"IF(INTRO!$E$41=\"Endemic\", IF($J37>1, IF($J37=4, \"Unknown\", IF($J37=99, \"Surveillance\", F37)), 0),\"Not required\")","v":54086},{"$f":"IF(INTRO!$E$41=\"Endemic\", IF($J37>1, IF($J37=4, \"Unknown\", IF($J37=99, \"Surveillance\", ROUND(D37*INTRO!$E$51,0))), 0),\"Not required\")","v":0},{"$f":"IF(INTRO!$E$41=\"Endemic\", IF($J37>1, IF($J37=4, \"Unknown\", IF($J37=99, \"Surveillance\", SUM($N37:$P37))), 0),\"Not required\")","v":54086},0,0,0,0,null,1,1,0,null,null,"Yes",null,null,null,null,null,28961,"Neno"]
[{"$f":"IF(INTRO!$E$33<>0,INTRO!$E$33, \" \")","v":"MALAWI"},"South","Mwanza",157374,{"$f":"IF(INTRO!$E$48=\"\",\"\",ROUND($D38*INTRO!$E$48,0))","v":0},{"$f":"IF(INTRO!$E$49=\"\",\"\",ROUND($D38*INTRO!$E$49,0))","v":43907},{"$f":"IF(INTRO!$E$50=\"\",\"\",ROUND($D38*INTRO!$E$50,0))","v":89451},null,1,99,2,{"$f":"IF(INTRO!$E$37=\"Endemic\",IF($H38>0,IF($H38=4,\"Unknown\",IF($H38=99,\"Stopped\",$D38)),0),\"Not required\")","v":"Not required"},157374,{"$f":"IF(INTRO!$E$41=\"Endemic\", IF($J38>1, IF($J38=4, \"Unknown\", IF($J38=99, \"Surveillance\", E38)), 0),\"Not required\")","v":"Surveillance"},{"$f":"IF(INTRO!$E$41=\"Endemic\", IF($J38>1, IF($J38=4, \"Unknown\", IF($J38=99, \"Surveillance\", F38)), 0),\"Not required\")","v":"Surveillance"},{"$f":"IF(INTRO!$E$41=\"Endemic\", IF($J38>1, IF($J38=4, \"Unknown\", IF($J38=99, \"Surveillance\", ROUND(D38*INTRO!$E$51,0))), 0),\"Not required\")","v":"Surveillance"},{"$f":"IF(INTRO!$E$41=\"Endemic\", IF($J38>1, IF($J38=4, \"Unknown\", IF($J38=99, \"Surveillance\", SUM($N38:$P38))), 0),\"Not required\")","v":"Surveillance"},13452,41887,85334,140673,null,1,0,1,null,null,"Yes",null,null,null,null,null,28959,"Mwanza"]

{"sheet":"DEC","index":2,"n_rows":38,"n_cols":12,"rows_kept":38,"cut":false,"hidden":true,"merged":[[3,0,3,2],[5,0,5,2],[6,5,7,5],[6,2,7,2],[6,1,7,1],[6,10,7,10],[6,0,7,0],[6,11,7,11],[5,3,5,6],[5,9,5,11],[6,4,7,4],[6,3,7,3],[6,8,7,8],[6,7,7,7],[6,6,7,6],[6,9,7,9]]}
["Diethylcarbamazine citrate (DEC)"]
["Administrative structure, eligible population by age group, treatment plan and information about tablets"]
[]
["TOTAL",null,null,{"$f":"SUBTOTAL(9,D$10:D$1010)","v":0},0,0,0,null,{"$f":"SUBTOTAL(9,I$10:I$1010)","v":0},0,0,0]
[]
["Country administrative structure",null,null,"Population requiring treatment with DEC",null,null,null,"Treatment plan","Target population","Diethylcarbamazine citrate (DEC)"]
["Country","Province/State","District","PreSAC","SAC","Adults","Total","LF","LF","Total required","Remaining in stock","Tablets to be procured"]
[]
[]
[{"$f":"IF(INTRO!$E$39<>\"Non-endemic\", \" \", IF(INTRO!$E$37=\"Non-endemic\",\" \", IF(COUNTRY_INFO!A10=0,\" \",COUNTRY_INFO!A10)))","v":" "},{"$f":"IF(INTRO!$E$39<>\"Non-endemic\", \" \", IF(INTRO!$E$37=\"Non-endemic\",\" \", IF(COUNTRY_INFO!B10=0,\" \",COUNTRY_INFO!B10)))","v":" "},{"$f":"IF(INTRO!$E$39<>\"Non-endemic\", \" \", IF(INTRO!$E$37=\"Non-endemic\",\" \", IF(COUNTRY_INFO!C10=0,\" \",COUNTRY_INFO!C10)))","v":" "},{"$f":"IF(INTRO!$E$39<>\"Non-endemic\", 0, IF(INTRO!$E$37=\"Non-endemic\",0,IF(COUNTRY_INFO!$H10=1,COUNTRY_INFO!E10,0)))","v":0},{"$f":"IF(INTRO!$E$39<>\"Non-endemic\", 0, IF(INTRO!$E$37=\"Non-endemic\",0,IF(COUNTRY_INFO!$H10=1,COUNTRY_INFO!F10,0)))","v":0},{"$f":"IF(INTRO!$E$39<>\"Non-endemic\", 0, IF(INTRO!$E$37=\"Non-endemic\",0,IF(COUNTRY_INFO!$H10=1,COUNTRY_INFO!G10,0)))","v":0},{"$f":"SUM(D10:F10)","v":0},{"$f":"IF(INTRO!$E$39=\"Non-endemic\",IF(INTRO!$E$37=\"Non-endemic\",\"Not required\",COUNTRY_INFO!V10),\"Treat with IVM\")","v":"Treat with IVM"},{"$f":"IF(H10=1,G10,0)","v":0},{"$f":"IF(I10>0,I10*2.5,0)","v":0},null,{"$f":"IF($J10>$K10,$J10-$K10,0)","v":0}]
[{"$f":"IF(INTRO!$E$39<>\"Non-endemic\", \" \", IF(INTRO!$E$37=\"Non-endemic\",\" \", IF(COUNTRY_INFO!A11=0,\" \",COUNTRY_INFO!A11)))","v":" "},{"$f":"IF(INTRO!$E$39<>\"Non-endemic\", \" \", IF(INTRO!$E$37=\"Non-endemic\",\" \", IF(COUNTRY_INFO!B11=0,\" \",COUNTRY_INFO!B11)))","v":" "},{"$f":"IF(INTRO!$E$39<>\"Non-endemic\", \" \", IF(INTRO!$E$37=\"Non-endemic\",\" \", IF(COUNTRY_INFO!C11=0,\" \",COUNTRY_INFO!C11)))","v":" "},{"$f":"IF(INTRO!$E$39<>\"Non-endemic\", 0, IF(INTRO!$E$37=\"Non-endemic\",0,IF(COUNTRY_INFO!$H11=1,COUNTRY_INFO!E11,0)))","v":0},{"$f":"IF(INTRO!$E$39<>\"Non-endemic\", 0, IF(INTRO!$E$37=\"Non-endemic\",0,IF(COUNTRY_INFO!$H11=1,COUNTRY_INFO!F11,0)))","v":0},{"$f":"IF(INTRO!$E$39<>\"Non-endemic\", 0, IF(INTRO!$E$37=\"Non-endemic\",0,IF(COUNTRY_INFO!$H11=1,COUNTRY_INFO!G11,0)))","v":0},{"$f":"SUM(D11:F11)","v":0},{"$f":"IF(INTRO!$E$39=\"Non-endemic\",IF(INTRO!$E$37=\"Non-endemic\",\"Not required\",COUNTRY_INFO!V11),\"Treat with IVM\")","v":"Treat with IVM"},{"$f":"IF(H11=1,G11,0)","v":0},{"$f":"IF(I11>0,I11*2.5,0)","v":0},null,0]
[{"$f":"IF(INTRO!$E$39<>\"Non-endemic\", \" \", IF(INTRO!$E$37=\"Non-endemic\",\" \", IF(COUNTRY_INFO!A12=0,\" \",COUNTRY_INFO!A12)))","v":" "},{"$f":"IF(INTRO!$E$39<>\"Non-endemic\", \" \", IF(INTRO!$E$37=\"Non-endemic\",\" \", IF(COUNTRY_INFO!B12=0,\" \",COUNTRY_INFO!B12)))","v":" "},{"$f":"IF(INTRO!$E$39<>\"Non-endemic\", \" \", IF(INTRO!$E$37=\"Non-endemic\",\" \", IF(COUNTRY_INFO!C12=0,\" \",COUNTRY_INFO!C12)))","v":" "},{"$f":"IF(INTRO!$E$39<>\"Non-endemic\", 0, IF(INTRO!$E$37=\"Non-endemic\",0,IF(COUNTRY_INFO!$H12=1,COUNTRY_INFO!E12,0)))","v":0},{"$f":"IF(INTRO!$E$39<>\"Non-endemic\", 0, IF(INTRO!$E$37=\"Non-endemic\",0,IF(COUNTRY_INFO!$H12=1,COUNTRY_INFO!F12,0)))","v":0},{"$f":"IF(INTRO!$E$39<>\"Non-endemic\", 0, IF(INTRO!$E$37=\"Non-endemic\",0,IF(COUNTRY_INFO!$H12=1,COUNTRY_INFO!G12,0)))","v":0},0,{"$f":"IF(INTRO!$E$39=\"Non-endemic\",IF(INTRO!$E$37=\"Non-endemic\",\"Not required\",COUNTRY_INFO!V12),\"Treat with IVM\")","v":"Treat with IVM"},0,0,null,0]
[{"$f":"IF(INTRO!$E$39<>\"Non-endemic\", \" \", IF(INTRO!$E$37=\"Non-endemic\",\" \", IF(COUNTRY_INFO!A13=0,\" \",COUNTRY_INFO!A13)))","v":" "},{"$f":"IF(INTRO!$E$39<>\"Non-endemic\", \" \", IF(INTRO!$E$37=\"Non-endemic\",\" \", IF(COUNTRY_INFO!B13=0,\" \",COUNTRY_INFO!B13)))","v":" "},{"$f":"IF(INTRO!$E$39<>\"Non-endemic\", \" \", IF(INTRO!$E$37=\"Non-endemic\",\" \", IF(COUNTRY_INFO!C13=0,\" \",COUNTRY_INFO!C13)))","v":" "},{"$f":"IF(INTRO!$E$39<>\"Non-endemic\", 0, IF(INTRO!$E$37=\"Non-endemic\",0,IF(COUNTRY_INFO!$H13=1,COUNTRY_INFO!E13,0)))","v":0},{"$f":"IF(INTRO!$E$39<>\"Non-endemic\", 0, IF(INTRO!$E$37=\"Non-endemic\",0,IF(COUNTRY_INFO!$H13=1,COUNTRY_INFO!F13,0)))","v":0},{"$f":"IF(INTRO!$E$39<>\"Non-endemic\", 0, IF(INTRO!$E$37=\"Non-endemic\",0,IF(COUNTRY_INFO!$H13=1,COUNTRY_INFO!G13,0)))","v":0},0,{"$f":"IF(INTRO!$E$39=\"Non-endemic\",IF(INTRO!$E$37=\"Non-endemic\",\"Not required\",COUNTRY_INFO!V13),\"Treat with IVM\")","v":"Treat with IVM"},0,0,null,0]
[{"$f":"IF(INTRO!$E$39<>\"Non-endemic\", \" \", IF(INTRO!$E$37=\"Non-endemic\",\" \", IF(COUNTRY_INFO!A14=0,\" \",COUNTRY_INFO!A14)))","v":" "},{"$f":"IF(INTRO!$E$39<>\"Non-endemic\", \" \", IF(INTRO!$E$37=\"Non-endemic\",\" \", IF(COUNTRY_INFO!B14=0,\" \",COUNTRY_INFO!B14)))","v":" "},{"$f":"IF(INTRO!$E$39<>\"Non-endemic\", \" \", IF(INTRO!$E$37=\"Non-endemic\",\" \", IF(COUNTRY_INFO!C14=0,\" \",COUNTRY_INFO!C14)))","v":" "},{"$f":"IF(INTRO!$E$39<>\"Non-endemic\", 0, IF(INTRO!$E$37=\"Non-endemic\",0,IF(COUNTRY_INFO!$H14=1,COUNTRY_INFO!E14,0)))","v":0},{"$f":"IF(INTRO!$E$39<>\"Non-endemic\", 0, IF(INTRO!$E$37=\"Non-endemic\",0,IF(COUNTRY_INFO!$H14=1,COUNTRY_INFO!F14,0)))","v":0},{"$f":"IF(INTRO!$E$39<>\"Non-endemic\", 0, IF(INTRO!$E$37=\"Non-endemic\",0,IF(COUNTRY_INFO!$H14=1,COUNTRY_INFO!G14,0)))","v":0},0,{"$f":"IF(INTRO!$E$39=\"Non-endemic\",IF(INTRO!$E$37=\"Non-endemic\",\"Not required\",COUNTRY_INFO!V14),\"Treat with IVM\")","v":"Treat with IVM"},0,0,null,0]
[{"$f":"IF(INTRO!$E$39<>\"Non-endemic\", \" \", IF(INTRO!$E$37=\"Non-endemic\",\" \", IF(COUNTRY_INFO!A15=0,\" \",COUNTRY_INFO!A15)))","v":" "},{"$f":"IF(INTRO!$E$39<>\"Non-endemic\", \" \", IF(INTRO!$E$37=\"Non-endemic\",\" \", IF(COUNTRY_INFO!B15=0,\" \",COUNTRY_INFO!B15)))","v":" "},{"$f":"IF(INTRO!$E$39<>\"Non-endemic\", \" \", IF(INTRO!$E$37=\"Non-endemic\",\" \", IF(COUNTRY_INFO!C15=0,\" \",COUNTRY_INFO!C15)))","v":" "},{"$f":"IF(INTRO!$E$39<>\"Non-endemic\", 0, IF(INTRO!$E$37=\"Non-endemic\",0,IF(COUNTRY_INFO!$H15=1,COUNTRY_INFO!E15,0)))","v":0},{"$f":"IF(INTRO!$E$39<>\"Non-endemic\", 0, IF(INTRO!$E$37=\"Non-endemic\",0,IF(COUNTRY_INFO!$H15=1,COUNTRY_INFO!F15,0)))","v":0},{"$f":"IF(INTRO!$E$39<>\"Non-endemic\", 0, IF(INTRO!$E$37=\"Non-endemic\",0,IF(COUNTRY_INFO!$H15=1,COUNTRY_INFO!G15,0)))","v":0},0,{"$f":"IF(INTRO!$E$39=\"Non-endemic\",IF(INTRO!$E$37=\"Non-endemic\",\"Not required\",COUNTRY_INFO!V15),\"Treat with IVM\")","v":"Treat with IVM"},0,0,null,0]
[{"$f":"IF(INTRO!$E$39<>\"Non-endemic\", \" \", IF(INTRO!$E$37=\"Non-endemic\",\" \", IF(COUNTRY_INFO!A16=0,\" \",COUNTRY_INFO!A16)))","v":" "},{"$f":"IF(INTRO!$E$39<>\"Non-endemic\", \" \", IF(INTRO!$E$37=\"Non-endemic\",\" \", IF(COUNTRY_INFO!B16=0,\" \",COUNTRY_INFO!B16)))","v":" "},{"$f":"IF(INTRO!$E$39<>\"Non-endemic\", \" \", IF(INTRO!$E$37=\"Non-endemic\",\" \", IF(COUNTRY_INFO!C16=0,\" \",COUNTRY_INFO!C16)))","v":" "},{"$f":"IF(INTRO!$E$39<>\"Non-endemic\", 0, IF(INTRO!$E$37=\"Non-endemic\",0,IF(COUNTRY_INFO!$H16=1,COUNTRY_INFO!E16,0)))","v":0},{"$f":"IF(INTRO!$E$39<>\"Non-endemic\", 0, IF(INTRO!$E$37=\"Non-endemic\",0,IF(COUNTRY_INFO!$H16=1,COUNTRY_INFO!F16,0)))","v":0},{"$f":"IF(INTRO!$E$39<>\"Non-endemic\", 0, IF(INTRO!$E$37=\"Non-endemic\",0,IF(COUNTRY_INFO!$H16=1,COUNTRY_INFO!G16,0)))","v":0},0,{"$f":"IF(INTRO!$E$39=\"Non-endemic\",IF(INTRO!$E$37=\"Non-endemic\",\"Not required\",COUNTRY_INFO!V16),\"Treat with IVM\")","v":"Treat with IVM"},0,0,null,0]
[{"$f":"IF(INTRO!$E$39<>\"Non-endemic\", \" \", IF(INTRO!$E$37=\"Non-endemic\",\" \", IF(COUNTRY_INFO!A17=0,\" \",COUNTRY_INFO!A17)))","v":" "},{"$f":"IF(INTRO!$E$39<>\"Non-endemic\", \" \", IF(INTRO!$E$37=\"Non-endemic\",\" \", IF(COUNTRY_INFO!B17=0,\" \",COUNTRY_INFO!B17)))","v":" "},{"$f":"IF(INTRO!$E$39<>\"Non-endemic\", \" \", IF(INTRO!$E$37=\"Non-endemic\",\" \", IF(COUNTRY_INFO!C17=0,\" \",COUNTRY_INFO!C17)))","v":" "},{"$f":"IF(INTRO!$E$39<>\"Non-endemic\", 0, IF(INTRO!$E$37=\"Non-endemic\",0,IF(COUNTRY_INFO!$H17=1,COUNTRY_INFO!E17,0)))","v":0},{"$f":"IF(INTRO!$E$39<>\"Non-endemic\", 0, IF(INTRO!$E$37=\"Non-endemic\",0,IF(COUNTRY_INFO!$H17=1,COUNTRY_INFO!F17,0)))","v":0},{"$f":"IF(INTRO!$E$39<>\"Non-endemic\", 0, IF(INTRO!$E$37=\"Non-endemic\",0,IF(COUNTRY_INFO!$H17=1,COUNTRY_INFO!G17,0)))","v":0},0,{"$f":"IF(INTRO!$E$39=\"Non-endemic\",IF(INTRO!$E$37=\"Non-endemic\",\"Not required\",COUNTRY_INFO!V17),\"Treat with IVM\")","v":"Treat with IVM"},0,0,null,0]
[{"$f":"IF(INTRO!$E$39<>\"Non-endemic\", \" \", IF(INTRO!$E$37=\"Non-endemic\",\" \", IF(COUNTRY_INFO!A18=0,\" \",COUNTRY_INFO!A18)))","v":" "},{"$f":"IF(INTRO!$E$39<>\"Non-endemic\", \" \", IF(INTRO!$E$37=\"Non-endemic\",\" \", IF(COUNTRY_INFO!B18=0,\" \",COUNTRY_INFO!B18)))","v":" "},{"$f":"IF(INTRO!$E$39<>\"Non-endemic\", \" \", IF(INTRO!$E$37=\"Non-endemic\",\" \", IF(COUNTRY_INFO!C18=0,\" \",COUNTRY_INFO!C18)))","v":" "},{"$f":"IF(INTRO!$E$39<>\"Non-endemic\", 0, IF(INTRO!$E$37=\"Non-endemic\",0,IF(COUNTRY_INFO!$H18=1,COUNTRY_INFO!E18,0)))","v":0},{"$f":"IF(INTRO!$E$39<>\"Non-endemic\", 0, IF(INTRO!$E$37=\"Non-endemic\",0,IF(COUNTRY_INFO!$H18=1,COUNTRY_INFO!F18,0)))","v":0},{"$f":"IF(INTRO!$E$39<>\"Non-endemic\", 0, IF(INTRO!$E$37=\"Non-endemic\",0,IF(COUNTRY_INFO!$H18=1,COUNTRY_INFO!G18,0)))","v":0},0,{"$f":"IF(INTRO!$E$39=\"Non-endemic\",IF(INTRO!$E$37=\"Non-endemic\",\"Not required\",COUNTRY_INFO!V18),\"Treat with IVM\")","v":"Treat with IVM"},0,0,null,0]
[{"$f":"IF(INTRO!$E$39<>\"Non-endemic\", \" \", IF(INTRO!$E$37=\"Non-endemic\",\" \", IF(COUNTRY_INFO!A19=0,\" \",COUNTRY_INFO!A19)))","v":" "},{"$f":"IF(INTRO!$E$39<>\"Non-endemic\", \" \", IF(INTRO!$E$37=\"Non-endemic\",\" \", IF(COUNTRY_INFO!B19=0,\" \",COUNTRY_INFO!B19)))","v":" "},{"$f":"IF(INTRO!$E$39<>\"Non-endemic\", \" \", IF(INTRO!$E$37=\"Non-endemic\",\" \", IF(COUNTRY_INFO!C19=0,\" \",COUNTRY_INFO!C19)))","v":" "},{"$f":"IF(INTRO!$E$39<>\"Non-endemic\", 0, IF(INTRO!$E$37=\"Non-endemic\",0,IF(COUNTRY_INFO!$H19=1,COUNTRY_INFO!E19,0)))","v":0},{"$f":"IF(INTRO!$E$39<>\"Non-endemic\", 0, IF(INTRO!$E$37=\"Non-endemic\",0,IF(COUNTRY_INFO!$H19=1,COUNTRY_INFO!F19,0)))","v":0},{"$f":"IF(INTRO!$E$39<>\"Non-endemic\", 0, IF(INTRO!$E$37=\"Non-endemic\",0,IF(COUNTRY_INFO!$H19=1,COUNTRY_INFO!G19,0)))","v":0},0,{"$f":"IF(INTRO!$E$39=\"Non-endemic\",IF(INTRO!$E$37=\"Non-endemic\",\"Not required\",COUNTRY_INFO!V19),\"Treat with IVM\")","v":"Treat with IVM"},0,0,null,0]
[{"$f":"IF(INTRO!$E$39<>\"Non-endemic\", \" \", IF(INTRO!$E$37=\"Non-endemic\",\" \", IF(COUNTRY_INFO!A20=0,\" \",COUNTRY_INFO!A20)))","v":" "},{"$f":"IF(INTRO!$E$39<>\"Non-endemic\", \" \", IF(INTRO!$E$37=\"Non-endemic\",\" \", IF(COUNTRY_INFO!B20=0,\" \",COUNTRY_INFO!B20)))","v":" "},{"$f":"IF(INTRO!$E$39<>\"Non-endemic\", \" \", IF(INTRO!$E$37=\"Non-endemic\",\" \", IF(COUNTRY_INFO!C20=0,\" \",COUNTRY_INFO!C20)))","v":" "},{"$f":"IF(INTRO!$E$39<>\"Non-endemic\", 0, IF(INTRO!$E$37=\"Non-endemic\",0,IF(COUNTRY_INFO!$H20=1,COUNTRY_INFO!E20,0)))","v":0},{"$f":"IF(INTRO!$E$39<>\"Non-endemic\", 0, IF(INTRO!$E$37=\"Non-endemic\",0,IF(COUNTRY_INFO!$H20=1,COUNTRY_INFO!F20,0)))","v":0},{"$f":"IF(INTRO!$E$39<>\"Non-endemic\", 0, IF(INTRO!$E$37=\"Non-endemic\",0,IF(COUNTRY_INFO!$H20=1,COUNTRY_INFO!G20,0)))","v":0},0,{"$f":"IF(INTRO!$E$39=\"Non-endemic\",IF(INTRO!$E$37=\"Non-endemic\",\"Not required\",COUNTRY_INFO!V20),\"Treat with IVM\")","v":"Treat with IVM"},0,0,null,0]
[{"$f":"IF(INTRO!$E$39<>\"Non-endemic\", \" \", IF(INTRO!$E$37=\"Non-endemic\",\" \", IF(COUNTRY_INFO!A21=0,\" \",COUNTRY_INFO!A21)))","v":" "},{"$f":"IF(INTRO!$E$39<>\"Non-endemic\", \" \", IF(INTRO!$E$37=\"Non-endemic\",\" \", IF(COUNTRY_INFO!B21=0,\" \",COUNTRY_INFO!B21)))","v":" "},{"$f":"IF(INTRO!$E$39<>\"Non-endemic\", \" \", IF(INTRO!$E$37=\"Non-endemic\",\" \", IF(COUNTRY_INFO!C21=0,\" \",COUNTRY_INFO!C21)))","v":" "},{"$f":"IF(INTRO!$E$39<>\"Non-endemic\", 0, IF(INTRO!$E$37=\"Non-endemic\",0,IF(COUNTRY_INFO!$H21=1,COUNTRY_INFO!E21,0)))","v":0},{"$f":"IF(INTRO!$E$39<>\"Non-endemic\", 0, IF(INTRO!$E$37=\"Non-endemic\",0,IF(COUNTRY_INFO!$H21=1,COUNTRY_INFO!F21,0)))","v":0},{"$f":"IF(INTRO!$E$39<>\"Non-endemic\", 0, IF(INTRO!$E$37=\"Non-endemic\",0,IF(COUNTRY_INFO!$H21=1,COUNTRY_INFO!G21,0)))","v":0},0,{"$f":"IF(INTRO!$E$39=\"Non-endemic\",IF(INTRO!$E$37=\"Non-endemic\",\"Not required\",COUNTRY_INFO!V21),\"Treat with IVM\")","v":"Treat with IVM"},0,0,null,0]
[{"$f":"IF(INTRO!$E$39<>\"Non-endemic\", \" \", IF(INTRO!$E$37=\"Non-endemic\",\" \", IF(COUNTRY_INFO!A22=0,\" \",COUNTRY_INFO!A22)))","v":" "},{"$f":"IF(INTRO!$E$39<>\"Non-endemic\", \" \", IF(INTRO!$E$37=\"Non-endemic\",\" \", IF(COUNTRY_INFO!B22=0,\" \",COUNTRY_INFO!B22)))","v":" "},{"$f":"IF(INTRO!$E$39<>\"Non-endemic\", \" \", IF(INTRO!$E$37=\"Non-endemic\",\" \", IF(COUNTRY_INFO!C22=0,\" \",COUNTRY_INFO!C22)))","v":" "},{"$f":"IF(INTRO!$E$39<>\"Non-endemic\", 0, IF(INTRO!$E$37=\"Non-endemic\",0,IF(COUNTRY_INFO!$H22=1,COUNTRY_INFO!E22,0)))","v":0},{"$f":"IF(INTRO!$E$39<>\"Non-endemic\", 0, IF(INTRO!$E$37=\"Non-endemic\",0,IF(COUNTRY_INFO!$H22=1,COUNTRY_INFO!F22,0)))","v":0},{"$f":"IF(INTRO!$E$39<>\"Non-endemic\", 0, IF(INTRO!$E$37=\"Non-endemic\",0,IF(COUNTRY_INFO!$H22=1,COUNTRY_INFO!G22,0)))","v":0},0,{"$f":"IF(INTRO!$E$39=\"Non-endemic\",IF(INTRO!$E$37=\"Non-endemic\",\"Not required\",COUNTRY_INFO!V22),\"Treat with IVM\")","v":"Treat with IVM"},0,0,null,0]
[{"$f":"IF(INTRO!$E$39<>\"Non-endemic\", \" \", IF(INTRO!$E$37=\"Non-endemic\",\" \", IF(COUNTRY_INFO!A23=0,\" \",COUNTRY_INFO!A23)))","v":" "},{"$f":"IF(INTRO!$E$39<>\"Non-endemic\", \" \", IF(INTRO!$E$37=\"Non-endemic\",\" \", IF(COUNTRY_INFO!B23=0,\" \",COUNTRY_INFO!B23)))","v":" "},{"$f":"IF(INTRO!$E$39<>\"Non-endemic\", \" \", IF(INTRO!$E$37=\"Non-endemic\",\" \", IF(COUNTRY_INFO!C23=0,\" \",COUNTRY_INFO!C23)))","v":" "},{"$f":"IF(INTRO!$E$39<>\"Non-endemic\", 0, IF(INTRO!$E$37=\"Non-endemic\",0,IF(COUNTRY_INFO!$H23=1,COUNTRY_INFO!E23,0)))","v":0},{"$f":"IF(INTRO!$E$39<>\"Non-endemic\", 0, IF(INTRO!$E$37=\"Non-endemic\",0,IF(COUNTRY_INFO!$H23=1,COUNTRY_INFO!F23,0)))","v":0},{"$f":"IF(INTRO!$E$39<>\"Non-endemic\", 0, IF(INTRO!$E$37=\"Non-endemic\",0,IF(COUNTRY_INFO!$H23=1,COUNTRY_INFO!G23,0)))","v":0},0,{"$f":"IF(INTRO!$E$39=\"Non-endemic\",IF(INTRO!$E$37=\"Non-endemic\",\"Not required\",COUNTRY_INFO!V23),\"Treat with IVM\")","v":"Treat with IVM"},0,0,null,0]
[{"$f":"IF(INTRO!$E$39<>\"Non-endemic\", \" \", IF(INTRO!$E$37=\"Non-endemic\",\" \", IF(COUNTRY_INFO!A24=0,\" \",COUNTRY_INFO!A24)))","v":" "},{"$f":"IF(INTRO!$E$39<>\"Non-endemic\", \" \", IF(INTRO!$E$37=\"Non-endemic\",\" \", IF(COUNTRY_INFO!B24=0,\" \",COUNTRY_INFO!B24)))","v":" "},{"$f":"IF(INTRO!$E$39<>\"Non-endemic\", \" \", IF(INTRO!$E$37=\"Non-endemic\",\" \", IF(COUNTRY_INFO!C24=0,\" \",COUNTRY_INFO!C24)))","v":" "},{"$f":"IF(INTRO!$E$39<>\"Non-endemic\", 0, IF(INTRO!$E$37=\"Non-endemic\",0,IF(COUNTRY_INFO!$H24=1,COUNTRY_INFO!E24,0)))","v":0},{"$f":"IF(INTRO!$E$39<>\"Non-endemic\", 0, IF(INTRO!$E$37=\"Non-endemic\",0,IF(COUNTRY_INFO!$H24=1,COUNTRY_INFO!F24,0)))","v":0},{"$f":"IF(INTRO!$E$39<>\"Non-endemic\", 0, IF(INTRO!$E$37=\"Non-endemic\",0,IF(COUNTRY_INFO!$H24=1,COUNTRY_INFO!G24,0)))","v":0},0,{"$f":"IF(INTRO!$E$39=\"Non-endemic\",IF(INTRO!$E$37=\"Non-endemic\",\"Not required\",COUNTRY_INFO!V24),\"Treat with IVM\")","v":"Treat with IVM"},0,0,null,0]
[{"$f":"IF(INTRO!$E$39<>\"Non-endemic\", \" \", IF(INTRO!$E$37=\"Non-endemic\",\" \", IF(COUNTRY_INFO!A25=0,\" \",COUNTRY_INFO!A25)))","v":" "},{"$f":"IF(INTRO!$E$39<>\"Non-endemic\", \" \", IF(INTRO!$E$37=\"Non-endemic\",\" \", IF(COUNTRY_INFO!B25=0,\" \",COUNTRY_INFO!B25)))","v":" "},{"$f":"IF(INTRO!$E$39<>\"Non-endemic\", \" \", IF(INTRO!$E$37=\"Non-endemic\",\" \", IF(COUNTRY_INFO!C25=0,\" \",COUNTRY_INFO!C25)))","v":" "},{"$f":"IF(INTRO!$E$39<>\"Non-endemic\", 0, IF(INTRO!$E$37=\"Non-endemic\",0,IF(COUNTRY_INFO!$H25=1,COUNTRY_INFO!E25,0)))","v":0},{"$f":"IF(INTRO!$E$39<>\"Non-endemic\", 0, IF(INTRO!$E$37=\"Non-endemic\",0,IF(COUNTRY_INFO!$H25=1,COUNTRY_INFO!F25,0)))","v":0},{"$f":"IF(INTRO!$E$39<>\"Non-endemic\", 0, IF(INTRO!$E$37=\"Non-endemic\",0,IF(COUNTRY_INFO!$H25=1,COUNTRY_INFO!G25,0)))","v":0},0,{"$f":"IF(INTRO!$E$39=\"Non-endemic\",IF(INTRO!$E$37=\"Non-endemic\",\"Not required\",COUNTRY_INFO!V25),\"Treat with IVM\")","v":"Treat with IVM"},0,0,null,0]
[{"$f":"IF(INTRO!$E$39<>\"Non-endemic\", \" \", IF(INTRO!$E$37=\"Non-endemic\",\" \", IF(COUNTRY_INFO!A26=0,\" \",COUNTRY_INFO!A26)))","v":" "},{"$f":"IF(INTRO!$E$39<>\"Non-endemic\", \" \", IF(INTRO!$E$37=\"Non-endemic\",\" \", IF(COUNTRY_INFO!B26=0,\" \",COUNTRY_INFO!B26)))","v":" "},{"$f":"IF(INTRO!$E$39<>\"Non-endemic\", \" \", IF(INTRO!$E$37=\"Non-endemic\",\" \", IF(COUNTRY_INFO!C26=0,\" \",COUNTRY_INFO!C26)))","v":" "},{"$f":"IF(INTRO!$E$39<>\"Non-endemic\", 0, IF(INTRO!$E$37=\"Non-endemic\",0,IF(COUNTRY_INFO!$H26=1,COUNTRY_INFO!E26,0)))","v":0},{"$f":"IF(INTRO!$E$39<>\"Non-endemic\", 0, IF(INTRO!$E$37=\"Non-endemic\",0,IF(COUNTRY_INFO!$H26=1,COUNTRY_INFO!F26,0)))","v":0},{"$f":"IF(INTRO!$E$39<>\"Non-endemic\", 0, IF(INTRO!$E$37=\"Non-endemic\",0,IF(COUNTRY_INFO!$H26=1,COUNTRY_INFO!G26,0)))","v":0},0,{"$f":"IF(INTRO!$E$39=\"Non-endemic\",IF(INTRO!$E$37=\"Non-endemic\",\"Not required\",COUNTRY_INFO!V26),\"Treat with IVM\")","v":"Treat with IVM"},0,0,null,0]
[{"$f":"IF(INTRO!$E$39<>\"Non-endemic\", \" \", IF(INTRO!$E$37=\"Non-endemic\",\" \", IF(COUNTRY_INFO!A27=0,\" \",COUNTRY_INFO!A27)))","v":" "},{"$f":"IF(INTRO!$E$39<>\"Non-endemic\", \" \", IF(INTRO!$E$37=\"Non-endemic\",\" \", IF(COUNTRY_INFO!B27=0,\" \",COUNTRY_INFO!B27)))","v":" "},{"$f":"IF(INTRO!$E$39<>\"Non-endemic\", \" \", IF(INTRO!$E$37=\"Non-endemic\",\" \", IF(COUNTRY_INFO!C27=0,\" \",COUNTRY_INFO!C27)))","v":" "},{"$f":"IF(INTRO!$E$39<>\"Non-endemic\", 0, IF(INTRO!$E$37=\"Non-endemic\",0,IF(COUNTRY_INFO!$H27=1,COUNTRY_INFO!E27,0)))","v":0},{"$f":"IF(INTRO!$E$39<>\"Non-endemic\", 0, IF(INTRO!$E$37=\"Non-endemic\",0,IF(COUNTRY_INFO!$H27=1,COUNTRY_INFO!F27,0)))","v":0},{"$f":"IF(INTRO!$E$39<>\"Non-endemic\", 0, IF(INTRO!$E$37=\"Non-endemic\",0,IF(COUNTRY_INFO!$H27=1,COUNTRY_INFO!G27,0)))","v":0},0,{"$f":"IF(INTRO!$E$39=\"Non-endemic\",IF(INTRO!$E$37=\"Non-endemic\",\"Not required\",COUNTRY_INFO!V27),\"Treat with IVM\")","v":"Treat with IVM"},0,0,null,0]
[{"$f":"IF(INTRO!$E$39<>\"Non-endemic\", \" \", IF(INTRO!$E$37=\"Non-endemic\",\" \", IF(COUNTRY_INFO!A28=0,\" \",COUNTRY_INFO!A28)))","v":" "},{"$f":"IF(INTRO!$E$39<>\"Non-endemic\", \" \", IF(INTRO!$E$37=\"Non-endemic\",\" \", IF(COUNTRY_INFO!B28=0,\" \",COUNTRY_INFO!B28)))","v":" "},{"$f":"IF(INTRO!$E$39<>\"Non-endemic\", \" \", IF(INTRO!$E$37=\"Non-endemic\",\" \", IF(COUNTRY_INFO!C28=0,\" \",COUNTRY_INFO!C28)))","v":" "},{"$f":"IF(INTRO!$E$39<>\"Non-endemic\", 0, IF(INTRO!$E$37=\"Non-endemic\",0,IF(COUNTRY_INFO!$H28=1,COUNTRY_INFO!E28,0)))","v":0},{"$f":"IF(INTRO!$E$39<>\"Non-endemic\", 0, IF(INTRO!$E$37=\"Non-endemic\",0,IF(COUNTRY_INFO!$H28=1,COUNTRY_INFO!F28,0)))","v":0},{"$f":"IF(INTRO!$E$39<>\"Non-endemic\", 0, IF(INTRO!$E$37=\"Non-endemic\",0,IF(COUNTRY_INFO!$H28=1,COUNTRY_INFO!G28,0)))","v":0},0,{"$f":"IF(INTRO!$E$39=\"Non-endemic\",IF(INTRO!$E$37=\"Non-endemic\",\"Not required\",COUNTRY_INFO!V28),\"Treat with IVM\")","v":"Treat with IVM"},0,0,null,0]
[{"$f":"IF(INTRO!$E$39<>\"Non-endemic\", \" \", IF(INTRO!$E$37=\"Non-endemic\",\" \", IF(COUNTRY_INFO!A29=0,\" \",COUNTRY_INFO!A29)))","v":" "},{"$f":"IF(INTRO!$E$39<>\"Non-endemic\", \" \", IF(INTRO!$E$37=\"Non-endemic\",\" \", IF(COUNTRY_INFO!B29=0,\" \",COUNTRY_INFO!B29)))","v":" "},{"$f":"IF(INTRO!$E$39<>\"Non-endemic\", \" \", IF(INTRO!$E$37=\"Non-endemic\",\" \", IF(COUNTRY_INFO!C29=0,\" \",COUNTRY_INFO!C29)))","v":" "},{"$f":"IF(INTRO!$E$39<>\"Non-endemic\", 0, IF(INTRO!$E$37=\"Non-endemic\",0,IF(COUNTRY_INFO!$H29=1,COUNTRY_INFO!E29,0)))","v":0},{"$f":"IF(INTRO!$E$39<>\"Non-endemic\", 0, IF(INTRO!$E$37=\"Non-endemic\",0,IF(COUNTRY_INFO!$H29=1,COUNTRY_INFO!F29,0)))","v":0},{"$f":"IF(INTRO!$E$39<>\"Non-endemic\", 0, IF(INTRO!$E$37=\"Non-endemic\",0,IF(COUNTRY_INFO!$H29=1,COUNTRY_INFO!G29,0)))","v":0},0,{"$f":"IF(INTRO!$E$39=\"Non-endemic\",IF(INTRO!$E$37=\"Non-endemic\",\"Not required\",COUNTRY_INFO!V29),\"Treat with IVM\")","v":"Treat with IVM"},0,0,null,0]
[{"$f":"IF(INTRO!$E$39<>\"Non-endemic\", \" \", IF(INTRO!$E$37=\"Non-endemic\",\" \", IF(COUNTRY_INFO!A30=0,\" \",COUNTRY_INFO!A30)))","v":" "},{"$f":"IF(INTRO!$E$39<>\"Non-endemic\", \" \", IF(INTRO!$E$37=\"Non-endemic\",\" \", IF(COUNTRY_INFO!B30=0,\" \",COUNTRY_INFO!B30)))","v":" "},{"$f":"IF(INTRO!$E$39<>\"Non-endemic\", \" \", IF(INTRO!$E$37=\"Non-endemic\",\" \", IF(COUNTRY_INFO!C30=0,\" \",COUNTRY_INFO!C30)))","v":" "},{"$f":"IF(INTRO!$E$39<>\"Non-endemic\", 0, IF(INTRO!$E$37=\"Non-endemic\",0,IF(COUNTRY_INFO!$H30=1,COUNTRY_INFO!E30,0)))","v":0},{"$f":"IF(INTRO!$E$39<>\"Non-endemic\", 0, IF(INTRO!$E$37=\"Non-endemic\",0,IF(COUNTRY_INFO!$H30=1,COUNTRY_INFO!F30,0)))","v":0},{"$f":"IF(INTRO!$E$39<>\"Non-endemic\", 0, IF(INTRO!$E$37=\"Non-endemic\",0,IF(COUNTRY_INFO!$H30=1,COUNTRY_INFO!G30,0)))","v":0},0,{"$f":"IF(INTRO!$E$39=\"Non-endemic\",IF(INTRO!$E$37=\"Non-endemic\",\"Not required\",COUNTRY_INFO!V30),\"Treat with IVM\")","v":"Treat with IVM"},0,0,null,0]
[{"$f":"IF(INTRO!$E$39<>\"Non-endemic\", \" \", IF(INTRO!$E$37=\"Non-endemic\",\" \", IF(COUNTRY_INFO!A31=0,\" \",COUNTRY_INFO!A31)))","v":" "},{"$f":"IF(INTRO!$E$39<>\"Non-endemic\", \" \", IF(INTRO!$E$37=\"Non-endemic\",\" \", IF(COUNTRY_INFO!B31=0,\" \",COUNTRY_INFO!B31)))","v":" "},{"$f":"IF(INTRO!$E$39<>\"Non-endemic\", \" \", IF(INTRO!$E$37=\"Non-endemic\",\" \", IF(COUNTRY_INFO!C31=0,\" \",COUNTRY_INFO!C31)))","v":" "},{"$f":"IF(INTRO!$E$39<>\"Non-endemic\", 0, IF(INTRO!$E$37=\"Non-endemic\",0,IF(COUNTRY_INFO!$H31=1,COUNTRY_INFO!E31,0)))","v":0},{"$f":"IF(INTRO!$E$39<>\"Non-endemic\", 0, IF(INTRO!$E$37=\"Non-endemic\",0,IF(COUNTRY_INFO!$H31=1,COUNTRY_INFO!F31,0)))","v":0},{"$f":"IF(INTRO!$E$39<>\"Non-endemic\", 0, IF(INTRO!$E$37=\"Non-endemic\",0,IF(COUNTRY_INFO!$H31=1,COUNTRY_INFO!G31,0)))","v":0},0,{"$f":"IF(INTRO!$E$39=\"Non-endemic\",IF(INTRO!$E$37=\"Non-endemic\",\"Not required\",COUNTRY_INFO!V31),\"Treat with IVM\")","v":"Treat with IVM"},0,0,null,0]
[{"$f":"IF(INTRO!$E$39<>\"Non-endemic\", \" \", IF(INTRO!$E$37=\"Non-endemic\",\" \", IF(COUNTRY_INFO!A32=0,\" \",COUNTRY_INFO!A32)))","v":" "},{"$f":"IF(INTRO!$E$39<>\"Non-endemic\", \" \", IF(INTRO!$E$37=\"Non-endemic\",\" \", IF(COUNTRY_INFO!B32=0,\" \",COUNTRY_INFO!B32)))","v":" "},{"$f":"IF(INTRO!$E$39<>\"Non-endemic\", \" \", IF(INTRO!$E$37=\"Non-endemic\",\" \", IF(COUNTRY_INFO!C32=0,\" \",COUNTRY_INFO!C32)))","v":" "},{"$f":"IF(INTRO!$E$39<>\"Non-endemic\", 0, IF(INTRO!$E$37=\"Non-endemic\",0,IF(COUNTRY_INFO!$H32=1,COUNTRY_INFO!E32,0)))","v":0},{"$f":"IF(INTRO!$E$39<>\"Non-endemic\", 0, IF(INTRO!$E$37=\"Non-endemic\",0,IF(COUNTRY_INFO!$H32=1,COUNTRY_INFO!F32,0)))","v":0},{"$f":"IF(INTRO!$E$39<>\"Non-endemic\", 0, IF(INTRO!$E$37=\"Non-endemic\",0,IF(COUNTRY_INFO!$H32=1,COUNTRY_INFO!G32,0)))","v":0},0,{"$f":"IF(INTRO!$E$39=\"Non-endemic\",IF(INTRO!$E$37=\"Non-endemic\",\"Not required\",COUNTRY_INFO!V32),\"Treat with IVM\")","v":"Treat with IVM"},0,0,null,0]
[{"$f":"IF(INTRO!$E$39<>\"Non-endemic\", \" \", IF(INTRO!$E$37=\"Non-endemic\",\" \", IF(COUNTRY_INFO!A33=0,\" \",COUNTRY_INFO!A33)))","v":" "},{"$f":"IF(INTRO!$E$39<>\"Non-endemic\", \" \", IF(INTRO!$E$37=\"Non-endemic\",\" \", IF(COUNTRY_INFO!B33=0,\" \",COUNTRY_INFO!B33)))","v":" "},{"$f":"IF(INTRO!$E$39<>\"Non-endemic\", \" \", IF(INTRO!$E$37=\"Non-endemic\",\" \", IF(COUNTRY_INFO!C33=0,\" \",COUNTRY_INFO!C33)))","v":" "},{"$f":"IF(INTRO!$E$39<>\"Non-endemic\", 0, IF(INTRO!$E$37=\"Non-endemic\",0,IF(COUNTRY_INFO!$H33=1,COUNTRY_INFO!E33,0)))","v":0},{"$f":"IF(INTRO!$E$39<>\"Non-endemic\", 0, IF(INTRO!$E$37=\"Non-endemic\",0,IF(COUNTRY_INFO!$H33=1,COUNTRY_INFO!F33,0)))","v":0},{"$f":"IF(INTRO!$E$39<>\"Non-endemic\", 0, IF(INTRO!$E$37=\"Non-endemic\",0,IF(COUNTRY_INFO!$H33=1,COUNTRY_INFO!G33,0)))","v":0},0,{"$f":"IF(INTRO!$E$39=\"Non-endemic\",IF(INTRO!$E$37=\"Non-endemic\",\"Not required\",COUNTRY_INFO!V33),\"Treat with IVM\")","v":"Treat with IVM"},0,0,null,0]
[{"$f":"IF(INTRO!$E$39<>\"Non-endemic\", \" \", IF(INTRO!$E$37=\"Non-endemic\",\" \", IF(COUNTRY_INFO!A34=0,\" \",COUNTRY_INFO!A34)))","v":" "},{"$f":"IF(INTRO!$E$39<>\"Non-endemic\", \" \", IF(INTRO!$E$37=\"Non-endemic\",\" \", IF(COUNTRY_INFO!B34=0,\" \",COUNTRY_INFO!B34)))","v":" "},{"$f":"IF(INTRO!$E$39<>\"Non-endemic\", \" \", IF(INTRO!$E$37=\"Non-endemic\",\" \", IF(COUNTRY_INFO!C34=0,\" \",COUNTRY_INFO!C34)))","v":" "},{"$f":"IF(INTRO!$E$39<>\"Non-endemic\", 0, IF(INTRO!$E$37=\"Non-endemic\",0,IF(COUNTRY_INFO!$H34=1,COUNTRY_INFO!E34,0)))","v":0},{"$f":"IF(INTRO!$E$39<>\"Non-endemic\", 0, IF(INTRO!$E$37=\"Non-endemic\",0,IF(COUNTRY_INFO!$H34=1,COUNTRY_INFO!F34,0)))","v":0},{"$f":"IF(INTRO!$E$39<>\"Non-endemic\", 0, IF(INTRO!$E$37=\"Non-endemic\",0,IF(COUNTRY_INFO!$H34=1,COUNTRY_INFO!G34,0)))","v":0},0,{"$f":"IF(INTRO!$E$39=\"Non-endemic\",IF(INTRO!$E$37=\"Non-endemic\",\"Not required\",COUNTRY_INFO!V34),\"Treat with IVM\")","v":"Treat with IVM"},0,0,null,0]
[{"$f":"IF(INTRO!$E$39<>\"Non-endemic\", \" \", IF(INTRO!$E$37=\"Non-endemic\",\" \", IF(COUNTRY_INFO!A35=0,\" \",COUNTRY_INFO!A35)))","v":" "},{"$f":"IF(INTRO!$E$39<>\"Non-endemic\", \" \", IF(INTRO!$E$37=\"Non-endemic\",\" \", IF(COUNTRY_INFO!B35=0,\" \",COUNTRY_INFO!B35)))","v":" "},{"$f":"IF(INTRO!$E$39<>\"Non-endemic\", \" \", IF(INTRO!$E$37=\"Non-endemic\",\" \", IF(COUNTRY_INFO!C35=0,\" \",COUNTRY_INFO!C35)))","v":" "},{"$f":"IF(INTRO!$E$39<>\"Non-endemic\", 0, IF(INTRO!$E$37=\"Non-endemic\",0,IF(COUNTRY_INFO!$H35=1,COUNTRY_INFO!E35,0)))","v":0},{"$f":"IF(INTRO!$E$39<>\"Non-endemic\", 0, IF(INTRO!$E$37=\"Non-endemic\",0,IF(COUNTRY_INFO!$H35=1,COUNTRY_INFO!F35,0)))","v":0},{"$f":"IF(INTRO!$E$39<>\"Non-endemic\", 0, IF(INTRO!$E$37=\"Non-endemic\",0,IF(COUNTRY_INFO!$H35=1,COUNTRY_INFO!G35,0)))","v":0},0,{"$f":"IF(INTRO!$E$39=\"Non-endemic\",IF(INTRO!$E$37=\"Non-endemic\",\"Not required\",COUNTRY_INFO!V35),\"Treat with IVM\")","v":"Treat with IVM"},0,0,null,0]
[{"$f":"IF(INTRO!$E$39<>\"Non-endemic\", \" \", IF(INTRO!$E$37=\"Non-endemic\",\" \", IF(COUNTRY_INFO!A36=0,\" \",COUNTRY_INFO!A36)))","v":" "},{"$f":"IF(INTRO!$E$39<>\"Non-endemic\", \" \", IF(INTRO!$E$37=\"Non-endemic\",\" \", IF(COUNTRY_INFO!B36=0,\" \",COUNTRY_INFO!B36)))","v":" "},{"$f":"IF(INTRO!$E$39<>\"Non-endemic\", \" \", IF(INTRO!$E$37=\"Non-endemic\",\" \", IF(COUNTRY_INFO!C36=0,\" \",COUNTRY_INFO!C36)))","v":" "},{"$f":"IF(INTRO!$E$39<>\"Non-endemic\", 0, IF(INTRO!$E$37=\"Non-endemic\",0,IF(COUNTRY_INFO!$H36=1,COUNTRY_INFO!E36,0)))","v":0},{"$f":"IF(INTRO!$E$39<>\"Non-endemic\", 0, IF(INTRO!$E$37=\"Non-endemic\",0,IF(COUNTRY_INFO!$H36=1,COUNTRY_INFO!F36,0)))","v":0},{"$f":"IF(INTRO!$E$39<>\"Non-endemic\", 0, IF(INTRO!$E$37=\"Non-endemic\",0,IF(COUNTRY_INFO!$H36=1,COUNTRY_INFO!G36,0)))","v":0},0,{"$f":"IF(INTRO!$E$39=\"Non-endemic\",IF(INTRO!$E$37=\"Non-endemic\",\"Not required\",COUNTRY_INFO!V36),\"Treat with IVM\")","v":"Treat with IVM"},0,0,null,0]
[{"$f":"IF(INTRO!$E$39<>\"Non-endemic\", \" \", IF(INTRO!$E$37=\"Non-endemic\",\" \", IF(COUNTRY_INFO!A37=0,\" \",COUNTRY_INFO!A37)))","v":" "},{"$f":"IF(INTRO!$E$39<>\"Non-endemic\", \" \", IF(INTRO!$E$37=\"Non-endemic\",\" \", IF(COUNTRY_INFO!B37=0,\" \",COUNTRY_INFO!B37)))","v":" "},{"$f":"IF(INTRO!$E$39<>\"Non-endemic\", \" \", IF(INTRO!$E$37=\"Non-endemic\",\" \", IF(COUNTRY_INFO!C37=0,\" \",COUNTRY_INFO!C37)))","v":" "},{"$f":"IF(INTRO!$E$39<>\"Non-endemic\", 0, IF(INTRO!$E$37=\"Non-endemic\",0,IF(COUNTRY_INFO!$H37=1,COUNTRY_INFO!E37,0)))","v":0},{"$f":"IF(INTRO!$E$39<>\"Non-endemic\", 0, IF(INTRO!$E$37=\"Non-endemic\",0,IF(COUNTRY_INFO!$H37=1,COUNTRY_INFO!F37,0)))","v":0},{"$f":"IF(INTRO!$E$39<>\"Non-endemic\", 0, IF(INTRO!$E$37=\"Non-endemic\",0,IF(COUNTRY_INFO!$H37=1,COUNTRY_INFO!G37,0)))","v":0},0,{"$f":"IF(INTRO!$E$39=\"Non-endemic\",IF(INTRO!$E$37=\"Non-endemic\",\"Not required\",COUNTRY_INFO!V37),\"Treat with IVM\")","v":"Treat with IVM"},0,0,null,0]
[{"$f":"IF(INTRO!$E$39<>\"Non-endemic\", \" \", IF(INTRO!$E$37=\"Non-endemic\",\" \", IF(COUNTRY_INFO!A38=0,\" \",COUNTRY_INFO!A38)))","v":" "},{"$f":"IF(INTRO!$E$39<>\"Non-endemic\", \" \", IF(INTRO!$E$37=\"Non-endemic\",\" \", IF(COUNTRY_INFO!B38=0,\" \",COUNTRY_INFO!B38)))","v":" "},{"$f":"IF(INTRO!$E$39<>\"Non-endemic\", \" \", IF(INTRO!$E$37=\"Non-endemic\",\" \", IF(COUNTRY_INFO!C38=0,\" \",COUNTRY_INFO!C38)))","v":" "},{"$f":"IF(INTRO!$E$39<>\"Non-endemic\", 0, IF(INTRO!$E$37=\"Non-endemic\",0,IF(COUNTRY_INFO!$H38=1,COUNTRY_INFO!E38,0)))","v":0},{"$f":"IF(INTRO!$E$39<>\"Non-endemic\", 0, IF(INTRO!$E$37=\"Non-endemic\",0,IF(COUNTRY_INFO!$H38=1,COUNTRY_INFO!F38,0)))","v":0},{"$f":"IF(INTRO!$E$39<>\"Non-endemic\", 0, IF(INTRO!$E$37=\"Non-endemic\",0,IF(COUNTRY_INFO!$H38=1,COUNTRY_INFO!G38,0)))","v":0},0,{"$f":"IF(INTRO!$E$39=\"Non-endemic\",IF(INTRO!$E$37=\"Non-endemic\",\"Not required\",COUNTRY_INFO!V38),\"Treat with IVM\")","v":"Treat with IVM"},0,0,null,0]

{"sheet":"ALB_MBD","index":3,"n_rows":38,"n_cols":21,"rows_kept":38,"cut":false,"hidden":false,"merged":[[6,9,6,10],[6,11,7,11],[0,6,0,10],[1,6,1,7],[1,9,1,10],[5,6,5,11],[6,6,6,7],[3,0,3,2],[3,3,3,4],[5,0,5,2],[5,3,5,4],[5,5,7,5],[6,0,7,0],[6,1,7,1],[6,2,7,2],[6,3,7,3],[6,4,7,4],[5,12,5,17],[6,20,7,20],[5,18,5,20],[6,18,7,18],[6,19,7,19],[6,16,7,16],[6,17,7,17],[6,15,7,15],[6,12,7,12],[6,13,7,13],[6,14,7,14]]}
["Albendazole (ALB) and Mebendazole (MBD)",null,null,null,null,null,"Select medicine for treatment of STH for each age group"]
["Administrative structure, eligible population by age group, treatment plan and information about tablets",null,null,null,null,null,"ALB",null,"ALB","ALB"]
[]
["TOTAL",null,null,null,null,{"$f":"SUBTOTAL(9,F$10:F$1010)","v":0},null,{"$f":"SUBTOTAL(9,H$10:H$1010)","v":0},2459358,null,0,2459358,0,0,0,2459358,0,2459358,0,0,0]
[]
["Country administrative structure",null,null,"Treatment plan",null,"People targeted by PELF with ALB","Target population for STH",null,null,null,null,null,"Albendazole (ALB)",null,null,null,null,null,"Mebendazole (MBD)"]
["Country","Province/State","District","LF","STH",null,"PreSAC",null,"SAC","WRA",null,"Total","Total required","Remaining in stock (LF)","Tablets to be procured (LF)","Total required","Remaining in stock (STH)","Tablets to be procured (STH)","Total required","Remaining in stock","Tablets to be procured"]
[null,null,null,null,null,null,"Rounds","People","People","Rounds","People"]
[]
[{"$f":"IF(AND(INTRO!$E$37=\"Non-endemic\",INTRO!$E$41=\"Non-endemic\"),\" \",IF(COUNTRY_INFO!A10=0,\" \",COUNTRY_INFO!A10))","v":"MALAWI"},{"$f":"IF(AND(INTRO!$E$37=\"Non-endemic\",INTRO!$E$41=\"Non-endemic\"),\" \",IF(COUNTRY_INFO!B10=0,\" \",COUNTRY_INFO!B10))","v":"North"},{"$f":"IF(AND(INTRO!$E$37=\"Non-endemic\",INTRO!$E$41=\"Non-endemic\"),\" \",IF(COUNTRY_INFO!C10=0,\" \",COUNTRY_INFO!C10))","v":"Chitipa"},{"$f":"IF(AND(INTRO!$E$37=\"Non-endemic\",INTRO!$E$41=\"Non-endemic\"),0,COUNTRY_INFO!V10)","v":0},{"$f":"IF(AND(INTRO!$E$37=\"Non-endemic\",INTRO!$E$41=\"Non-endemic\"),0,COUNTRY_INFO!X10)","v":0},{"$f":"IF(INTRO!$E$39=\"Non-endemic\",IF($D10=1,DEC!I10,0),IF($D10=1,IVM!G10,0))","v":0},1,{"$f":"IF(OR(COUNTRY_INFO!N10=\"Unknown\",COUNTRY_INFO!N10=\"Surveillance\",COUNTRY_INFO!N10=\"Not required\",COUNTRY_INFO!N10=0),0,IF(INTRO!$E$39=\"Non-endemic\",IF(AND($E10<>0,$G10=\"\"),IF($F10=0,COUNTRY_INFO!N10*$E10,COUNTRY_INFO!N10*($E10-$D10)),IF(AND($E10<>0,$G10<>0),IF($F10=0,COUNTRY_INFO!N10*$G10,COUNTRY_INFO!N10*($G10-$D10)),0)),IF($G10=\"\",COUNTRY_INFO!N10*$E10,COUNTRY_INFO!N10*$G10)))","v":0},{"$f":"IF(OR(COUNTRY_INFO!O10=\"Unknown\",COUNTRY_INFO!O10=\"Surveillance\",COUNTRY_INFO!O10=\"Not required\",COUNTRY_INFO!O10=0),0,IF($E10<>0, IF($F10=0,COUNTRY_INFO!O10*$E10,COUNTRY_INFO!O10*($E10-$D10)),COUNTRY_INFO!O10*$E10))","v":0},1,{"$f":"IF(OR(COUNTRY_INFO!P10=\"Unknown\",COUNTRY_INFO!P10=\"Surveillance\",COUNTRY_INFO!P10=\"Not required\",COUNTRY_INFO!P10=0),0,IF(AND($E10<>0,$J10=\"\"),IF($F10=0,COUNTRY_INFO!P10*$E10,COUNTRY_INFO!P10*($E10-$D10)), IF(AND($E10<>0,$J10<>0),IF($F10=0,COUNTRY_INFO!P10*$J10,COUNTRY_INFO!P10*($J10-$D10)), COUNTRY_INFO!P10*$J10)))","v":0},{"$f":"ROUND($H10,0)+ROUND($I10,0)+ROUND($K10,0)","v":0},{"$f":"$F10","v":0},null,{"$f":"IF($M10>$N10, $M10-$N10,0)","v":0},{"$f":"ROUND((IF($G$2=\"ALB\",$H10,0)+IF($I$2=\"ALB\",$I10,0)+IF($J$2=\"ALB\",$K10,0)),0)","v":0},null,{"$f":"IF($P10>$Q10,$P10-$Q10,0)","v":0},{"$f":"ROUND((IF($G$2=\"MBD\",$H10,0)+IF($I$2=\"MBD\",$I10,0)+IF($J$2=\"MBD\",$K10,0)),0)","v":0},null,{"$f":"IF($S10>$T10,$S10-$T10,0)","v":0}]
[{"$f":"IF(AND(INTRO!$E$37=\"Non-endemic\",INTRO!$E$41=\"Non-endemic\"),\" \",IF(COUNTRY_INFO!A11=0,\" \",COUNTRY_INFO!A11))","v":"MALAWI"},{"$f":"IF(AND(INTRO!$E$37=\"Non-endemic\",INTRO!$E$41=\"Non-endemic\"),\" \",IF(COUNTRY_INFO!B11=0,\" \",COUNTRY_INFO!B11))","v":"North"},{"$f":"IF(AND(INTRO!$E$37=\"Non-endemic\",INTRO!$E$41=\"Non-endemic\"),\" \",IF(COUNTRY_INFO!C11=0,\" \",COUNTRY_INFO!C11))","v":"Karonga"},{"$f":"IF(AND(INTRO!$E$37=\"Non-endemic\",INTRO!$E$41=\"Non-endemic\"),0,COUNTRY_INFO!V11)","v":0},{"$f":"IF(AND(INTRO!$E$37=\"Non-endemic\",INTRO!$E$41=\"Non-endemic\"),0,COUNTRY_INFO!X11)","v":0},{"$f":"IF(INTRO!$E$39=\"Non-endemic\",IF($D11=1,DEC!I11,0),IF($D11=1,IVM!G11,0))","v":0},1,{"$f":"IF(OR(COUNTRY_INFO!N11=\"Unknown\",COUNTRY_INFO!N11=\"Surveillance\",COUNTRY_INFO!N11=\"Not required\",COUNTRY_INFO!N11=0),0,IF(INTRO!$E$39=\"Non-endemic\",IF(AND($E11<>0,$G11=\"\"),IF($F11=0,COUNTRY_INFO!N11*$E11,COUNTRY_INFO!N11*($E11-$D11)),IF(AND($E11<>0,$G11<>0),IF($F11=0,COUNTRY_INFO!N11*$G11,COUNTRY_INFO!N11*($G11-$D11)),0)),IF($G11=\"\",COUNTRY_INFO!N11*$E11,COUNTRY_INFO!N11*$G11)))","v":0},{"$f":"IF(OR(COUNTRY_INFO!O11=\"Unknown\",COUNTRY_INFO!O11=\"Surveillance\",COUNTRY_INFO!O11=\"Not required\",COUNTRY_INFO!O11=0),0,IF($E11<>0, IF($F11=0,COUNTRY_INFO!O11*$E11,COUNTRY_INFO!O11*($E11-$D11)),COUNTRY_INFO!O11*$E11))","v":0},1,{"$f":"IF(OR(COUNTRY_INFO!P11=\"Unknown\",COUNTRY_INFO!P11=\"Surveillance\",COUNTRY_INFO!P11=\"Not required\",COUNTRY_INFO!P11=0),0,IF(AND($E11<>0,$J11=\"\"),IF($F11=0,COUNTRY_INFO!P11*$E11,COUNTRY_INFO!P11*($E11-$D11)), IF(AND($E11<>0,$J11<>0),IF($F11=0,COUNTRY_INFO!P11*$J11,COUNTRY_INFO!P11*($J11-$D11)), COUNTRY_INFO!P11*$J11)))","v":0},0,0,null,0,0,null,0,0,null,0]
[{"$f":"IF(AND(INTRO!$E$37=\"Non-endemic\",INTRO!$E$41=\"Non-endemic\"),\" \",IF(COUNTRY_INFO!A12=0,\" \",COUNTRY_INFO!A12))","v":"MALAWI"},{"$f":"IF(AND(INTRO!$E$37=\"Non-endemic\",INTRO!$E$41=\"Non-endemic\"),\" \",IF(COUNTRY_INFO!B12=0,\" \",COUNTRY_INFO!B12))","v":"North"},{"$f":"IF(AND(INTRO!$E$37=\"Non-endemic\",INTRO!$E$41=\"Non-endemic\"),\" \",IF(COUNTRY_INFO!C12=0,\" \",COUNTRY_INFO!C12))","v":"Rumphi"},{"$f":"IF(AND(INTRO!$E$37=\"Non-endemic\",INTRO!$E$41=\"Non-endemic\"),0,COUNTRY_INFO!V12)","v":0},{"$f":"IF(AND(INTRO!$E$37=\"Non-endemic\",INTRO!$E$41=\"Non-endemic\"),0,COUNTRY_INFO!X12)","v":0},{"$f":"IF(INTRO!$E$39=\"Non-endemic\",IF($D12=1,DEC!I12,0),IF($D12=1,IVM!G12,0))","v":0},1,{"$f":"IF(OR(COUNTRY_INFO!N12=\"Unknown\",COUNTRY_INFO!N12=\"Surveillance\",COUNTRY_INFO!N12=\"Not required\",COUNTRY_INFO!N12=0),0,IF(INTRO!$E$39=\"Non-endemic\",IF(AND($E12<>0,$G12=\"\"),IF($F12=0,COUNTRY_INFO!N12*$E12,COUNTRY_INFO!N12*($E12-$D12)),IF(AND($E12<>0,$G12<>0),IF($F12=0,COUNTRY_INFO!N12*$G12,COUNTRY_INFO!N12*($G12-$D12)),0)),IF($G12=\"\",COUNTRY_INFO!N12*$E12,COUNTRY_INFO!N12*$G12)))","v":0},{"$f":"IF(OR(COUNTRY_INFO!O12=\"Unknown\",COUNTRY_INFO!O12=\"Surveillance\",COUNTRY_INFO!O12=\"Not required\",COUNTRY_INFO!O12=0),0,IF($E12<>0, IF($F12=0,COUNTRY_INFO!O12*$E12,COUNTRY_INFO!O12*($E12-$D12)),COUNTRY_INFO!O12*$E12))","v":0},1,{"$f":"IF(OR(COUNTRY_INFO!P12=\"Unknown\",COUNTRY_INFO!P12=\"Surveillance\",COUNTRY_INFO!P12=\"Not required\",COUNTRY_INFO!P12=0),0,IF(AND($E12<>0,$J12=\"\"),IF($F12=0,COUNTRY_INFO!P12*$E12,COUNTRY_INFO!P12*($E12-$D12)), IF(AND($E12<>0,$J12<>0),IF($F12=0,COUNTRY_INFO!P12*$J12,COUNTRY_INFO!P12*($J12-$D12)), COUNTRY_INFO!P12*$J12)))","v":0},0,0,null,0,0,null,0,0,null,0]
[{"$f":"IF(AND(INTRO!$E$37=\"Non-endemic\",INTRO!$E$41=\"Non-endemic\"),\" \",IF(COUNTRY_INFO!A13=0,\" \",COUNTRY_INFO!A13))","v":"MALAWI"},{"$f":"IF(AND(INTRO!$E$37=\"Non-endemic\",INTRO!$E$41=\"Non-endemic\"),\" \",IF(COUNTRY_INFO!B13=0,\" \",COUNTRY_INFO!B13))","v":"North"},{"$f":"IF(AND(INTRO!$E$37=\"Non-endemic\",INTRO!$E$41=\"Non-endemic\"),\" \",IF(COUNTRY_INFO!C13=0,\" \",COUNTRY_INFO!C13))","v":"Mzimba North"},{"$f":"IF(AND(INTRO!$E$37=\"Non-endemic\",INTRO!$E$41=\"Non-endemic\"),0,COUNTRY_INFO!V13)","v":0},{"$f":"IF(AND(INTRO!$E$37=\"Non-endemic\",INTRO!$E$41=\"Non-endemic\"),0,COUNTRY_INFO!X13)","v":1},{"$f":"IF(INTRO!$E$39=\"Non-endemic\",IF($D13=1,DEC!I13,0),IF($D13=1,IVM!G13,0))","v":0},1,{"$f":"IF(OR(COUNTRY_INFO!N13=\"Unknown\",COUNTRY_INFO!N13=\"Surveillance\",COUNTRY_INFO!N13=\"Not required\",COUNTRY_INFO!N13=0),0,IF(INTRO!$E$39=\"Non-endemic\",IF(AND($E13<>0,$G13=\"\"),IF($F13=0,COUNTRY_INFO!N13*$E13,COUNTRY_INFO!N13*($E13-$D13)),IF(AND($E13<>0,$G13<>0),IF($F13=0,COUNTRY_INFO!N13*$G13,COUNTRY_INFO!N13*($G13-$D13)),0)),IF($G13=\"\",COUNTRY_INFO!N13*$E13,COUNTRY_INFO!N13*$G13)))","v":0},{"$f":"IF(OR(COUNTRY_INFO!O13=\"Unknown\",COUNTRY_INFO!O13=\"Surveillance\",COUNTRY_INFO!O13=\"Not required\",COUNTRY_INFO!O13=0),0,IF($E13<>0, IF($F13=0,COUNTRY_INFO!O13*$E13,COUNTRY_INFO!O13*($E13-$D13)),COUNTRY_INFO!O13*$E13))","v":301941},1,{"$f":"IF(OR(COUNTRY_INFO!P13=\"Unknown\",COUNTRY_INFO!P13=\"Surveillance\",COUNTRY_INFO!P13=\"Not required\",COUNTRY_INFO!P13=0),0,IF(AND($E13<>0,$J13=\"\"),IF($F13=0,COUNTRY_INFO!P13*$E13,COUNTRY_INFO!P13*($E13-$D13)), IF(AND($E13<>0,$J13<>0),IF($F13=0,COUNTRY_INFO!P13*$J13,COUNTRY_INFO!P13*($J13-$D13)), COUNTRY_INFO!P13*$J13)))","v":0},301941,0,null,0,301941,null,301941,0,null,0]
[{"$f":"IF(AND(INTRO!$E$37=\"Non-endemic\",INTRO!$E$41=\"Non-endemic\"),\" \",IF(COUNTRY_INFO!A14=0,\" \",COUNTRY_INFO!A14))","v":"MALAWI"},{"$f":"IF(AND(INTRO!$E$37=\"Non-endemic\",INTRO!$E$41=\"Non-endemic\"),\" \",IF(COUNTRY_INFO!B14=0,\" \",COUNTRY_INFO!B14))","v":"North"},{"$f":"IF(AND(INTRO!$E$37=\"Non-endemic\",INTRO!$E$41=\"Non-endemic\"),\" \",IF(COUNTRY_INFO!C14=0,\" \",COUNTRY_INFO!C14))","v":"Mzimba South"},{"$f":"IF(AND(INTRO!$E$37=\"Non-endemic\",INTRO!$E$41=\"Non-endemic\"),0,COUNTRY_INFO!V14)","v":0},{"$f":"IF(AND(INTRO!$E$37=\"Non-endemic\",INTRO!$E$41=\"Non-endemic\"),0,COUNTRY_INFO!X14)","v":1},{"$f":"IF(INTRO!$E$39=\"Non-endemic\",IF($D14=1,DEC!I14,0),IF($D14=1,IVM!G14,0))","v":0},1,{"$f":"IF(OR(COUNTRY_INFO!N14=\"Unknown\",COUNTRY_INFO!N14=\"Surveillance\",COUNTRY_INFO!N14=\"Not required\",COUNTRY_INFO!N14=0),0,IF(INTRO!$E$39=\"Non-endemic\",IF(AND($E14<>0,$G14=\"\"),IF($F14=0,COUNTRY_INFO!N14*$E14,COUNTRY_INFO!N14*($E14-$D14)),IF(AND($E14<>0,$G14<>0),IF($F14=0,COUNTRY_INFO!N14*$G14,COUNTRY_INFO!N14*($G14-$D14)),0)),IF($G14=\"\",COUNTRY_INFO!N14*$E14,COUNTRY_INFO!N14*$G14)))","v":0},{"$f":"IF(OR(COUNTRY_INFO!O14=\"Unknown\",COUNTRY_INFO!O14=\"Surveillance\",COUNTRY_INFO!O14=\"Not required\",COUNTRY_INFO!O14=0),0,IF($E14<>0, IF($F14=0,COUNTRY_INFO!O14*$E14,COUNTRY_INFO!O14*($E14-$D14)),COUNTRY_INFO!O14*$E14))","v":71062},1,{"$f":"IF(OR(COUNTRY_INFO!P14=\"Unknown\",COUNTRY_INFO!P14=\"Surveillance\",COUNTRY_INFO!P14=\"Not required\",COUNTRY_INFO!P14=0),0,IF(AND($E14<>0,$J14=\"\"),IF($F14=0,COUNTRY_INFO!P14*$E14,COUNTRY_INFO!P14*($E14-$D14)), IF(AND($E14<>0,$J14<>0),IF($F14=0,COUNTRY_INFO!P14*$J14,COUNTRY_INFO!P14*($J14-$D14)), COUNTRY_INFO!P14*$J14)))","v":0},71062,0,null,0,71062,null,71062,0,null,0]
[{"$f":"IF(AND(INTRO!$E$37=\"Non-endemic\",INTRO!$E$41=\"Non-endemic\"),\" \",IF(COUNTRY_INFO!A15=0,\" \",COUNTRY_INFO!A15))","v":"MALAWI"},{"$f":"IF(AND(INTRO!$E$37=\"Non-endemic\",INTRO!$E$41=\"Non-endemic\"),\" \",IF(COUNTRY_INFO!B15=0,\" \",COUNTRY_INFO!B15))","v":"North"},{"$f":"IF(AND(INTRO!$E$37=\"Non-endemic\",INTRO!$E$41=\"Non-endemic\"),\" \",IF(COUNTRY_INFO!C15=0,\" \",COUNTRY_INFO!C15))","v":"Nkhata bay"},{"$f":"IF(AND(INTRO!$E$37=\"Non-endemic\",INTRO!$E$41=\"Non-endemic\"),0,COUNTRY_INFO!V15)","v":0},{"$f":"IF(AND(INTRO!$E$37=\"Non-endemic\",INTRO!$E$41=\"Non-endemic\"),0,COUNTRY_INFO!X15)","v":1},{"$f":"IF(INTRO!$E$39=\"Non-endemic\",IF($D15=1,DEC!I15,0),IF($D15=1,IVM!G15,0))","v":0},1,{"$f":"IF(OR(COUNTRY_INFO!N15=\"Unknown\",COUNTRY_INFO!N15=\"Surveillance\",COUNTRY_INFO!N15=\"Not required\",COUNTRY_INFO!N15=0),0,IF(INTRO!$E$39=\"Non-endemic\",IF(AND($E15<>0,$G15=\"\"),IF($F15=0,COUNTRY_INFO!N15*$E15,COUNTRY_INFO!N15*($E15-$D15)),IF(AND($E15<>0,$G15<>0),IF($F15=0,COUNTRY_INFO!N15*$G15,COUNTRY_INFO!N15*($G15-$D15)),0)),IF($G15=\"\",COUNTRY_INFO!N15*$E15,COUNTRY_INFO!N15*$G15)))","v":0},{"$f":"IF(OR(COUNTRY_INFO!O15=\"Unknown\",COUNTRY_INFO!O15=\"Surveillance\",COUNTRY_INFO!O15=\"Not required\",COUNTRY_INFO!O15=0),0,IF($E15<>0, IF($F15=0,COUNTRY_INFO!O15*$E15,COUNTRY_INFO!O15*($E15-$D15)),COUNTRY_INFO!O15*$E15))","v":91426},1,{"$f":"IF(OR(COUNTRY_INFO!P15=\"Unknown\",COUNTRY_INFO!P15=\"Surveillance\",COUNTRY_INFO!P15=\"Not required\",COUNTRY_INFO!P15=0),0,IF(AND($E15<>0,$J15=\"\"),IF($F15=0,COUNTRY_INFO!P15*$E15,COUNTRY_INFO!P15*($E15-$D15)), IF(AND($E15<>0,$J15<>0),IF($F15=0,COUNTRY_INFO!P15*$J15,COUNTRY_INFO!P15*($J15-$D15)), COUNTRY_INFO!P15*$J15)))","v":0},91426,0,null,0,91426,null,91426,0,null,0]
[{"$f":"IF(AND(INTRO!$E$37=\"Non-endemic\",INTRO!$E$41=\"Non-endemic\"),\" \",IF(COUNTRY_INFO!A16=0,\" \",COUNTRY_INFO!A16))","v":"MALAWI"},{"$f":"IF(AND(INTRO!$E$37=\"Non-endemic\",INTRO!$E$41=\"Non-endemic\"),\" \",IF(COUNTRY_INFO!B16=0,\" \",COUNTRY_INFO!B16))","v":"North"},{"$f":"IF(AND(INTRO!$E$37=\"Non-endemic\",INTRO!$E$41=\"Non-endemic\"),\" \",IF(COUNTRY_INFO!C16=0,\" \",COUNTRY_INFO!C16))","v":"Likoma"},{"$f":"IF(AND(INTRO!$E$37=\"Non-endemic\",INTRO!$E$41=\"Non-endemic\"),0,COUNTRY_INFO!V16)","v":0},{"$f":"IF(AND(INTRO!$E$37=\"Non-endemic\",INTRO!$E$41=\"Non-endemic\"),0,COUNTRY_INFO!X16)","v":0},{"$f":"IF(INTRO!$E$39=\"Non-endemic\",IF($D16=1,DEC!I16,0),IF($D16=1,IVM!G16,0))","v":0},1,{"$f":"IF(OR(COUNTRY_INFO!N16=\"Unknown\",COUNTRY_INFO!N16=\"Surveillance\",COUNTRY_INFO!N16=\"Not required\",COUNTRY_INFO!N16=0),0,IF(INTRO!$E$39=\"Non-endemic\",IF(AND($E16<>0,$G16=\"\"),IF($F16=0,COUNTRY_INFO!N16*$E16,COUNTRY_INFO!N16*($E16-$D16)),IF(AND($E16<>0,$G16<>0),IF($F16=0,COUNTRY_INFO!N16*$G16,COUNTRY_INFO!N16*($G16-$D16)),0)),IF($G16=\"\",COUNTRY_INFO!N16*$E16,COUNTRY_INFO!N16*$G16)))","v":0},{"$f":"IF(OR(COUNTRY_INFO!O16=\"Unknown\",COUNTRY_INFO!O16=\"Surveillance\",COUNTRY_INFO!O16=\"Not required\",COUNTRY_INFO!O16=0),0,IF($E16<>0, IF($F16=0,COUNTRY_INFO!O16*$E16,COUNTRY_INFO!O16*($E16-$D16)),COUNTRY_INFO!O16*$E16))","v":0},1,{"$f":"IF(OR(COUNTRY_INFO!P16=\"Unknown\",COUNTRY_INFO!P16=\"Surveillance\",COUNTRY_INFO!P16=\"Not required\",COUNTRY_INFO!P16=0),0,IF(AND($E16<>0,$J16=\"\"),IF($F16=0,COUNTRY_INFO!P16*$E16,COUNTRY_INFO!P16*($E16-$D16)), IF(AND($E16<>0,$J16<>0),IF($F16=0,COUNTRY_INFO!P16*$J16,COUNTRY_INFO!P16*($J16-$D16)), COUNTRY_INFO!P16*$J16)))","v":0},0,0,null,0,0,null,0,0,null,0]
[{"$f":"IF(AND(INTRO!$E$37=\"Non-endemic\",INTRO!$E$41=\"Non-endemic\"),\" \",IF(COUNTRY_INFO!A17=0,\" \",COUNTRY_INFO!A17))","v":"MALAWI"},{"$f":"IF(AND(INTRO!$E$37=\"Non-endemic\",INTRO!$E$41=\"Non-endemic\"),\" \",IF(COUNTRY_INFO!B17=0,\" \",COUNTRY_INFO!B17))","v":"Central"},{"$f":"IF(AND(INTRO!$E$37=\"Non-endemic\",INTRO!$E$41=\"Non-endemic\"),\" \",IF(COUNTRY_INFO!C17=0,\" \",COUNTRY_INFO!C17))","v":"Kasungu"},{"$f":"IF(AND(INTRO!$E$37=\"Non-endemic\",INTRO!$E$41=\"Non-endemic\"),0,COUNTRY_INFO!V17)","v":0},{"$f":"IF(AND(INTRO!$E$37=\"Non-endemic\",INTRO!$E$41=\"Non-endemic\"),0,COUNTRY_INFO!X17)","v":0},{"$f":"IF(INTRO!$E$39=\"Non-endemic\",IF($D17=1,DEC!I17,0),IF($D17=1,IVM!G17,0))","v":0},1,{"$f":"IF(OR(COUNTRY_INFO!N17=\"Unknown\",COUNTRY_INFO!N17=\"Surveillance\",COUNTRY_INFO!N17=\"Not required\",COUNTRY_INFO!N17=0),0,IF(INTRO!$E$39=\"Non-endemic\",IF(AND($E17<>0,$G17=\"\"),IF($F17=0,COUNTRY_INFO!N17*$E17,COUNTRY_INFO!N17*($E17-$D17)),IF(AND($E17<>0,$G17<>0),IF($F17=0,COUNTRY_INFO!N17*$G17,COUNTRY_INFO!N17*($G17-$D17)),0)),IF($G17=\"\",COUNTRY_INFO!N17*$E17,COUNTRY_INFO!N17*$G17)))","v":0},{"$f":"IF(OR(COUNTRY_INFO!O17=\"Unknown\",COUNTRY_INFO!O17=\"Surveillance\",COUNTRY_INFO!O17=\"Not required\",COUNTRY_INFO!O17=0),0,IF($E17<>0, IF($F17=0,COUNTRY_INFO!O17*$E17,COUNTRY_INFO!O17*($E17-$D17)),COUNTRY_INFO!O17*$E17))","v":0},1,{"$f":"IF(OR(COUNTRY_INFO!P17=\"Unknown\",COUNTRY_INFO!P17=\"Surveillance\",COUNTRY_INFO!P17=\"Not required\",COUNTRY_INFO!P17=0),0,IF(AND($E17<>0,$J17=\"\"),IF($F17=0,COUNTRY_INFO!P17*$E17,COUNTRY_INFO!P17*($E17-$D17)), IF(AND($E17<>0,$J17<>0),IF($F17=0,COUNTRY_INFO!P17*$J17,COUNTRY_INFO!P17*($J17-$D17)), COUNTRY_INFO!P17*$J17)))","v":0},0,0,null,0,0,null,0,0,null,0]
[{"$f":"IF(AND(INTRO!$E$37=\"Non-endemic\",INTRO!$E$41=\"Non-endemic\"),\" \",IF(COUNTRY_INFO!A18=0,\" \",COUNTRY_INFO!A18))","v":"MALAWI"},{"$f":"IF(AND(INTRO!$E$37=\"Non-endemic\",INTRO!$E$41=\"Non-endemic\"),\" \",IF(COUNTRY_INFO!B18=0,\" \",COUNTRY_INFO!B18))","v":"Central"},{"$f":"IF(AND(INTRO!$E$37=\"Non-endemic\",INTRO!$E$41=\"Non-endemic\"),\" \",IF(COUNTRY_INFO!C18=0,\" \",COUNTRY_INFO!C18))","v":"Dedza"},{"$f":"IF(AND(INTRO!$E$37=\"Non-endemic\",INTRO!$E$41=\"Non-endemic\"),0,COUNTRY_INFO!V18)","v":0},{"$f":"IF(AND(INTRO!$E$37=\"Non-endemic\",INTRO!$E$41=\"Non-endemic\"),0,COUNTRY_INFO!X18)","v":0},{"$f":"IF(INTRO!$E$39=\"Non-endemic\",IF($D18=1,DEC!I18,0),IF($D18=1,IVM!G18,0))","v":0},1,{"$f":"IF(OR(COUNTRY_INFO!N18=\"Unknown\",COUNTRY_INFO!N18=\"Surveillance\",COUNTRY_INFO!N18=\"Not required\",COUNTRY_INFO!N18=0),0,IF(INTRO!$E$39=\"Non-endemic\",IF(AND($E18<>0,$G18=\"\"),IF($F18=0,COUNTRY_INFO!N18*$E18,COUNTRY_INFO!N18*($E18-$D18)),IF(AND($E18<>0,$G18<>0),IF($F18=0,COUNTRY_INFO!N18*$G18,COUNTRY_INFO!N18*($G18-$D18)),0)),IF($G18=\"\",COUNTRY_INFO!N18*$E18,COUNTRY_INFO!N18*$G18)))","v":0},{"$f":"IF(OR(COUNTRY_INFO!O18=\"Unknown\",COUNTRY_INFO!O18=\"Surveillance\",COUNTRY_INFO!O18=\"Not required\",COUNTRY_INFO!O18=0),0,IF($E18<>0, IF($F18=0,COUNTRY_INFO!O18*$E18,COUNTRY_INFO!O18*($E18-$D18)),COUNTRY_INFO!O18*$E18))","v":0},1,{"$f":"IF(OR(COUNTRY_INFO!P18=\"Unknown\",COUNTRY_INFO!P18=\"Surveillance\",COUNTRY_INFO!P18=\"Not required\",COUNTRY_INFO!P18=0),0,IF(AND($E18<>0,$J18=\"\"),IF($F18=0,COUNTRY_INFO!P18*$E18,COUNTRY_INFO!P18*($E18-$D18)), IF(AND($E18<>0,$J18<>0),IF($F18=0,COUNTRY_INFO!P18*$J18,COUNTRY_INFO!P18*($J18-$D18)), COUNTRY_INFO!P18*$J18)))","v":0},0,0,null,0,0,null,0,0,null,0]
[{"$f":"IF(AND(INTRO!$E$37=\"Non-endemic\",INTRO!$E$41=\"Non-endemic\"),\" \",IF(COUNTRY_INFO!A19=0,\" \",COUNTRY_INFO!A19))","v":"MALAWI"},{"$f":"IF(AND(INTRO!$E$37=\"Non-endemic\",INTRO!$E$41=\"Non-endemic\"),\" \",IF(COUNTRY_INFO!B19=0,\" \",COUNTRY_INFO!B19))","v":"Central"},{"$f":"IF(AND(INTRO!$E$37=\"Non-endemic\",INTRO!$E$41=\"Non-endemic\"),\" \",IF(COUNTRY_INFO!C19=0,\" \",COUNTRY_INFO!C19))","v":"Dowa"},{"$f":"IF(AND(INTRO!$E$37=\"Non-endemic\",INTRO!$E$41=\"Non-endemic\"),0,COUNTRY_INFO!V19)","v":0},{"$f":"IF(AND(INTRO!$E$37=\"Non-endemic\",INTRO!$E$41=\"Non-endemic\"),0,COUNTRY_INFO!X19)","v":0},{"$f":"IF(INTRO!$E$39=\"Non-endemic\",IF($D19=1,DEC!I19,0),IF($D19=1,IVM!G19,0))","v":0},1,{"$f":"IF(OR(COUNTRY_INFO!N19=\"Unknown\",COUNTRY_INFO!N19=\"Surveillance\",COUNTRY_INFO!N19=\"Not required\",COUNTRY_INFO!N19=0),0,IF(INTRO!$E$39=\"Non-endemic\",IF(AND($E19<>0,$G19=\"\"),IF($F19=0,COUNTRY_INFO!N19*$E19,COUNTRY_INFO!N19*($E19-$D19)),IF(AND($E19<>0,$G19<>0),IF($F19=0,COUNTRY_INFO!N19*$G19,COUNTRY_INFO!N19*($G19-$D19)),0)),IF($G19=\"\",COUNTRY_INFO!N19*$E19,COUNTRY_INFO!N19*$G19)))","v":0},{"$f":"IF(OR(COUNTRY_INFO!O19=\"Unknown\",COUNTRY_INFO!O19=\"Surveillance\",COUNTRY_INFO!O19=\"Not required\",COUNTRY_INFO!O19=0),0,IF($E19<>0, IF($F19=0,COUNTRY_INFO!O19*$E19,COUNTRY_INFO!O19*($E19-$D19)),COUNTRY_INFO!O19*$E19))","v":0},1,{"$f":"IF(OR(COUNTRY_INFO!P19=\"Unknown\",COUNTRY_INFO!P19=\"Surveillance\",COUNTRY_INFO!P19=\"Not required\",COUNTRY_INFO!P19=0),0,IF(AND($E19<>0,$J19=\"\"),IF($F19=0,COUNTRY_INFO!P19*$E19,COUNTRY_INFO!P19*($E19-$D19)), IF(AND($E19<>0,$J19<>0),IF($F19=0,COUNTRY_INFO!P19*$J19,COUNTRY_INFO!P19*($J19-$D19)), COUNTRY_INFO!P19*$J19)))","v":0},0,0,null,0,0,null,0,0,null,0]
[{"$f":"IF(AND(INTRO!$E$37=\"Non-endemic\",INTRO!$E$41=\"Non-endemic\"),\" \",IF(COUNTRY_INFO!A20=0,\" \",COUNTRY_INFO!A20))","v":"MALAWI"},{"$f":"IF(AND(INTRO!$E$37=\"Non-endemic\",INTRO!$E$41=\"Non-endemic\"),\" \",IF(COUNTRY_INFO!B20=0,\" \",COUNTRY_INFO!B20))","v":"Central"},{"$f":"IF(AND(INTRO!$E$37=\"Non-endemic\",INTRO!$E$41=\"Non-endemic\"),\" \",IF(COUNTRY_INFO!C20=0,\" \",COUNTRY_INFO!C20))","v":"Lilongwe"},{"$f":"IF(AND(INTRO!$E$37=\"Non-endemic\",INTRO!$E$41=\"Non-endemic\"),0,COUNTRY_INFO!V20)","v":0},{"$f":"IF(AND(INTRO!$E$37=\"Non-endemic\",INTRO!$E$41=\"Non-endemic\"),0,COUNTRY_INFO!X20)","v":1},{"$f":"IF(INTRO!$E$39=\"Non-endemic\",IF($D20=1,DEC!I20,0),IF($D20=1,IVM!G20,0))","v":0},1,{"$f":"IF(OR(COUNTRY_INFO!N20=\"Unknown\",COUNTRY_INFO!N20=\"Surveillance\",COUNTRY_INFO!N20=\"Not required\",COUNTRY_INFO!N20=0),0,IF(INTRO!$E$39=\"Non-endemic\",IF(AND($E20<>0,$G20=\"\"),IF($F20=0,COUNTRY_INFO!N20*$E20,COUNTRY_INFO!N20*($E20-$D20)),IF(AND($E20<>0,$G20<>0),IF($F20=0,COUNTRY_INFO!N20*$G20,COUNTRY_INFO!N20*($G20-$D20)),0)),IF($G20=\"\",COUNTRY_INFO!N20*$E20,COUNTRY_INFO!N20*$G20)))","v":0},{"$f":"IF(OR(COUNTRY_INFO!O20=\"Unknown\",COUNTRY_INFO!O20=\"Surveillance\",COUNTRY_INFO!O20=\"Not required\",COUNTRY_INFO!O20=0),0,IF($E20<>0, IF($F20=0,COUNTRY_INFO!O20*$E20,COUNTRY_INFO!O20*($E20-$D20)),COUNTRY_INFO!O20*$E20))","v":843632},1,{"$f":"IF(OR(COUNTRY_INFO!P20=\"Unknown\",COUNTRY_INFO!P20=\"Surveillance\",COUNTRY_INFO!P20=\"Not required\",COUNTRY_INFO!P20=0),0,IF(AND($E20<>0,$J20=\"\"),IF($F20=0,COUNTRY_INFO!P20*$E20,COUNTRY_INFO!P20*($E20-$D20)), IF(AND($E20<>0,$J20<>0),IF($F20=0,COUNTRY_INFO!P20*$J20,COUNTRY_INFO!P20*($J20-$D20)), COUNTRY_INFO!P20*$J20)))","v":0},843632,0,null,0,843632,null,843632,0,null,0]
[{"$f":"IF(AND(INTRO!$E$37=\"Non-endemic\",INTRO!$E$41=\"Non-endemic\"),\" \",IF(COUNTRY_INFO!A21=0,\" \",COUNTRY_INFO!A21))","v":"MALAWI"},{"$f":"IF(AND(INTRO!$E$37=\"Non-endemic\",INTRO!$E$41=\"Non-endemic\"),\" \",IF(COUNTRY_INFO!B21=0,\" \",COUNTRY_INFO!B21))","v":"Central"},{"$f":"IF(AND(INTRO!$E$37=\"Non-endemic\",INTRO!$E$41=\"Non-endemic\"),\" \",IF(COUNTRY_INFO!C21=0,\" \",COUNTRY_INFO!C21))","v":"Mchinji"},{"$f":"IF(AND(INTRO!$E$37=\"Non-endemic\",INTRO!$E$41=\"Non-endemic\"),0,COUNTRY_INFO!V21)","v":0},{"$f":"IF(AND(INTRO!$E$37=\"Non-endemic\",INTRO!$E$41=\"Non-endemic\"),0,COUNTRY_INFO!X21)","v":0},{"$f":"IF(INTRO!$E$39=\"Non-endemic\",IF($D21=1,DEC!I21,0),IF($D21=1,IVM!G21,0))","v":0},1,{"$f":"IF(OR(COUNTRY_INFO!N21=\"Unknown\",COUNTRY_INFO!N21=\"Surveillance\",COUNTRY_INFO!N21=\"Not required\",COUNTRY_INFO!N21=0),0,IF(INTRO!$E$39=\"Non-endemic\",IF(AND($E21<>0,$G21=\"\"),IF($F21=0,COUNTRY_INFO!N21*$E21,COUNTRY_INFO!N21*($E21-$D21)),IF(AND($E21<>0,$G21<>0),IF($F21=0,COUNTRY_INFO!N21*$G21,COUNTRY_INFO!N21*($G21-$D21)),0)),IF($G21=\"\",COUNTRY_INFO!N21*$E21,COUNTRY_INFO!N21*$G21)))","v":0},{"$f":"IF(OR(COUNTRY_INFO!O21=\"Unknown\",COUNTRY_INFO!O21=\"Surveillance\",COUNTRY_INFO!O21=\"Not required\",COUNTRY_INFO!O21=0),0,IF($E21<>0, IF($F21=0,COUNTRY_INFO!O21*$E21,COUNTRY_INFO!O21*($E21-$D21)),COUNTRY_INFO!O21*$E21))","v":0},1,{"$f":"IF(OR(COUNTRY_INFO!P21=\"Unknown\",COUNTRY_INFO!P21=\"Surveillance\",COUNTRY_INFO!P21=\"Not required\",COUNTRY_INFO!P21=0),0,IF(AND($E21<>0,$J21=\"\"),IF($F21=0,COUNTRY_INFO!P21*$E21,COUNTRY_INFO!P21*($E21-$D21)), IF(AND($E21<>0,$J21<>0),IF($F21=0,COUNTRY_INFO!P21*$J21,COUNTRY_INFO!P21*($J21-$D21)), COUNTRY_INFO!P21*$J21)))","v":0},0,0,null,0,0,null,0,0,null,0]
[{"$f":"IF(AND(INTRO!$E$37=\"Non-endemic\",INTRO!$E$41=\"Non-endemic\"),\" \",IF(COUNTRY_INFO!A22=0,\" \",COUNTRY_INFO!A22))","v":"MALAWI"},{"$f":"IF(AND(INTRO!$E$37=\"Non-endemic\",INTRO!$E$41=\"Non-endemic\"),\" \",IF(COUNTRY_INFO!B22=0,\" \",COUNTRY_INFO!B22))","v":"Central"},{"$f":"IF(AND(INTRO!$E$37=\"Non-endemic\",INTRO!$E$41=\"Non-endemic\"),\" \",IF(COUNTRY_INFO!C22=0,\" \",COUNTRY_INFO!C22))","v":"Salima"},{"$f":"IF(AND(INTRO!$E$37=\"Non-endemic\",INTRO!$E$41=\"Non-endemic\"),0,COUNTRY_INFO!V22)","v":0},{"$f":"IF(AND(INTRO!$E$37=\"Non-endemic\",INTRO!$E$41=\"Non-endemic\"),0,COUNTRY_INFO!X22)","v":0},{"$f":"IF(INTRO!$E$39=\"Non-endemic\",IF($D22=1,DEC!I22,0),IF($D22=1,IVM!G22,0))","v":0},1,{"$f":"IF(OR(COUNTRY_INFO!N22=\"Unknown\",COUNTRY_INFO!N22=\"Surveillance\",COUNTRY_INFO!N22=\"Not required\",COUNTRY_INFO!N22=0),0,IF(INTRO!$E$39=\"Non-endemic\",IF(AND($E22<>0,$G22=\"\"),IF($F22=0,COUNTRY_INFO!N22*$E22,COUNTRY_INFO!N22*($E22-$D22)),IF(AND($E22<>0,$G22<>0),IF($F22=0,COUNTRY_INFO!N22*$G22,COUNTRY_INFO!N22*($G22-$D22)),0)),IF($G22=\"\",COUNTRY_INFO!N22*$E22,COUNTRY_INFO!N22*$G22)))","v":0},{"$f":"IF(OR(COUNTRY_INFO!O22=\"Unknown\",COUNTRY_INFO!O22=\"Surveillance\",COUNTRY_INFO!O22=\"Not required\",COUNTRY_INFO!O22=0),0,IF($E22<>0, IF($F22=0,COUNTRY_INFO!O22*$E22,COUNTRY_INFO!O22*($E22-$D22)),COUNTRY_INFO!O22*$E22))","v":0},1,{"$f":"IF(OR(COUNTRY_INFO!P22=\"Unknown\",COUNTRY_INFO!P22=\"Surveillance\",COUNTRY_INFO!P22=\"Not required\",COUNTRY_INFO!P22=0),0,IF(AND($E22<>0,$J22=\"\"),IF($F22=0,COUNTRY_INFO!P22*$E22,COUNTRY_INFO!P22*($E22-$D22)), IF(AND($E22<>0,$J22<>0),IF($F22=0,COUNTRY_INFO!P22*$J22,COUNTRY_INFO!P22*($J22-$D22)), COUNTRY_INFO!P22*$J22)))","v":0},0,0,null,0,0,null,0,0,null,0]
[{"$f":"IF(AND(INTRO!$E$37=\"Non-endemic\",INTRO!$E$41=\"Non-endemic\"),\" \",IF(COUNTRY_INFO!A23=0,\" \",COUNTRY_INFO!A23))","v":"MALAWI"},{"$f":"IF(AND(INTRO!$E$37=\"Non-endemic\",INTRO!$E$41=\"Non-endemic\"),\" \",IF(COUNTRY_INFO!B23=0,\" \",COUNTRY_INFO!B23))","v":"Central"},{"$f":"IF(AND(INTRO!$E$37=\"Non-endemic\",INTRO!$E$41=\"Non-endemic\"),\" \",IF(COUNTRY_INFO!C23=0,\" \",COUNTRY_INFO!C23))","v":"Nkhotakota"},{"$f":"IF(AND(INTRO!$E$37=\"Non-endemic\",INTRO!$E$41=\"Non-endemic\"),0,COUNTRY_INFO!V23)","v":0},{"$f":"IF(AND(INTRO!$E$37=\"Non-endemic\",INTRO!$E$41=\"Non-endemic\"),0,COUNTRY_INFO!X23)","v":1},{"$f":"IF(INTRO!$E$39=\"Non-endemic\",IF($D23=1,DEC!I23,0),IF($D23=1,IVM!G23,0))","v":0},1,{"$f":"IF(OR(COUNTRY_INFO!N23=\"Unknown\",COUNTRY_INFO!N23=\"Surveillance\",COUNTRY_INFO!N23=\"Not required\",COUNTRY_INFO!N23=0),0,IF(INTRO!$E$39=\"Non-endemic\",IF(AND($E23<>0,$G23=\"\"),IF($F23=0,COUNTRY_INFO!N23*$E23,COUNTRY_INFO!N23*($E23-$D23)),IF(AND($E23<>0,$G23<>0),IF($F23=0,COUNTRY_INFO!N23*$G23,COUNTRY_INFO!N23*($G23-$D23)),0)),IF($G23=\"\",COUNTRY_INFO!N23*$E23,COUNTRY_INFO!N23*$G23)))","v":0},{"$f":"IF(OR(COUNTRY_INFO!O23=\"Unknown\",COUNTRY_INFO!O23=\"Surveillance\",COUNTRY_INFO!O23=\"Not required\",COUNTRY_INFO!O23=0),0,IF($E23<>0, IF($F23=0,COUNTRY_INFO!O23*$E23,COUNTRY_INFO!O23*($E23-$D23)),COUNTRY_INFO!O23*$E23))","v":126237},1,{"$f":"IF(OR(COUNTRY_INFO!P23=\"Unknown\",COUNTRY_INFO!P23=\"Surveillance\",COUNTRY_INFO!P23=\"Not required\",COUNTRY_INFO!P23=0),0,IF(AND($E23<>0,$J23=\"\"),IF($F23=0,COUNTRY_INFO!P23*$E23,COUNTRY_INFO!P23*($E23-$D23)), IF(AND($E23<>0,$J23<>0),IF($F23=0,COUNTRY_INFO!P23*$J23,COUNTRY_INFO!P23*($J23-$D23)), COUNTRY_INFO!P23*$J23)))","v":0},126237,0,null,0,126237,null,126237,0,null,0]
[{"$f":"IF(AND(INTRO!$E$37=\"Non-endemic\",INTRO!$E$41=\"Non-endemic\"),\" \",IF(COUNTRY_INFO!A24=0,\" \",COUNTRY_INFO!A24))","v":"MALAWI"},{"$f":"IF(AND(INTRO!$E$37=\"Non-endemic\",INTRO!$E$41=\"Non-endemic\"),\" \",IF(COUNTRY_INFO!B24=0,\" \",COUNTRY_INFO!B24))","v":"Central"},{"$f":"IF(AND(INTRO!$E$37=\"Non-endemic\",INTRO!$E$41=\"Non-endemic\"),\" \",IF(COUNTRY_INFO!C24=0,\" \",COUNTRY_INFO!C24))","v":"Ntchisi"},{"$f":"IF(AND(INTRO!$E$37=\"Non-endemic\",INTRO!$E$41=\"Non-endemic\"),0,COUNTRY_INFO!V24)","v":0},{"$f":"IF(AND(INTRO!$E$37=\"Non-endemic\",INTRO!$E$41=\"Non-endemic\"),0,COUNTRY_INFO!X24)","v":1},{"$f":"IF(INTRO!$E$39=\"Non-endemic\",IF($D24=1,DEC!I24,0),IF($D24=1,IVM!G24,0))","v":0},1,{"$f":"IF(OR(COUNTRY_INFO!N24=\"Unknown\",COUNTRY_INFO!N24=\"Surveillance\",COUNTRY_INFO!N24=\"Not required\",COUNTRY_INFO!N24=0),0,IF(INTRO!$E$39=\"Non-endemic\",IF(AND($E24<>0,$G24=\"\"),IF($F24=0,COUNTRY_INFO!N24*$E24,COUNTRY_INFO!N24*($E24-$D24)),IF(AND($E24<>0,$G24<>0),IF($F24=0,COUNTRY_INFO!N24*$G24,COUNTRY_INFO!N24*($G24-$D24)),0)),IF($G24=\"\",COUNTRY_INFO!N24*$E24,COUNTRY_INFO!N24*$G24)))","v":0},{"$f":"IF(OR(COUNTRY_INFO!O24=\"Unknown\",COUNTRY_INFO!O24=\"Surveillance\",COUNTRY_INFO!O24=\"Not required\",COUNTRY_INFO!O24=0),0,IF($E24<>0, IF($F24=0,COUNTRY_INFO!O24*$E24,COUNTRY_INFO!O24*($E24-$D24)),COUNTRY_INFO!O24*$E24))","v":101827},1,{"$f":"IF(OR(COUNTRY_INFO!P24=\"Unknown\",COUNTRY_INFO!P24=\"Surveillance\",COUNTRY_INFO!P24=\"Not required\",COUNTRY_INFO!P24=0),0,IF(AND($E24<>0,$J24=\"\"),IF($F24=0,COUNTRY_INFO!P24*$E24,COUNTRY_INFO!P24*($E24-$D24)), IF(AND($E24<>0,$J24<>0),IF($F24=0,COUNTRY_INFO!P24*$J24,COUNTRY_INFO!P24*($J24-$D24)), COUNTRY_INFO!P24*$J24)))","v":0},101827,0,null,0,101827,null,101827,0,null,0]
[{"$f":"IF(AND(INTRO!$E$37=\"Non-endemic\",INTRO!$E$41=\"Non-endemic\"),\" \",IF(COUNTRY_INFO!A25=0,\" \",COUNTRY_INFO!A25))","v":"MALAWI"},{"$f":"IF(AND(INTRO!$E$37=\"Non-endemic\",INTRO!$E$41=\"Non-endemic\"),\" \",IF(COUNTRY_INFO!B25=0,\" \",COUNTRY_INFO!B25))","v":"Central"},{"$f":"IF(AND(INTRO!$E$37=\"Non-endemic\",INTRO!$E$41=\"Non-endemic\"),\" \",IF(COUNTRY_INFO!C25=0,\" \",COUNTRY_INFO!C25))","v":"Ntcheu"},{"$f":"IF(AND(INTRO!$E$37=\"Non-endemic\",INTRO!$E$41=\"Non-endemic\"),0,COUNTRY_INFO!V25)","v":0},{"$f":"IF(AND(INTRO!$E$37=\"Non-endemic\",INTRO!$E$41=\"Non-endemic\"),0,COUNTRY_INFO!X25)","v":1},{"$f":"IF(INTRO!$E$39=\"Non-endemic\",IF($D25=1,DEC!I25,0),IF($D25=1,IVM!G25,0))","v":0},1,{"$f":"IF(OR(COUNTRY_INFO!N25=\"Unknown\",COUNTRY_INFO!N25=\"Surveillance\",COUNTRY_INFO!N25=\"Not required\",COUNTRY_INFO!N25=0),0,IF(INTRO!$E$39=\"Non-endemic\",IF(AND($E25<>0,$G25=\"\"),IF($F25=0,COUNTRY_INFO!N25*$E25,COUNTRY_INFO!N25*($E25-$D25)),IF(AND($E25<>0,$G25<>0),IF($F25=0,COUNTRY_INFO!N25*$G25,COUNTRY_INFO!N25*($G25-$D25)),0)),IF($G25=\"\",COUNTRY_INFO!N25*$E25,COUNTRY_INFO!N25*$G25)))","v":0},{"$f":"IF(OR(COUNTRY_INFO!O25=\"Unknown\",COUNTRY_INFO!O25=\"Surveillance\",COUNTRY_INFO!O25=\"Not required\",COUNTRY_INFO!O25=0),0,IF($E25<>0, IF($F25=0,COUNTRY_INFO!O25*$E25,COUNTRY_INFO!O25*($E25-$D25)),COUNTRY_INFO!O25*$E25))","v":211834},1,{"$f":"IF(OR(COUNTRY_INFO!P25=\"Unknown\",COUNTRY_INFO!P25=\"Surveillance\",COUNTRY_INFO!P25=\"Not required\",COUNTRY_INFO!P25=0),0,IF(AND($E25<>0,$J25=\"\"),IF($F25=0,COUNTRY_INFO!P25*$E25,COUNTRY_INFO!P25*($E25-$D25)), IF(AND($E25<>0,$J25<>0),IF($F25=0,COUNTRY_INFO!P25*$J25,COUNTRY_INFO!P25*($J25-$D25)), COUNTRY_INFO!P25*$J25)))","v":0},211834,0,null,0,211834,null,211834,0,null,0]
[{"$f":"IF(AND(INTRO!$E$37=\"Non-endemic\",INTRO!$E$41=\"Non-endemic\"),\" \",IF(COUNTRY_INFO!A26=0,\" \",COUNTRY_INFO!A26))","v":"MALAWI"},{"$f":"IF(AND(INTRO!$E$37=\"Non-endemic\",INTRO!$E$41=\"Non-endemic\"),\" \",IF(COUNTRY_INFO!B26=0,\" \",COUNTRY_INFO!B26))","v":"South"},{"$f":"IF(AND(INTRO!$E$37=\"Non-endemic\",INTRO!$E$41=\"Non-endemic\"),\" \",IF(COUNTRY_INFO!C26=0,\" \",COUNTRY_INFO!C26))","v":"Balaka"},{"$f":"IF(AND(INTRO!$E$37=\"Non-endemic\",INTRO!$E$41=\"Non-endemic\"),0,COUNTRY_INFO!V26)","v":0},{"$f":"IF(AND(INTRO!$E$37=\"Non-endemic\",INTRO!$E$41=\"Non-endemic\"),0,COUNTRY_INFO!X26)","v":1},{"$f":"IF(INTRO!$E$39=\"Non-endemic\",IF($D26=1,DEC!I26,0),IF($D26=1,IVM!G26,0))","v":0},1,{"$f":"IF(OR(COUNTRY_INFO!N26=\"Unknown\",COUNTRY_INFO!N26=\"Surveillance\",COUNTRY_INFO!N26=\"Not required\",COUNTRY_INFO!N26=0),0,IF(INTRO!$E$39=\"Non-endemic\",IF(AND($E26<>0,$G26=\"\"),IF($F26=0,COUNTRY_INFO!N26*$E26,COUNTRY_INFO!N26*($E26-$D26)),IF(AND($E26<>0,$G26<>0),IF($F26=0,COUNTRY_INFO!N26*$G26,COUNTRY_INFO!N26*($G26-$D26)),0)),IF($G26=\"\",COUNTRY_INFO!N26*$E26,COUNTRY_INFO!N26*$G26)))","v":0},{"$f":"IF(OR(COUNTRY_INFO!O26=\"Unknown\",COUNTRY_INFO!O26=\"Surveillance\",COUNTRY_INFO!O26=\"Not required\",COUNTRY_INFO!O26=0),0,IF($E26<>0, IF($F26=0,COUNTRY_INFO!O26*$E26,COUNTRY_INFO!O26*($E26-$D26)),COUNTRY_INFO!O26*$E26))","v":140786},1,{"$f":"IF(OR(COUNTRY_INFO!P26=\"Unknown\",COUNTRY_INFO!P26=\"Surveillance\",COUNTRY_INFO!P26=\"Not required\",COUNTRY_INFO!P26=0),0,IF(AND($E26<>0,$J26=\"\"),IF($F26=0,COUNTRY_INFO!P26*$E26,COUNTRY_INFO!P26*($E26-$D26)), IF(AND($E26<>0,$J26<>0),IF($F26=0,COUNTRY_INFO!P26*$J26,COUNTRY_INFO!P26*($J26-$D26)), COUNTRY_INFO!P26*$J26)))","v":0},140786,0,null,0,140786,null,140786,0,null,0]
[{"$f":"IF(AND(INTRO!$E$37=\"Non-endemic\",INTRO!$E$41=\"Non-endemic\"),\" \",IF(COUNTRY_INFO!A27=0,\" \",COUNTRY_INFO!A27))","v":"MALAWI"},{"$f":"IF(AND(INTRO!$E$37=\"Non-endemic\",INTRO!$E$41=\"Non-endemic\"),\" \",IF(COUNTRY_INFO!B27=0,\" \",COUNTRY_INFO!B27))","v":"South"},{"$f":"IF(AND(INTRO!$E$37=\"Non-endemic\",INTRO!$E$41=\"Non-endemic\"),\" \",IF(COUNTRY_INFO!C27=0,\" \",COUNTRY_INFO!C27))","v":"Chikwawa"},{"$f":"IF(AND(INTRO!$E$37=\"Non-endemic\",INTRO!$E$41=\"Non-endemic\"),0,COUNTRY_INFO!V27)","v":0},{"$f":"IF(AND(INTRO!$E$37=\"Non-endemic\",INTRO!$E$41=\"Non-endemic\"),0,COUNTRY_INFO!X27)","v":0},{"$f":"IF(INTRO!$E$39=\"Non-endemic\",IF($D27=1,DEC!I27,0),IF($D27=1,IVM!G27,0))","v":0},1,{"$f":"IF(OR(COUNTRY_INFO!N27=\"Unknown\",COUNTRY_INFO!N27=\"Surveillance\",COUNTRY_INFO!N27=\"Not required\",COUNTRY_INFO!N27=0),0,IF(INTRO!$E$39=\"Non-endemic\",IF(AND($E27<>0,$G27=\"\"),IF($F27=0,COUNTRY_INFO!N27*$E27,COUNTRY_INFO!N27*($E27-$D27)),IF(AND($E27<>0,$G27<>0),IF($F27=0,COUNTRY_INFO!N27*$G27,COUNTRY_INFO!N27*($G27-$D27)),0)),IF($G27=\"\",COUNTRY_INFO!N27*$E27,COUNTRY_INFO!N27*$G27)))","v":0},{"$f":"IF(OR(COUNTRY_INFO!O27=\"Unknown\",COUNTRY_INFO!O27=\"Surveillance\",COUNTRY_INFO!O27=\"Not required\",COUNTRY_INFO!O27=0),0,IF($E27<>0, IF($F27=0,COUNTRY_INFO!O27*$E27,COUNTRY_INFO!O27*($E27-$D27)),COUNTRY_INFO!O27*$E27))","v":0},1,{"$f":"IF(OR(COUNTRY_INFO!P27=\"Unknown\",COUNTRY_INFO!P27=\"Surveillance\",COUNTRY_INFO!P27=\"Not required\",COUNTRY_INFO!P27=0),0,IF(AND($E27<>0,$J27=\"\"),IF($F27=0,COUNTRY_INFO!P27*$E27,COUNTRY_INFO!P27*($E27-$D27)), IF(AND($E27<>0,$J27<>0),IF($F27=0,COUNTRY_INFO!P27*$J27,COUNTRY_INFO!P27*($J27-$D27)), COUNTRY_INFO!P27*$J27)))","v":0},0,0,null,0,0,null,0,0,null,0]
[{"$f":"IF(AND(INTRO!$E$37=\"Non-endemic\",INTRO!$E$41=\"Non-endemic\"),\" \",IF(COUNTRY_INFO!A28=0,\" \",COUNTRY_INFO!A28))","v":"MALAWI"},{"$f":"IF(AND(INTRO!$E$37=\"Non-endemic\",INTRO!$E$41=\"Non-endemic\"),\" \",IF(COUNTRY_INFO!B28=0,\" \",COUNTRY_INFO!B28))","v":"South"},{"$f":"IF(AND(INTRO!$E$37=\"Non-endemic\",INTRO!$E$41=\"Non-endemic\"),\" \",IF(COUNTRY_INFO!C28=0,\" \",COUNTRY_INFO!C28))","v":"Chiradzulu"},{"$f":"IF(AND(INTRO!$E$37=\"Non-endemic\",INTRO!$E$41=\"Non-endemic\"),0,COUNTRY_INFO!V28)","v":0},{"$f":"IF(AND(INTRO!$E$37=\"Non-endemic\",INTRO!$E$41=\"Non-endemic\"),0,COUNTRY_INFO!X28)","v":1},{"$f":"IF(INTRO!$E$39=\"Non-endemic\",IF($D28=1,DEC!I28,0),IF($D28=1,IVM!G28,0))","v":0},1,{"$f":"IF(OR(COUNTRY_INFO!N28=\"Unknown\",COUNTRY_INFO!N28=\"Surveillance\",COUNTRY_INFO!N28=\"Not required\",COUNTRY_INFO!N28=0),0,IF(INTRO!$E$39=\"Non-endemic\",IF(AND($E28<>0,$G28=\"\"),IF($F28=0,COUNTRY_INFO!N28*$E28,COUNTRY_INFO!N28*($E28-$D28)),IF(AND($E28<>0,$G28<>0),IF($F28=0,COUNTRY_INFO!N28*$G28,COUNTRY_INFO!N28*($G28-$D28)),0)),IF($G28=\"\",COUNTRY_INFO!N28*$E28,COUNTRY_INFO!N28*$G28)))","v":0},{"$f":"IF(OR(COUNTRY_INFO!O28=\"Unknown\",COUNTRY_INFO!O28=\"Surveillance\",COUNTRY_INFO!O28=\"Not required\",COUNTRY_INFO!O28=0),0,IF($E28<>0, IF($F28=0,COUNTRY_INFO!O28*$E28,COUNTRY_INFO!O28*($E28-$D28)),COUNTRY_INFO!O28*$E28))","v":114611},1,{"$f":"IF(OR(COUNTRY_INFO!P28=\"Unknown\",COUNTRY_INFO!P28=\"Surveillance\",COUNTRY_INFO!P28=\"Not required\",COUNTRY_INFO!P28=0),0,IF(AND($E28<>0,$J28=\"\"),IF($F28=0,COUNTRY_INFO!P28*$E28,COUNTRY_INFO!P28*($E28-$D28)), IF(AND($E28<>0,$J28<>0),IF($F28=0,COUNTRY_INFO!P28*$J28,COUNTRY_INFO!P28*($J28-$D28)), COUNTRY_INFO!P28*$J28)))","v":0},114611,0,null,0,114611,null,114611,0,null,0]
[{"$f":"IF(AND(INTRO!$E$37=\"Non-endemic\",INTRO!$E$41=\"Non-endemic\"),\" \",IF(COUNTRY_INFO!A29=0,\" \",COUNTRY_INFO!A29))","v":"MALAWI"},{"$f":"IF(AND(INTRO!$E$37=\"Non-endemic\",INTRO!$E$41=\"Non-endemic\"),\" \",IF(COUNTRY_INFO!B29=0,\" \",COUNTRY_INFO!B29))","v":"South"},{"$f":"IF(AND(INTRO!$E$37=\"Non-endemic\",INTRO!$E$41=\"Non-endemic\"),\" \",IF(COUNTRY_INFO!C29=0,\" \",COUNTRY_INFO!C29))","v":"Machinga"},{"$f":"IF(AND(INTRO!$E$37=\"Non-endemic\",INTRO!$E$41=\"Non-endemic\"),0,COUNTRY_INFO!V29)","v":0},{"$f":"IF(AND(INTRO!$E$37=\"Non-endemic\",INTRO!$E$41=\"Non-endemic\"),0,COUNTRY_INFO!X29)","v":0},{"$f":"IF(INTRO!$E$39=\"Non-endemic\",IF($D29=1,DEC!I29,0),IF($D29=1,IVM!G29,0))","v":0},1,{"$f":"IF(OR(COUNTRY_INFO!N29=\"Unknown\",COUNTRY_INFO!N29=\"Surveillance\",COUNTRY_INFO!N29=\"Not required\",COUNTRY_INFO!N29=0),0,IF(INTRO!$E$39=\"Non-endemic\",IF(AND($E29<>0,$G29=\"\"),IF($F29=0,COUNTRY_INFO!N29*$E29,COUNTRY_INFO!N29*($E29-$D29)),IF(AND($E29<>0,$G29<>0),IF($F29=0,COUNTRY_INFO!N29*$G29,COUNTRY_INFO!N29*($G29-$D29)),0)),IF($G29=\"\",COUNTRY_INFO!N29*$E29,COUNTRY_INFO!N29*$G29)))","v":0},{"$f":"IF(OR(COUNTRY_INFO!O29=\"Unknown\",COUNTRY_INFO!O29=\"Surveillance\",COUNTRY_INFO!O29=\"Not required\",COUNTRY_INFO!O29=0),0,IF($E29<>0, IF($F29=0,COUNTRY_INFO!O29*$E29,COUNTRY_INFO!O29*($E29-$D29)),COUNTRY_INFO!O29*$E29))","v":0},1,{"$f":"IF(OR(COUNTRY_INFO!P29=\"Unknown\",COUNTRY_INFO!P29=\"Surveillance\",COUNTRY_INFO!P29=\"Not required\",COUNTRY_INFO!P29=0),0,IF(AND($E29<>0,$J29=\"\"),IF($F29=0,COUNTRY_INFO!P29*$E29,COUNTRY_INFO!P29*($E29-$D29)), IF(AND($E29<>0,$J29<>0),IF($F29=0,COUNTRY_INFO!P29*$J29,COUNTRY_INFO!P29*($J29-$D29)), COUNTRY_INFO!P29*$J29)))","v":0},0,0,null,0,0,null,0,0,null,0]
[{"$f":"IF(AND(INTRO!$E$37=\"Non-endemic\",INTRO!$E$41=\"Non-endemic\"),\" \",IF(COUNTRY_INFO!A30=0,\" \",COUNTRY_INFO!A30))","v":"MALAWI"},{"$f":"IF(AND(INTRO!$E$37=\"Non-endemic\",INTRO!$E$41=\"Non-endemic\"),\" \",IF(COUNTRY_INFO!B30=0,\" \",COUNTRY_INFO!B30))","v":"South"},{"$f":"IF(AND(INTRO!$E$37=\"Non-endemic\",INTRO!$E$41=\"Non-endemic\"),\" \",IF(COUNTRY_INFO!C30=0,\" \",COUNTRY_INFO!C30))","v":"Blantyre"},{"$f":"IF(AND(INTRO!$E$37=\"Non-endemic\",INTRO!$E$41=\"Non-endemic\"),0,COUNTRY_INFO!V30)","v":0},{"$f":"IF(AND(INTRO!$E$37=\"Non-endemic\",INTRO!$E$41=\"Non-endemic\"),0,COUNTRY_INFO!X30)","v":1},{"$f":"IF(INTRO!$E$39=\"Non-endemic\",IF($D30=1,DEC!I30,0),IF($D30=1,IVM!G30,0))","v":0},1,{"$f":"IF(OR(COUNTRY_INFO!N30=\"Unknown\",COUNTRY_INFO!N30=\"Surveillance\",COUNTRY_INFO!N30=\"Not required\",COUNTRY_INFO!N30=0),0,IF(INTRO!$E$39=\"Non-endemic\",IF(AND($E30<>0,$G30=\"\"),IF($F30=0,COUNTRY_INFO!N30*$E30,COUNTRY_INFO!N30*($E30-$D30)),IF(AND($E30<>0,$G30<>0),IF($F30=0,COUNTRY_INFO!N30*$G30,COUNTRY_INFO!N30*($G30-$D30)),0)),IF($G30=\"\",COUNTRY_INFO!N30*$E30,COUNTRY_INFO!N30*$G30)))","v":0},{"$f":"IF(OR(COUNTRY_INFO!O30=\"Unknown\",COUNTRY_INFO!O30=\"Surveillance\",COUNTRY_INFO!O30=\"Not required\",COUNTRY_INFO!O30=0),0,IF($E30<>0, IF($F30=0,COUNTRY_INFO!O30*$E30,COUNTRY_INFO!O30*($E30-$D30)),COUNTRY_INFO!O30*$E30))","v":401916},1,{"$f":"IF(OR(COUNTRY_INFO!P30=\"Unknown\",COUNTRY_INFO!P30=\"Surveillance\",COUNTRY_INFO!P30=\"Not required\",COUNTRY_INFO!P30=0),0,IF(AND($E30<>0,$J30=\"\"),IF($F30=0,COUNTRY_INFO!P30*$E30,COUNTRY_INFO!P30*($E30-$D30)), IF(AND($E30<>0,$J30<>0),IF($F30=0,COUNTRY_INFO!P30*$J30,COUNTRY_INFO!P30*($J30-$D30)), COUNTRY_INFO!P30*$J30)))","v":0},401916,0,null,0,401916,null,401916,0,null,0]
[{"$f":"IF(AND(INTRO!$E$37=\"Non-endemic\",INTRO!$E$41=\"Non-endemic\"),\" \",IF(COUNTRY_INFO!A31=0,\" \",COUNTRY_INFO!A31))","v":"MALAWI"},{"$f":"IF(AND(INTRO!$E$37=\"Non-endemic\",INTRO!$E$41=\"Non-endemic\"),\" \",IF(COUNTRY_INFO!B31=0,\" \",COUNTRY_INFO!B31))","v":"South"},{"$f":"IF(AND(INTRO!$E$37=\"Non-endemic\",INTRO!$E$41=\"Non-endemic\"),\" \",IF(COUNTRY_INFO!C31=0,\" \",COUNTRY_INFO!C31))","v":"Mangochi"},{"$f":"IF(AND(INTRO!$E$37=\"Non-endemic\",INTRO!$E$41=\"Non-endemic\"),0,COUNTRY_INFO!V31)","v":0},{"$f":"IF(AND(INTRO!$E$37=\"Non-endemic\",INTRO!$E$41=\"Non-endemic\"),0,COUNTRY_INFO!X31)","v":0},{"$f":"IF(INTRO!$E$39=\"Non-endemic\",IF($D31=1,DEC!I31,0),IF($D31=1,IVM!G31,0))","v":0},1,{"$f":"IF(OR(COUNTRY_INFO!N31=\"Unknown\",COUNTRY_INFO!N31=\"Surveillance\",COUNTRY_INFO!N31=\"Not required\",COUNTRY_INFO!N31=0),0,IF(INTRO!$E$39=\"Non-endemic\",IF(AND($E31<>0,$G31=\"\"),IF($F31=0,COUNTRY_INFO!N31*$E31,COUNTRY_INFO!N31*($E31-$D31)),IF(AND($E31<>0,$G31<>0),IF($F31=0,COUNTRY_INFO!N31*$G31,COUNTRY_INFO!N31*($G31-$D31)),0)),IF($G31=\"\",COUNTRY_INFO!N31*$E31,COUNTRY_INFO!N31*$G31)))","v":0},{"$f":"IF(OR(COUNTRY_INFO!O31=\"Unknown\",COUNTRY_INFO!O31=\"Surveillance\",COUNTRY_INFO!O31=\"Not required\",COUNTRY_INFO!O31=0),0,IF($E31<>0, IF($F31=0,COUNTRY_INFO!O31*$E31,COUNTRY_INFO!O31*($E31-$D31)),COUNTRY_INFO!O31*$E31))","v":0},1,{"$f":"IF(OR(COUNTRY_INFO!P31=\"Unknown\",COUNTRY_INFO!P31=\"Surveillance\",COUNTRY_INFO!P31=\"Not required\",COUNTRY_INFO!P31=0),0,IF(AND($E31<>0,$J31=\"\"),IF($F31=0,COUNTRY_INFO!P31*$E31,COUNTRY_INFO!P31*($E31-$D31)), IF(AND($E31<>0,$J31<>0),IF($F31=0,COUNTRY_INFO!P31*$J31,COUNTRY_INFO!P31*($J31-$D31)), COUNTRY_INFO!P31*$J31)))","v":0},0,0,null,0,0,null,0,0,null,0]
[{"$f":"IF(AND(INTRO!$E$37=\"Non-endemic\",INTRO!$E$41=\"Non-endemic\"),\" \",IF(COUNTRY_INFO!A32=0,\" \",COUNTRY_INFO!A32))","v":"MALAWI"},{"$f":"IF(AND(INTRO!$E$37=\"Non-endemic\",INTRO!$E$41=\"Non-endemic\"),\" \",IF(COUNTRY_INFO!B32=0,\" \",COUNTRY_INFO!B32))","v":"South"},{"$f":"IF(AND(INTRO!$E$37=\"Non-endemic\",INTRO!$E$41=\"Non-endemic\"),\" \",IF(COUNTRY_INFO!C32=0,\" \",COUNTRY_INFO!C32))","v":"Mulanje"},{"$f":"IF(AND(INTRO!$E$37=\"Non-endemic\",INTRO!$E$41=\"Non-endemic\"),0,COUNTRY_INFO!V32)","v":0},{"$f":"IF(AND(INTRO!$E$37=\"Non-endemic\",INTRO!$E$41=\"Non-endemic\"),0,COUNTRY_INFO!X32)","v":0},{"$f":"IF(INTRO!$E$39=\"Non-endemic\",IF($D32=1,DEC!I32,0),IF($D32=1,IVM!G32,0))","v":0},1,{"$f":"IF(OR(COUNTRY_INFO!N32=\"Unknown\",COUNTRY_INFO!N32=\"Surveillance\",COUNTRY_INFO!N32=\"Not required\",COUNTRY_INFO!N32=0),0,IF(INTRO!$E$39=\"Non-endemic\",IF(AND($E32<>0,$G32=\"\"),IF($F32=0,COUNTRY_INFO!N32*$E32,COUNTRY_INFO!N32*($E32-$D32)),IF(AND($E32<>0,$G32<>0),IF($F32=0,COUNTRY_INFO!N32*$G32,COUNTRY_INFO!N32*($G32-$D32)),0)),IF($G32=\"\",COUNTRY_INFO!N32*$E32,COUNTRY_INFO!N32*$G32)))","v":0},{"$f":"IF(OR(COUNTRY_INFO!O32=\"Unknown\",COUNTRY_INFO!O32=\"Surveillance\",COUNTRY_INFO!O32=\"Not required\",COUNTRY_INFO!O32=0),0,IF($E32<>0, IF($F32=0,COUNTRY_INFO!O32*$E32,COUNTRY_INFO!O32*($E32-$D32)),COUNTRY_INFO!O32*$E32))","v":0},1,{"$f":"IF(OR(COUNTRY_INFO!P32=\"Unknown\",COUNTRY_INFO!P32=\"Surveillance\",COUNTRY_INFO!P32=\"Not required\",COUNTRY_INFO!P32=0),0,IF(AND($E32<>0,$J32=\"\"),IF($F32=0,COUNTRY_INFO!P32*$E32,COUNTRY_INFO!P32*($E32-$D32)), IF(AND($E32<>0,$J32<>0),IF($F32=0,COUNTRY_INFO!P32*$J32,COUNTRY_INFO!P32*($J32-$D32)), COUNTRY_INFO!P32*$J32)))","v":0},0,0,null,0,0,null,0,0,null,0]
[{"$f":"IF(AND(INTRO!$E$37=\"Non-endemic\",INTRO!$E$41=\"Non-endemic\"),\" \",IF(COUNTRY_INFO!A33=0,\" \",COUNTRY_INFO!A33))","v":"MALAWI"},{"$f":"IF(AND(INTRO!$E$37=\"Non-endemic\",INTRO!$E$41=\"Non-endemic\"),\" \",IF(COUNTRY_INFO!B33=0,\" \",COUNTRY_INFO!B33))","v":"South"},{"$f":"IF(AND(INTRO!$E$37=\"Non-endemic\",INTRO!$E$41=\"Non-endemic\"),\" \",IF(COUNTRY_INFO!C33=0,\" \",COUNTRY_INFO!C33))","v":"Nsanje"},{"$f":"IF(AND(INTRO!$E$37=\"Non-endemic\",INTRO!$E$41=\"Non-endemic\"),0,COUNTRY_INFO!V33)","v":0},{"$f":"IF(AND(INTRO!$E$37=\"Non-endemic\",INTRO!$E$41=\"Non-endemic\"),0,COUNTRY_INFO!X33)","v":0},{"$f":"IF(INTRO!$E$39=\"Non-endemic\",IF($D33=1,DEC!I33,0),IF($D33=1,IVM!G33,0))","v":0},1,{"$f":"IF(OR(COUNTRY_INFO!N33=\"Unknown\",COUNTRY_INFO!N33=\"Surveillance\",COUNTRY_INFO!N33=\"Not required\",COUNTRY_INFO!N33=0),0,IF(INTRO!$E$39=\"Non-endemic\",IF(AND($E33<>0,$G33=\"\"),IF($F33=0,COUNTRY_INFO!N33*$E33,COUNTRY_INFO!N33*($E33-$D33)),IF(AND($E33<>0,$G33<>0),IF($F33=0,COUNTRY_INFO!N33*$G33,COUNTRY_INFO!N33*($G33-$D33)),0)),IF($G33=\"\",COUNTRY_INFO!N33*$E33,COUNTRY_INFO!N33*$G33)))","v":0},{"$f":"IF(OR(COUNTRY_INFO!O33=\"Unknown\",COUNTRY_INFO!O33=\"Surveillance\",COUNTRY_INFO!O33=\"Not required\",COUNTRY_INFO!O33=0),0,IF($E33<>0, IF($F33=0,COUNTRY_INFO!O33*$E33,COUNTRY_INFO!O33*($E33-$D33)),COUNTRY_INFO!O33*$E33))","v":0},1,{"$f":"IF(OR(COUNTRY_INFO!P33=\"Unknown\",COUNTRY_INFO!P33=\"Surveillance\",COUNTRY_INFO!P33=\"Not required\",COUNTRY_INFO!P33=0),0,IF(AND($E33<>0,$J33=\"\"),IF($F33=0,COUNTRY_INFO!P33*$E33,COUNTRY_INFO!P33*($E33-$D33)), IF(AND($E33<>0,$J33<>0),IF($F33=0,COUNTRY_INFO!P33*$J33,COUNTRY_INFO!P33*($J33-$D33)), COUNTRY_INFO!P33*$J33)))","v":0},0,0,null,0,0,null,0,0,null,0]
[{"$f":"IF(AND(INTRO!$E$37=\"Non-endemic\",INTRO!$E$41=\"Non-endemic\"),\" \",IF(COUNTRY_INFO!A34=0,\" \",COUNTRY_INFO!A34))","v":"MALAWI"},{"$f":"IF(AND(INTRO!$E$37=\"Non-endemic\",INTRO!$E$41=\"Non-endemic\"),\" \",IF(COUNTRY_INFO!B34=0,\" \",COUNTRY_INFO!B34))","v":"South"},{"$f":"IF(AND(INTRO!$E$37=\"Non-endemic\",INTRO!$E$41=\"Non-endemic\"),\" \",IF(COUNTRY_INFO!C34=0,\" \",COUNTRY_INFO!C34))","v":"Phalombe"},{"$f":"IF(AND(INTRO!$E$37=\"Non-endemic\",INTRO!$E$41=\"Non-endemic\"),0,COUNTRY_INFO!V34)","v":0},{"$f":"IF(AND(INTRO!$E$37=\"Non-endemic\",INTRO!$E$41=\"Non-endemic\"),0,COUNTRY_INFO!X34)","v":0},{"$f":"IF(INTRO!$E$39=\"Non-endemic\",IF($D34=1,DEC!I34,0),IF($D34=1,IVM!G34,0))","v":0},1,{"$f":"IF(OR(COUNTRY_INFO!N34=\"Unknown\",COUNTRY_INFO!N34=\"Surveillance\",COUNTRY_INFO!N34=\"Not required\",COUNTRY_INFO!N34=0),0,IF(INTRO!$E$39=\"Non-endemic\",IF(AND($E34<>0,$G34=\"\"),IF($F34=0,COUNTRY_INFO!N34*$E34,COUNTRY_INFO!N34*($E34-$D34)),IF(AND($E34<>0,$G34<>0),IF($F34=0,COUNTRY_INFO!N34*$G34,COUNTRY_INFO!N34*($G34-$D34)),0)),IF($G34=\"\",COUNTRY_INFO!N34*$E34,COUNTRY_INFO!N34*$G34)))","v":0},{"$f":"IF(OR(COUNTRY_INFO!O34=\"Unknown\",COUNTRY_INFO!O34=\"Surveillance\",COUNTRY_INFO!O34=\"Not required\",COUNTRY_INFO!O34=0),0,IF($E34<>0, IF($F34=0,COUNTRY_INFO!O34*$E34,COUNTRY_INFO!O34*($E34-$D34)),COUNTRY_INFO!O34*$E34))","v":0},1,{"$f":"IF(OR(COUNTRY_INFO!P34=\"Unknown\",COUNTRY_INFO!P34=\"Surveillance\",COUNTRY_INFO!P34=\"Not required\",COUNTRY_INFO!P34=0),0,IF(AND($E34<>0,$J34=\"\"),IF($F34=0,COUNTRY_INFO!P34*$E34,COUNTRY_INFO!P34*($E34-$D34)), IF(AND($E34<>0,$J34<>0),IF($F34=0,COUNTRY_INFO!P34*$J34,COUNTRY_INFO!P34*($J34-$D34)), COUNTRY_INFO!P34*$J34)))","v":0},0,0,null,0,0,null,0,0,null,0]
[{"$f":"IF(AND(INTRO!$E$37=\"Non-endemic\",INTRO!$E$41=\"Non-endemic\"),\" \",IF(COUNTRY_INFO!A35=0,\" \",COUNTRY_INFO!A35))","v":"MALAWI"},{"$f":"IF(AND(INTRO!$E$37=\"Non-endemic\",INTRO!$E$41=\"Non-endemic\"),\" \",IF(COUNTRY_INFO!B35=0,\" \",COUNTRY_INFO!B35))","v":"South"},{"$f":"IF(AND(INTRO!$E$37=\"Non-endemic\",INTRO!$E$41=\"Non-endemic\"),\" \",IF(COUNTRY_INFO!C35=0,\" \",COUNTRY_INFO!C35))","v":"Thyolo"},{"$f":"IF(AND(INTRO!$E$37=\"Non-endemic\",INTRO!$E$41=\"Non-endemic\"),0,COUNTRY_INFO!V35)","v":0},{"$f":"IF(AND(INTRO!$E$37=\"Non-endemic\",INTRO!$E$41=\"Non-endemic\"),0,COUNTRY_INFO!X35)","v":0},{"$f":"IF(INTRO!$E$39=\"Non-endemic\",IF($D35=1,DEC!I35,0),IF($D35=1,IVM!G35,0))","v":0},1,{"$f":"IF(OR(COUNTRY_INFO!N35=\"Unknown\",COUNTRY_INFO!N35=\"Surveillance\",COUNTRY_INFO!N35=\"Not required\",COUNTRY_INFO!N35=0),0,IF(INTRO!$E$39=\"Non-endemic\",IF(AND($E35<>0,$G35=\"\"),IF($F35=0,COUNTRY_INFO!N35*$E35,COUNTRY_INFO!N35*($E35-$D35)),IF(AND($E35<>0,$G35<>0),IF($F35=0,COUNTRY_INFO!N35*$G35,COUNTRY_INFO!N35*($G35-$D35)),0)),IF($G35=\"\",COUNTRY_INFO!N35*$E35,COUNTRY_INFO!N35*$G35)))","v":0},{"$f":"IF(OR(COUNTRY_INFO!O35=\"Unknown\",COUNTRY_INFO!O35=\"Surveillance\",COUNTRY_INFO!O35=\"Not required\",COUNTRY_INFO!O35=0),0,IF($E35<>0, IF($F35=0,COUNTRY_INFO!O35*$E35,COUNTRY_INFO!O35*($E35-$D35)),COUNTRY_INFO!O35*$E35))","v":0},1,{"$f":"IF(OR(COUNTRY_INFO!P35=\"Unknown\",COUNTRY_INFO!P35=\"Surveillance\",COUNTRY_INFO!P35=\"Not required\",COUNTRY_INFO!P35=0),0,IF(AND($E35<>0,$J35=\"\"),IF($F35=0,COUNTRY_INFO!P35*$E35,COUNTRY_INFO!P35*($E35-$D35)), IF(AND($E35<>0,$J35<>0),IF($F35=0,COUNTRY_INFO!P35*$J35,COUNTRY_INFO!P35*($J35-$D35)), COUNTRY_INFO!P35*$J35)))","v":0},0,0,null,0,0,null,0,0,null,0]
[{"$f":"IF(AND(INTRO!$E$37=\"Non-endemic\",INTRO!$E$41=\"Non-endemic\"),\" \",IF(COUNTRY_INFO!A36=0,\" \",COUNTRY_INFO!A36))","v":"MALAWI"},{"$f":"IF(AND(INTRO!$E$37=\"Non-endemic\",INTRO!$E$41=\"Non-endemic\"),\" \",IF(COUNTRY_INFO!B36=0,\" \",COUNTRY_INFO!B36))","v":"South"},{"$f":"IF(AND(INTRO!$E$37=\"Non-endemic\",INTRO!$E$41=\"Non-endemic\"),\" \",IF(COUNTRY_INFO!C36=0,\" \",COUNTRY_INFO!C36))","v":"Zomba"},{"$f":"IF(AND(INTRO!$E$37=\"Non-endemic\",INTRO!$E$41=\"Non-endemic\"),0,COUNTRY_INFO!V36)","v":0},{"$f":"IF(AND(INTRO!$E$37=\"Non-endemic\",INTRO!$E$41=\"Non-endemic\"),0,COUNTRY_INFO!X36)","v":0},{"$f":"IF(INTRO!$E$39=\"Non-endemic\",IF($D36=1,DEC!I36,0),IF($D36=1,IVM!G36,0))","v":0},1,{"$f":"IF(OR(COUNTRY_INFO!N36=\"Unknown\",COUNTRY_INFO!N36=\"Surveillance\",COUNTRY_INFO!N36=\"Not required\",COUNTRY_INFO!N36=0),0,IF(INTRO!$E$39=\"Non-endemic\",IF(AND($E36<>0,$G36=\"\"),IF($F36=0,COUNTRY_INFO!N36*$E36,COUNTRY_INFO!N36*($E36-$D36)),IF(AND($E36<>0,$G36<>0),IF($F36=0,COUNTRY_INFO!N36*$G36,COUNTRY_INFO!N36*($G36-$D36)),0)),IF($G36=\"\",COUNTRY_INFO!N36*$E36,COUNTRY_INFO!N36*$G36)))","v":0},{"$f":"IF(OR(COUNTRY_INFO!O36=\"Unknown\",COUNTRY_INFO!O36=\"Surveillance\",COUNTRY_INFO!O36=\"Not required\",COUNTRY_INFO!O36=0),0,IF($E36<>0, IF($F36=0,COUNTRY_INFO!O36*$E36,COUNTRY_INFO!O36*($E36-$D36)),COUNTRY_INFO!O36*$E36))","v":0},1,{"$f":"IF(OR(COUNTRY_INFO!P36=\"Unknown\",COUNTRY_INFO!P36=\"Surveillance\",COUNTRY_INFO!P36=\"Not required\",COUNTRY_INFO!P36=0),0,IF(AND($E36<>0,$J36=\"\"),IF($F36=0,COUNTRY_INFO!P36*$E36,COUNTRY_INFO!P36*($E36-$D36)), IF(AND($E36<>0,$J36<>0),IF($F36=0,COUNTRY_INFO!P36*$J36,COUNTRY_INFO!P36*($J36-$D36)), COUNTRY_INFO!P36*$J36)))","v":0},0,0,null,0,0,null,0,0,null,0]
[{"$f":"IF(AND(INTRO!$E$37=\"Non-endemic\",INTRO!$E$41=\"Non-endemic\"),\" \",IF(COUNTRY_INFO!A37=0,\" \",COUNTRY_INFO!A37))","v":"MALAWI"},{"$f":"IF(AND(INTRO!$E$37=\"Non-endemic\",INTRO!$E$41=\"Non-endemic\"),\" \",IF(COUNTRY_INFO!B37=0,\" \",COUNTRY_INFO!B37))","v":"South"},{"$f":"IF(AND(INTRO!$E$37=\"Non-endemic\",INTRO!$E$41=\"Non-endemic\"),\" \",IF(COUNTRY_INFO!C37=0,\" \",COUNTRY_INFO!C37))","v":"Neno"},{"$f":"IF(AND(INTRO!$E$37=\"Non-endemic\",INTRO!$E$41=\"Non-endemic\"),0,COUNTRY_INFO!V37)","v":0},{"$f":"IF(AND(INTRO!$E$37=\"Non-endemic\",INTRO!$E$41=\"Non-endemic\"),0,COUNTRY_INFO!X37)","v":1},{"$f":"IF(INTRO!$E$39=\"Non-endemic\",IF($D37=1,DEC!I37,0),IF($D37=1,IVM!G37,0))","v":0},1,{"$f":"IF(OR(COUNTRY_INFO!N37=\"Unknown\",COUNTRY_INFO!N37=\"Surveillance\",COUNTRY_INFO!N37=\"Not required\",COUNTRY_INFO!N37=0),0,IF(INTRO!$E$39=\"Non-endemic\",IF(AND($E37<>0,$G37=\"\"),IF($F37=0,COUNTRY_INFO!N37*$E37,COUNTRY_INFO!N37*($E37-$D37)),IF(AND($E37<>0,$G37<>0),IF($F37=0,COUNTRY_INFO!N37*$G37,COUNTRY_INFO!N37*($G37-$D37)),0)),IF($G37=\"\",COUNTRY_INFO!N37*$E37,COUNTRY_INFO!N37*$G37)))","v":0},{"$f":"IF(OR(COUNTRY_INFO!O37=\"Unknown\",COUNTRY_INFO!O37=\"Surveillance\",COUNTRY_INFO!O37=\"Not required\",COUNTRY_INFO!O37=0),0,IF($E37<>0, IF($F37=0,COUNTRY_INFO!O37*$E37,COUNTRY_INFO!O37*($E37-$D37)),COUNTRY_INFO!O37*$E37))","v":54086},1,{"$f":"IF(OR(COUNTRY_INFO!P37=\"Unknown\",COUNTRY_INFO!P37=\"Surveillance\",COUNTRY_INFO!P37=\"Not required\",COUNTRY_INFO!P37=0),0,IF(AND($E37<>0,$J37=\"\"),IF($F37=0,COUNTRY_INFO!P37*$E37,COUNTRY_INFO!P37*($E37-$D37)), IF(AND($E37<>0,$J37<>0),IF($F37=0,COUNTRY_INFO!P37*$J37,COUNTRY_INFO!P37*($J37-$D37)), COUNTRY_INFO!P37*$J37)))","v":0},54086,0,null,0,54086,null,54086,0,null,0]
[{"$f":"IF(AND(INTRO!$E$37=\"Non-endemic\",INTRO!$E$41=\"Non-endemic\"),\" \",IF(COUNTRY_INFO!A38=0,\" \",COUNTRY_INFO!A38))","v":"MALAWI"},{"$f":"IF(AND(INTRO!$E$37=\"Non-endemic\",INTRO!$E$41=\"Non-endemic\"),\" \",IF(COUNTRY_INFO!B38=0,\" \",COUNTRY_INFO!B38))","v":"South"},{"$f":"IF(AND(INTRO!$E$37=\"Non-endemic\",INTRO!$E$41=\"Non-endemic\"),\" \",IF(COUNTRY_INFO!C38=0,\" \",COUNTRY_INFO!C38))","v":"Mwanza"},{"$f":"IF(AND(INTRO!$E$37=\"Non-endemic\",INTRO!$E$41=\"Non-endemic\"),0,COUNTRY_INFO!V38)","v":0},{"$f":"IF(AND(INTRO!$E$37=\"Non-endemic\",INTRO!$E$41=\"Non-endemic\"),0,COUNTRY_INFO!X38)","v":0},{"$f":"IF(INTRO!$E$39=\"Non-endemic\",IF($D38=1,DEC!I38,0),IF($D38=1,IVM!G38,0))","v":0},1,{"$f":"IF(OR(COUNTRY_INFO!N38=\"Unknown\",COUNTRY_INFO!N38=\"Surveillance\",COUNTRY_INFO!N38=\"Not required\",COUNTRY_INFO!N38=0),0,IF(INTRO!$E$39=\"Non-endemic\",IF(AND($E38<>0,$G38=\"\"),IF($F38=0,COUNTRY_INFO!N38*$E38,COUNTRY_INFO!N38*($E38-$D38)),IF(AND($E38<>0,$G38<>0),IF($F38=0,COUNTRY_INFO!N38*$G38,COUNTRY_INFO!N38*($G38-$D38)),0)),IF($G38=\"\",COUNTRY_INFO!N38*$E38,COUNTRY_INFO!N38*$G38)))","v":0},{"$f":"IF(OR(COUNTRY_INFO!O38=\"Unknown\",COUNTRY_INFO!O38=\"Surveillance\",COUNTRY_INFO!O38=\"Not required\",COUNTRY_INFO!O38=0),0,IF($E38<>0, IF($F38=0,COUNTRY_INFO!O38*$E38,COUNTRY_INFO!O38*($E38-$D38)),COUNTRY_INFO!O38*$E38))","v":0},1,{"$f":"IF(OR(COUNTRY_INFO!P38=\"Unknown\",COUNTRY_INFO!P38=\"Surveillance\",COUNTRY_INFO!P38=\"Not required\",COUNTRY_INFO!P38=0),0,IF(AND($E38<>0,$J38=\"\"),IF($F38=0,COUNTRY_INFO!P38*$E38,COUNTRY_INFO!P38*($E38-$D38)), IF(AND($E38<>0,$J38<>0),IF($F38=0,COUNTRY_INFO!P38*$J38,COUNTRY_INFO!P38*($J38-$D38)), COUNTRY_INFO!P38*$J38)))","v":0},0,0,null,0,0,null,0,0,null,0]

{"sheet":"PZQ","index":4,"n_rows":38,"n_cols":18,"rows_kept":38,"cut":false,"hidden":false,"merged":[[3,0,3,2],[5,0,5,2],[5,4,5,7],[5,8,5,9],[6,17,7,17],[6,6,7,6],[6,7,7,7],[6,9,7,9],[6,0,7,0],[6,1,7,1],[6,2,7,2],[6,4,7,4],[5,3,7,3],[6,5,7,5],[6,8,7,8],[6,12,7,12],[5,12,5,17],[5,10,5,11],[6,10,7,10],[6,14,7,14],[6,15,7,15],[6,16,7,16],[6,13,7,13],[6,11,7,11]]}
["Praziquantel (PZQ)"]
["Administrative structure, eligible population by age group, treatment plan and information about tablets"]
[]
["TOTAL",null,null,null,{"$f":"SUBTOTAL(9,E$10:E$1010)","v":1075377},3348548,0,4423925,null,191461,null,null,{"$f":"SUBTOTAL(9,M$10:M$1010)","v":0},6748226,0,6748226,0,6748226]
[]
["Country administrative structure",null,null,"Treatment plan\nSCH","Target population for SCH",null,null,null,"Hot spots",null,"Previous year MDA",null,"Praziquantel (PZQ)"]
["Country","Province/State","District",null,"PreSAC","SAC","Adults","Total","Planned","Population","Rounds","Age groups","PreSAC","SAC","Adults","Total required","Remaining in stock","Tablets to be procured"]
[]
[]
[{"$f":"IF(INTRO!$E$43=\"Non-endemic\",\" \", IF(COUNTRY_INFO!A10=0,\" \",COUNTRY_INFO!A10))","v":"MALAWI"},{"$f":"IF(INTRO!$E$43=\"Non-endemic\",\" \", IF(COUNTRY_INFO!B10=0,\" \",COUNTRY_INFO!B10))","v":"North"},{"$f":"IF(INTRO!$E$43=\"Non-endemic\",\" \", IF(COUNTRY_INFO!C10=0,\" \",COUNTRY_INFO!C10))","v":"Chitipa"},{"$f":"IF(INTRO!$E$43=\"Non-endemic\", \"Not required\", COUNTRY_INFO!Y10)","v":1},{"$f":"IF(OR(COUNTRY_INFO!R10=\"Unknown\",COUNTRY_INFO!R10=\"Surveillance\",COUNTRY_INFO!R10=\"Not required\",COUNTRY_INFO!R10=0),0,IF($D10<>0, COUNTRY_INFO!R10,0))","v":15176},47259,null,{"$f":"SUM(E10:G10)","v":62435},null,null,null,null,null,{"$f":"IF($I10<>\"Yes\",$F10*2,($F10+ROUND(J10*$F10/SUM(COUNTRY_INFO!$E10:$G10),0))*2)","v":94518},{"$f":"IF($I10<>\"Yes\",$G10*3,($G10+ROUND(J10*$G10/SUM(COUNTRY_INFO!$E10:$G10),0))*3)","v":0},{"$f":"SUM(M10:O10)","v":94518},null,{"$f":"IF($P10>$Q10,P10-Q10,0)","v":94518}]
[{"$f":"IF(INTRO!$E$43=\"Non-endemic\",\" \", IF(COUNTRY_INFO!A11=0,\" \",COUNTRY_INFO!A11))","v":"MALAWI"},{"$f":"IF(INTRO!$E$43=\"Non-endemic\",\" \", IF(COUNTRY_INFO!B11=0,\" \",COUNTRY_INFO!B11))","v":"North"},{"$f":"IF(INTRO!$E$43=\"Non-endemic\",\" \", IF(COUNTRY_INFO!C11=0,\" \",COUNTRY_INFO!C11))","v":"Karonga"},{"$f":"IF(INTRO!$E$43=\"Non-endemic\", \"Not required\", COUNTRY_INFO!Y11)","v":1},{"$f":"IF(OR(COUNTRY_INFO!R11=\"Unknown\",COUNTRY_INFO!R11=\"Surveillance\",COUNTRY_INFO!R11=\"Not required\",COUNTRY_INFO!R11=0),0,IF($D11<>0, COUNTRY_INFO!R11,0))","v":18111},56393,null,{"$f":"SUM(E11:G11)","v":74504},null,null,null,null,null,{"$f":"IF($I11<>\"Yes\",$F11*2,($F11+ROUND(J11*$F11/SUM(COUNTRY_INFO!$E11:$G11),0))*2)","v":112786},{"$f":"IF($I11<>\"Yes\",$G11*3,($G11+ROUND(J11*$G11/SUM(COUNTRY_INFO!$E11:$G11),0))*3)","v":0},{"$f":"SUM(M11:O11)","v":112786},null,{"$f":"IF($P11>$Q11,P11-Q11,0)","v":112786}]
[{"$f":"IF(INTRO!$E$43=\"Non-endemic\",\" \", IF(COUNTRY_INFO!A12=0,\" \",COUNTRY_INFO!A12))","v":"MALAWI"},{"$f":"IF(INTRO!$E$43=\"Non-endemic\",\" \", IF(COUNTRY_INFO!B12=0,\" \",COUNTRY_INFO!B12))","v":"North"},{"$f":"IF(INTRO!$E$43=\"Non-endemic\",\" \", IF(COUNTRY_INFO!C12=0,\" \",COUNTRY_INFO!C12))","v":"Rumphi"},{"$f":"IF(INTRO!$E$43=\"Non-endemic\", \"Not required\", COUNTRY_INFO!Y12)","v":1},{"$f":"IF(OR(COUNTRY_INFO!R12=\"Unknown\",COUNTRY_INFO!R12=\"Surveillance\",COUNTRY_INFO!R12=\"Not required\",COUNTRY_INFO!R12=0),0,IF($D12<>0, COUNTRY_INFO!R12,0))","v":3835},11943,null,15778,null,null,null,null,null,{"$f":"IF($I12<>\"Yes\",$F12*2,($F12+ROUND(J12*$F12/SUM(COUNTRY_INFO!$E12:$G12),0))*2)","v":23886},{"$f":"IF($I12<>\"Yes\",$G12*3,($G12+ROUND(J12*$G12/SUM(COUNTRY_INFO!$E12:$G12),0))*3)","v":0},23886,null,23886]
[{"$f":"IF(INTRO!$E$43=\"Non-endemic\",\" \", IF(COUNTRY_INFO!A13=0,\" \",COUNTRY_INFO!A13))","v":"MALAWI"},{"$f":"IF(INTRO!$E$43=\"Non-endemic\",\" \", IF(COUNTRY_INFO!B13=0,\" \",COUNTRY_INFO!B13))","v":"North"},{"$f":"IF(INTRO!$E$43=\"Non-endemic\",\" \", IF(COUNTRY_INFO!C13=0,\" \",COUNTRY_INFO!C13))","v":"Mzimba North"},{"$f":"IF(INTRO!$E$43=\"Non-endemic\", \"Not required\", COUNTRY_INFO!Y13)","v":1},{"$f":"IF(OR(COUNTRY_INFO!R13=\"Unknown\",COUNTRY_INFO!R13=\"Surveillance\",COUNTRY_INFO!R13=\"Not required\",COUNTRY_INFO!R13=0),0,IF($D13<>0, COUNTRY_INFO!R13,0))","v":48246},150232,null,198478,null,null,null,null,null,{"$f":"IF($I13<>\"Yes\",$F13*2,($F13+ROUND(J13*$F13/SUM(COUNTRY_INFO!$E13:$G13),0))*2)","v":300464},{"$f":"IF($I13<>\"Yes\",$G13*3,($G13+ROUND(J13*$G13/SUM(COUNTRY_INFO!$E13:$G13),0))*3)","v":0},300464,null,300464]
[{"$f":"IF(INTRO!$E$43=\"Non-endemic\",\" \", IF(COUNTRY_INFO!A14=0,\" \",COUNTRY_INFO!A14))","v":"MALAWI"},{"$f":"IF(INTRO!$E$43=\"Non-endemic\",\" \", IF(COUNTRY_INFO!B14=0,\" \",COUNTRY_INFO!B14))","v":"North"},{"$f":"IF(INTRO!$E$43=\"Non-endemic\",\" \", IF(COUNTRY_INFO!C14=0,\" \",COUNTRY_INFO!C14))","v":"Mzimba South"},{"$f":"IF(INTRO!$E$43=\"Non-endemic\", \"Not required\", COUNTRY_INFO!Y14)","v":1},{"$f":"IF(OR(COUNTRY_INFO!R14=\"Unknown\",COUNTRY_INFO!R14=\"Surveillance\",COUNTRY_INFO!R14=\"Not required\",COUNTRY_INFO!R14=0),0,IF($D14<>0, COUNTRY_INFO!R14,0))","v":11352},35349,null,46701,null,null,null,null,null,{"$f":"IF($I14<>\"Yes\",$F14*2,($F14+ROUND(J14*$F14/SUM(COUNTRY_INFO!$E14:$G14),0))*2)","v":70698},{"$f":"IF($I14<>\"Yes\",$G14*3,($G14+ROUND(J14*$G14/SUM(COUNTRY_INFO!$E14:$G14),0))*3)","v":0},70698,null,70698]
[{"$f":"IF(INTRO!$E$43=\"Non-endemic\",\" \", IF(COUNTRY_INFO!A15=0,\" \",COUNTRY_INFO!A15))","v":"MALAWI"},{"$f":"IF(INTRO!$E$43=\"Non-endemic\",\" \", IF(COUNTRY_INFO!B15=0,\" \",COUNTRY_INFO!B15))","v":"North"},{"$f":"IF(INTRO!$E$43=\"Non-endemic\",\" \", IF(COUNTRY_INFO!C15=0,\" \",COUNTRY_INFO!C15))","v":"Nkhata bay"},{"$f":"IF(INTRO!$E$43=\"Non-endemic\", \"Not required\", COUNTRY_INFO!Y15)","v":1},{"$f":"IF(OR(COUNTRY_INFO!R15=\"Unknown\",COUNTRY_INFO!R15=\"Surveillance\",COUNTRY_INFO!R15=\"Not required\",COUNTRY_INFO!R15=0),0,IF($D15<>0, COUNTRY_INFO!R15,0))","v":17985},55997,null,73982,null,null,null,null,null,{"$f":"IF($I15<>\"Yes\",$F15*2,($F15+ROUND(J15*$F15/SUM(COUNTRY_INFO!$E15:$G15),0))*2)","v":111994},{"$f":"IF($I15<>\"Yes\",$G15*3,($G15+ROUND(J15*$G15/SUM(COUNTRY_INFO!$E15:$G15),0))*3)","v":0},111994,null,111994]
[{"$f":"IF(INTRO!$E$43=\"Non-endemic\",\" \", IF(COUNTRY_INFO!A16=0,\" \",COUNTRY_INFO!A16))","v":"MALAWI"},{"$f":"IF(INTRO!$E$43=\"Non-endemic\",\" \", IF(COUNTRY_INFO!B16=0,\" \",COUNTRY_INFO!B16))","v":"North"},{"$f":"IF(INTRO!$E$43=\"Non-endemic\",\" \", IF(COUNTRY_INFO!C16=0,\" \",COUNTRY_INFO!C16))","v":"Likoma"},{"$f":"IF(INTRO!$E$43=\"Non-endemic\", \"Not required\", COUNTRY_INFO!Y16)","v":1},{"$f":"IF(OR(COUNTRY_INFO!R16=\"Unknown\",COUNTRY_INFO!R16=\"Surveillance\",COUNTRY_INFO!R16=\"Not required\",COUNTRY_INFO!R16=0),0,IF($D16<>0, COUNTRY_INFO!R16,0))","v":1357},4224,null,5581,null,null,null,null,null,{"$f":"IF($I16<>\"Yes\",$F16*2,($F16+ROUND(J16*$F16/SUM(COUNTRY_INFO!$E16:$G16),0))*2)","v":8448},{"$f":"IF($I16<>\"Yes\",$G16*3,($G16+ROUND(J16*$G16/SUM(COUNTRY_INFO!$E16:$G16),0))*3)","v":0},8448,null,8448]
[{"$f":"IF(INTRO!$E$43=\"Non-endemic\",\" \", IF(COUNTRY_INFO!A17=0,\" \",COUNTRY_INFO!A17))","v":"MALAWI"},{"$f":"IF(INTRO!$E$43=\"Non-endemic\",\" \", IF(COUNTRY_INFO!B17=0,\" \",COUNTRY_INFO!B17))","v":"Central"},{"$f":"IF(INTRO!$E$43=\"Non-endemic\",\" \", IF(COUNTRY_INFO!C17=0,\" \",COUNTRY_INFO!C17))","v":"Kasungu"},{"$f":"IF(INTRO!$E$43=\"Non-endemic\", \"Not required\", COUNTRY_INFO!Y17)","v":1},{"$f":"IF(OR(COUNTRY_INFO!R17=\"Unknown\",COUNTRY_INFO!R17=\"Surveillance\",COUNTRY_INFO!R17=\"Not required\",COUNTRY_INFO!R17=0),0,IF($D17<>0, COUNTRY_INFO!R17,0))","v":56826},176946,null,233772,null,null,null,null,null,{"$f":"IF($I17<>\"Yes\",$F17*2,($F17+ROUND(J17*$F17/SUM(COUNTRY_INFO!$E17:$G17),0))*2)","v":353892},{"$f":"IF($I17<>\"Yes\",$G17*3,($G17+ROUND(J17*$G17/SUM(COUNTRY_INFO!$E17:$G17),0))*3)","v":0},353892,null,353892]
[{"$f":"IF(INTRO!$E$43=\"Non-endemic\",\" \", IF(COUNTRY_INFO!A18=0,\" \",COUNTRY_INFO!A18))","v":"MALAWI"},{"$f":"IF(INTRO!$E$43=\"Non-endemic\",\" \", IF(COUNTRY_INFO!B18=0,\" \",COUNTRY_INFO!B18))","v":"Central"},{"$f":"IF(INTRO!$E$43=\"Non-endemic\",\" \", IF(COUNTRY_INFO!C18=0,\" \",COUNTRY_INFO!C18))","v":"Dedza"},{"$f":"IF(INTRO!$E$43=\"Non-endemic\", \"Not required\", COUNTRY_INFO!Y18)","v":1},{"$f":"IF(OR(COUNTRY_INFO!R18=\"Unknown\",COUNTRY_INFO!R18=\"Surveillance\",COUNTRY_INFO!R18=\"Not required\",COUNTRY_INFO!R18=0),0,IF($D18<>0, COUNTRY_INFO!R18,0))","v":52942},164853,null,217795,null,null,null,null,null,{"$f":"IF($I18<>\"Yes\",$F18*2,($F18+ROUND(J18*$F18/SUM(COUNTRY_INFO!$E18:$G18),0))*2)","v":329706},{"$f":"IF($I18<>\"Yes\",$G18*3,($G18+ROUND(J18*$G18/SUM(COUNTRY_INFO!$E18:$G18),0))*3)","v":0},329706,null,329706]
[{"$f":"IF(INTRO!$E$43=\"Non-endemic\",\" \", IF(COUNTRY_INFO!A19=0,\" \",COUNTRY_INFO!A19))","v":"MALAWI"},{"$f":"IF(INTRO!$E$43=\"Non-endemic\",\" \", IF(COUNTRY_INFO!B19=0,\" \",COUNTRY_INFO!B19))","v":"Central"},{"$f":"IF(INTRO!$E$43=\"Non-endemic\",\" \", IF(COUNTRY_INFO!C19=0,\" \",COUNTRY_INFO!C19))","v":"Dowa"},{"$f":"IF(INTRO!$E$43=\"Non-endemic\", \"Not required\", COUNTRY_INFO!Y19)","v":1},{"$f":"IF(OR(COUNTRY_INFO!R19=\"Unknown\",COUNTRY_INFO!R19=\"Surveillance\",COUNTRY_INFO!R19=\"Not required\",COUNTRY_INFO!R19=0),0,IF($D19<>0, COUNTRY_INFO!R19,0))","v":10859},33812,null,44671,null,null,null,null,null,{"$f":"IF($I19<>\"Yes\",$F19*2,($F19+ROUND(J19*$F19/SUM(COUNTRY_INFO!$E19:$G19),0))*2)","v":67624},{"$f":"IF($I19<>\"Yes\",$G19*3,($G19+ROUND(J19*$G19/SUM(COUNTRY_INFO!$E19:$G19),0))*3)","v":0},67624,null,67624]
[{"$f":"IF(INTRO!$E$43=\"Non-endemic\",\" \", IF(COUNTRY_INFO!A20=0,\" \",COUNTRY_INFO!A20))","v":"MALAWI"},{"$f":"IF(INTRO!$E$43=\"Non-endemic\",\" \", IF(COUNTRY_INFO!B20=0,\" \",COUNTRY_INFO!B20))","v":"Central"},{"$f":"IF(INTRO!$E$43=\"Non-endemic\",\" \", IF(COUNTRY_INFO!C20=0,\" \",COUNTRY_INFO!C20))","v":"Lilongwe"},{"$f":"IF(INTRO!$E$43=\"Non-endemic\", \"Not required\", COUNTRY_INFO!Y20)","v":1},{"$f":"IF(OR(COUNTRY_INFO!R20=\"Unknown\",COUNTRY_INFO!R20=\"Surveillance\",COUNTRY_INFO!R20=\"Not required\",COUNTRY_INFO!R20=0),0,IF($D20<>0, COUNTRY_INFO!R20,0))","v":140987},439008,null,579995,"Yes",31400,null,null,null,{"$f":"IF($I20<>\"Yes\",$F20*2,($F20+ROUND(J20*$F20/SUM(COUNTRY_INFO!$E20:$G20),0))*2)","v":888776},{"$f":"IF($I20<>\"Yes\",$G20*3,($G20+ROUND(J20*$G20/SUM(COUNTRY_INFO!$E20:$G20),0))*3)","v":0},888776,null,888776]
[{"$f":"IF(INTRO!$E$43=\"Non-endemic\",\" \", IF(COUNTRY_INFO!A21=0,\" \",COUNTRY_INFO!A21))","v":"MALAWI"},{"$f":"IF(INTRO!$E$43=\"Non-endemic\",\" \", IF(COUNTRY_INFO!B21=0,\" \",COUNTRY_INFO!B21))","v":"Central"},{"$f":"IF(INTRO!$E$43=\"Non-endemic\",\" \", IF(COUNTRY_INFO!C21=0,\" \",COUNTRY_INFO!C21))","v":"Mchinji"},{"$f":"IF(INTRO!$E$43=\"Non-endemic\", \"Not required\", COUNTRY_INFO!Y21)","v":1},{"$f":"IF(OR(COUNTRY_INFO!R21=\"Unknown\",COUNTRY_INFO!R21=\"Surveillance\",COUNTRY_INFO!R21=\"Not required\",COUNTRY_INFO!R21=0),0,IF($D21<>0, COUNTRY_INFO!R21,0))","v":15227},47414,null,62641,null,null,null,null,null,{"$f":"IF($I21<>\"Yes\",$F21*2,($F21+ROUND(J21*$F21/SUM(COUNTRY_INFO!$E21:$G21),0))*2)","v":94828},{"$f":"IF($I21<>\"Yes\",$G21*3,($G21+ROUND(J21*$G21/SUM(COUNTRY_INFO!$E21:$G21),0))*3)","v":0},94828,null,94828]
[{"$f":"IF(INTRO!$E$43=\"Non-endemic\",\" \", IF(COUNTRY_INFO!A22=0,\" \",COUNTRY_INFO!A22))","v":"MALAWI"},{"$f":"IF(INTRO!$E$43=\"Non-endemic\",\" \", IF(COUNTRY_INFO!B22=0,\" \",COUNTRY_INFO!B22))","v":"Central"},{"$f":"IF(INTRO!$E$43=\"Non-endemic\",\" \", IF(COUNTRY_INFO!C22=0,\" \",COUNTRY_INFO!C22))","v":"Salima"},{"$f":"IF(INTRO!$E$43=\"Non-endemic\", \"Not required\", COUNTRY_INFO!Y22)","v":1},{"$f":"IF(OR(COUNTRY_INFO!R22=\"Unknown\",COUNTRY_INFO!R22=\"Surveillance\",COUNTRY_INFO!R22=\"Not required\",COUNTRY_INFO!R22=0),0,IF($D22<>0, COUNTRY_INFO!R22,0))","v":31230},97249,null,128479,null,null,null,null,null,{"$f":"IF($I22<>\"Yes\",$F22*2,($F22+ROUND(J22*$F22/SUM(COUNTRY_INFO!$E22:$G22),0))*2)","v":194498},{"$f":"IF($I22<>\"Yes\",$G22*3,($G22+ROUND(J22*$G22/SUM(COUNTRY_INFO!$E22:$G22),0))*3)","v":0},194498,null,194498]
[{"$f":"IF(INTRO!$E$43=\"Non-endemic\",\" \", IF(COUNTRY_INFO!A23=0,\" \",COUNTRY_INFO!A23))","v":"MALAWI"},{"$f":"IF(INTRO!$E$43=\"Non-endemic\",\" \", IF(COUNTRY_INFO!B23=0,\" \",COUNTRY_INFO!B23))","v":"Central"},{"$f":"IF(INTRO!$E$43=\"Non-endemic\",\" \", IF(COUNTRY_INFO!C23=0,\" \",COUNTRY_INFO!C23))","v":"Nkhotakota"},{"$f":"IF(INTRO!$E$43=\"Non-endemic\", \"Not required\", COUNTRY_INFO!Y23)","v":1},{"$f":"IF(OR(COUNTRY_INFO!R23=\"Unknown\",COUNTRY_INFO!R23=\"Surveillance\",COUNTRY_INFO!R23=\"Not required\",COUNTRY_INFO!R23=0),0,IF($D23<>0, COUNTRY_INFO!R23,0))","v":40378},125732,null,166110,"Yes",61555,null,null,null,{"$f":"IF($I23<>\"Yes\",$F23*2,($F23+ROUND(J23*$F23/SUM(COUNTRY_INFO!$E23:$G23),0))*2)","v":291834},{"$f":"IF($I23<>\"Yes\",$G23*3,($G23+ROUND(J23*$G23/SUM(COUNTRY_INFO!$E23:$G23),0))*3)","v":0},291834,null,291834]
[{"$f":"IF(INTRO!$E$43=\"Non-endemic\",\" \", IF(COUNTRY_INFO!A24=0,\" \",COUNTRY_INFO!A24))","v":"MALAWI"},{"$f":"IF(INTRO!$E$43=\"Non-endemic\",\" \", IF(COUNTRY_INFO!B24=0,\" \",COUNTRY_INFO!B24))","v":"Central"},{"$f":"IF(INTRO!$E$43=\"Non-endemic\",\" \", IF(COUNTRY_INFO!C24=0,\" \",COUNTRY_INFO!C24))","v":"Ntchisi"},{"$f":"IF(INTRO!$E$43=\"Non-endemic\", \"Not required\", COUNTRY_INFO!Y24)","v":1},{"$f":"IF(OR(COUNTRY_INFO!R24=\"Unknown\",COUNTRY_INFO!R24=\"Surveillance\",COUNTRY_INFO!R24=\"Not required\",COUNTRY_INFO!R24=0),0,IF($D24<>0, COUNTRY_INFO!R24,0))","v":15374},47872,null,63246,null,null,null,null,null,{"$f":"IF($I24<>\"Yes\",$F24*2,($F24+ROUND(J24*$F24/SUM(COUNTRY_INFO!$E24:$G24),0))*2)","v":95744},{"$f":"IF($I24<>\"Yes\",$G24*3,($G24+ROUND(J24*$G24/SUM(COUNTRY_INFO!$E24:$G24),0))*3)","v":0},95744,null,95744]
[{"$f":"IF(INTRO!$E$43=\"Non-endemic\",\" \", IF(COUNTRY_INFO!A25=0,\" \",COUNTRY_INFO!A25))","v":"MALAWI"},{"$f":"IF(INTRO!$E$43=\"Non-endemic\",\" \", IF(COUNTRY_INFO!B25=0,\" \",COUNTRY_INFO!B25))","v":"Central"},{"$f":"IF(INTRO!$E$43=\"Non-endemic\",\" \", IF(COUNTRY_INFO!C25=0,\" \",COUNTRY_INFO!C25))","v":"Ntcheu"},{"$f":"IF(INTRO!$E$43=\"Non-endemic\", \"Not required\", COUNTRY_INFO!Y25)","v":1},{"$f":"IF(OR(COUNTRY_INFO!R25=\"Unknown\",COUNTRY_INFO!R25=\"Surveillance\",COUNTRY_INFO!R25=\"Not required\",COUNTRY_INFO!R25=0),0,IF($D25<>0, COUNTRY_INFO!R25,0))","v":19796},61641,null,81437,null,null,null,null,null,{"$f":"IF($I25<>\"Yes\",$F25*2,($F25+ROUND(J25*$F25/SUM(COUNTRY_INFO!$E25:$G25),0))*2)","v":123282},{"$f":"IF($I25<>\"Yes\",$G25*3,($G25+ROUND(J25*$G25/SUM(COUNTRY_INFO!$E25:$G25),0))*3)","v":0},123282,null,123282]
[{"$f":"IF(INTRO!$E$43=\"Non-endemic\",\" \", IF(COUNTRY_INFO!A26=0,\" \",COUNTRY_INFO!A26))","v":"MALAWI"},{"$f":"IF(INTRO!$E$43=\"Non-endemic\",\" \", IF(COUNTRY_INFO!B26=0,\" \",COUNTRY_INFO!B26))","v":"South"},{"$f":"IF(INTRO!$E$43=\"Non-endemic\",\" \", IF(COUNTRY_INFO!C26=0,\" \",COUNTRY_INFO!C26))","v":"Balaka"},{"$f":"IF(INTRO!$E$43=\"Non-endemic\", \"Not required\", COUNTRY_INFO!Y26)","v":1},{"$f":"IF(OR(COUNTRY_INFO!R26=\"Unknown\",COUNTRY_INFO!R26=\"Surveillance\",COUNTRY_INFO!R26=\"Not required\",COUNTRY_INFO!R26=0),0,IF($D26<>0, COUNTRY_INFO!R26,0))","v":7185},22373,null,29558,null,null,null,null,null,{"$f":"IF($I26<>\"Yes\",$F26*2,($F26+ROUND(J26*$F26/SUM(COUNTRY_INFO!$E26:$G26),0))*2)","v":44746},{"$f":"IF($I26<>\"Yes\",$G26*3,($G26+ROUND(J26*$G26/SUM(COUNTRY_INFO!$E26:$G26),0))*3)","v":0},44746,null,44746]
[{"$f":"IF(INTRO!$E$43=\"Non-endemic\",\" \", IF(COUNTRY_INFO!A27=0,\" \",COUNTRY_INFO!A27))","v":"MALAWI"},{"$f":"IF(INTRO!$E$43=\"Non-endemic\",\" \", IF(COUNTRY_INFO!B27=0,\" \",COUNTRY_INFO!B27))","v":"South"},{"$f":"IF(INTRO!$E$43=\"Non-endemic\",\" \", IF(COUNTRY_INFO!C27=0,\" \",COUNTRY_INFO!C27))","v":"Chikwawa"},{"$f":"IF(INTRO!$E$43=\"Non-endemic\", \"Not required\", COUNTRY_INFO!Y27)","v":1},{"$f":"IF(OR(COUNTRY_INFO!R27=\"Unknown\",COUNTRY_INFO!R27=\"Surveillance\",COUNTRY_INFO!R27=\"Not required\",COUNTRY_INFO!R27=0),0,IF($D27<>0, COUNTRY_INFO!R27,0))","v":58008},180624,null,238632,null,null,null,null,null,{"$f":"IF($I27<>\"Yes\",$F27*2,($F27+ROUND(J27*$F27/SUM(COUNTRY_INFO!$E27:$G27),0))*2)","v":361248},{"$f":"IF($I27<>\"Yes\",$G27*3,($G27+ROUND(J27*$G27/SUM(COUNTRY_INFO!$E27:$G27),0))*3)","v":0},361248,null,361248]
[{"$f":"IF(INTRO!$E$43=\"Non-endemic\",\" \", IF(COUNTRY_INFO!A28=0,\" \",COUNTRY_INFO!A28))","v":"MALAWI"},{"$f":"IF(INTRO!$E$43=\"Non-endemic\",\" \", IF(COUNTRY_INFO!B28=0,\" \",COUNTRY_INFO!B28))","v":"South"},{"$f":"IF(INTRO!$E$43=\"Non-endemic\",\" \", IF(COUNTRY_INFO!C28=0,\" \",COUNTRY_INFO!C28))","v":"Chiradzulu"},{"$f":"IF(INTRO!$E$43=\"Non-endemic\", \"Not required\", COUNTRY_INFO!Y28)","v":1},{"$f":"IF(OR(COUNTRY_INFO!R28=\"Unknown\",COUNTRY_INFO!R28=\"Surveillance\",COUNTRY_INFO!R28=\"Not required\",COUNTRY_INFO!R28=0),0,IF($D28<>0, COUNTRY_INFO!R28,0))","v":21452},66800,null,88252,null,null,null,null,null,{"$f":"IF($I28<>\"Yes\",$F28*2,($F28+ROUND(J28*$F28/SUM(COUNTRY_INFO!$E28:$G28),0))*2)","v":133600},{"$f":"IF($I28<>\"Yes\",$G28*3,($G28+ROUND(J28*$G28/SUM(COUNTRY_INFO!$E28:$G28),0))*3)","v":0},133600,null,133600]
[{"$f":"IF(INTRO!$E$43=\"Non-endemic\",\" \", IF(COUNTRY_INFO!A29=0,\" \",COUNTRY_INFO!A29))","v":"MALAWI"},{"$f":"IF(INTRO!$E$43=\"Non-endemic\",\" \", IF(COUNTRY_INFO!B29=0,\" \",COUNTRY_INFO!B29))","v":"South"},{"$f":"IF(INTRO!$E$43=\"Non-endemic\",\" \", IF(COUNTRY_INFO!C29=0,\" \",COUNTRY_INFO!C29))","v":"Machinga"},{"$f":"IF(INTRO!$E$43=\"Non-endemic\", \"Not required\", COUNTRY_INFO!Y29)","v":1},{"$f":"IF(OR(COUNTRY_INFO!R29=\"Unknown\",COUNTRY_INFO!R29=\"Surveillance\",COUNTRY_INFO!R29=\"Not required\",COUNTRY_INFO!R29=0),0,IF($D29<>0, COUNTRY_INFO!R29,0))","v":75546},235242,null,310788,null,null,null,null,null,{"$f":"IF($I29<>\"Yes\",$F29*2,($F29+ROUND(J29*$F29/SUM(COUNTRY_INFO!$E29:$G29),0))*2)","v":470484},{"$f":"IF($I29<>\"Yes\",$G29*3,($G29+ROUND(J29*$G29/SUM(COUNTRY_INFO!$E29:$G29),0))*3)","v":0},470484,null,470484]
[{"$f":"IF(INTRO!$E$43=\"Non-endemic\",\" \", IF(COUNTRY_INFO!A30=0,\" \",COUNTRY_INFO!A30))","v":"MALAWI"},{"$f":"IF(INTRO!$E$43=\"Non-endemic\",\" \", IF(COUNTRY_INFO!B30=0,\" \",COUNTRY_INFO!B30))","v":"South"},{"$f":"IF(INTRO!$E$43=\"Non-endemic\",\" \", IF(COUNTRY_INFO!C30=0,\" \",COUNTRY_INFO!C30))","v":"Blantyre"},{"$f":"IF(INTRO!$E$43=\"Non-endemic\", \"Not required\", COUNTRY_INFO!Y30)","v":1},{"$f":"IF(OR(COUNTRY_INFO!R30=\"Unknown\",COUNTRY_INFO!R30=\"Surveillance\",COUNTRY_INFO!R30=\"Not required\",COUNTRY_INFO!R30=0),0,IF($D30<>0, COUNTRY_INFO!R30,0))","v":39737},123735,null,163472,null,null,null,null,null,{"$f":"IF($I30<>\"Yes\",$F30*2,($F30+ROUND(J30*$F30/SUM(COUNTRY_INFO!$E30:$G30),0))*2)","v":247470},{"$f":"IF($I30<>\"Yes\",$G30*3,($G30+ROUND(J30*$G30/SUM(COUNTRY_INFO!$E30:$G30),0))*3)","v":0},247470,null,247470]
[{"$f":"IF(INTRO!$E$43=\"Non-endemic\",\" \", IF(COUNTRY_INFO!A31=0,\" \",COUNTRY_INFO!A31))","v":"MALAWI"},{"$f":"IF(INTRO!$E$43=\"Non-endemic\",\" \", IF(COUNTRY_INFO!B31=0,\" \",COUNTRY_INFO!B31))","v":"South"},{"$f":"IF(INTRO!$E$43=\"Non-endemic\",\" \", IF(COUNTRY_INFO!C31=0,\" \",COUNTRY_INFO!C31))","v":"Mangochi"},{"$f":"IF(INTRO!$E$43=\"Non-endemic\", \"Not required\", COUNTRY_INFO!Y31)","v":1},{"$f":"IF(OR(COUNTRY_INFO!R31=\"Unknown\",COUNTRY_INFO!R31=\"Surveillance\",COUNTRY_INFO!R31=\"Not required\",COUNTRY_INFO!R31=0),0,IF($D31<>0, COUNTRY_INFO!R31,0))","v":107420},334492,null,441912,null,84805,null,null,null,{"$f":"IF($I31<>\"Yes\",$F31*2,($F31+ROUND(J31*$F31/SUM(COUNTRY_INFO!$E31:$G31),0))*2)","v":668984},{"$f":"IF($I31<>\"Yes\",$G31*3,($G31+ROUND(J31*$G31/SUM(COUNTRY_INFO!$E31:$G31),0))*3)","v":0},668984,null,668984]
[{"$f":"IF(INTRO!$E$43=\"Non-endemic\",\" \", IF(COUNTRY_INFO!A32=0,\" \",COUNTRY_INFO!A32))","v":"MALAWI"},{"$f":"IF(INTRO!$E$43=\"Non-endemic\",\" \", IF(COUNTRY_INFO!B32=0,\" \",COUNTRY_INFO!B32))","v":"South"},{"$f":"IF(INTRO!$E$43=\"Non-endemic\",\" \", IF(COUNTRY_INFO!C32=0,\" \",COUNTRY_INFO!C32))","v":"Mulanje"},{"$f":"IF(INTRO!$E$43=\"Non-endemic\", \"Not required\", COUNTRY_INFO!Y32)","v":1},{"$f":"IF(OR(COUNTRY_INFO!R32=\"Unknown\",COUNTRY_INFO!R32=\"Surveillance\",COUNTRY_INFO!R32=\"Not required\",COUNTRY_INFO!R32=0),0,IF($D32<>0, COUNTRY_INFO!R32,0))","v":65023},202475,null,267498,null,null,null,null,null,{"$f":"IF($I32<>\"Yes\",$F32*2,($F32+ROUND(J32*$F32/SUM(COUNTRY_INFO!$E32:$G32),0))*2)","v":404950},{"$f":"IF($I32<>\"Yes\",$G32*3,($G32+ROUND(J32*$G32/SUM(COUNTRY_INFO!$E32:$G32),0))*3)","v":0},404950,null,404950]
[{"$f":"IF(INTRO!$E$43=\"Non-endemic\",\" \", IF(COUNTRY_INFO!A33=0,\" \",COUNTRY_INFO!A33))","v":"MALAWI"},{"$f":"IF(INTRO!$E$43=\"Non-endemic\",\" \", IF(COUNTRY_INFO!B33=0,\" \",COUNTRY_INFO!B33))","v":"South"},{"$f":"IF(INTRO!$E$43=\"Non-endemic\",\" \", IF(COUNTRY_INFO!C33=0,\" \",COUNTRY_INFO!C33))","v":"Nsanje"},{"$f":"IF(INTRO!$E$43=\"Non-endemic\", \"Not required\", COUNTRY_INFO!Y33)","v":1},{"$f":"IF(OR(COUNTRY_INFO!R33=\"Unknown\",COUNTRY_INFO!R33=\"Surveillance\",COUNTRY_INFO!R33=\"Not required\",COUNTRY_INFO!R33=0),0,IF($D33<>0, COUNTRY_INFO!R33,0))","v":29834},92896,null,{"$f":"SUM(E33:G33)","v":122730},null,13701,null,null,null,{"$f":"IF($I33<>\"Yes\",$F33*2,($F33+ROUND(J33*$F33/SUM(COUNTRY_INFO!$E33:$G33),0))*2)","v":185792},{"$f":"IF($I33<>\"Yes\",$G33*3,($G33+ROUND(J33*$G33/SUM(COUNTRY_INFO!$E33:$G33),0))*3)","v":0},185792,null,185792]
[{"$f":"IF(INTRO!$E$43=\"Non-endemic\",\" \", IF(COUNTRY_INFO!A34=0,\" \",COUNTRY_INFO!A34))","v":"MALAWI"},{"$f":"IF(INTRO!$E$43=\"Non-endemic\",\" \", IF(COUNTRY_INFO!B34=0,\" \",COUNTRY_INFO!B34))","v":"South"},{"$f":"IF(INTRO!$E$43=\"Non-endemic\",\" \", IF(COUNTRY_INFO!C34=0,\" \",COUNTRY_INFO!C34))","v":"Phalombe"},{"$f":"IF(INTRO!$E$43=\"Non-endemic\", \"Not required\", COUNTRY_INFO!Y34)","v":1},{"$f":"IF(OR(COUNTRY_INFO!R34=\"Unknown\",COUNTRY_INFO!R34=\"Surveillance\",COUNTRY_INFO!R34=\"Not required\",COUNTRY_INFO!R34=0),0,IF($D34<>0, COUNTRY_INFO!R34,0))","v":33734},105039,null,138773,null,null,null,null,null,{"$f":"IF($I34<>\"Yes\",$F34*2,($F34+ROUND(J34*$F34/SUM(COUNTRY_INFO!$E34:$G34),0))*2)","v":210078},{"$f":"IF($I34<>\"Yes\",$G34*3,($G34+ROUND(J34*$G34/SUM(COUNTRY_INFO!$E34:$G34),0))*3)","v":0},210078,null,210078]
[{"$f":"IF(INTRO!$E$43=\"Non-endemic\",\" \", IF(COUNTRY_INFO!A35=0,\" \",COUNTRY_INFO!A35))","v":"MALAWI"},{"$f":"IF(INTRO!$E$43=\"Non-endemic\",\" \", IF(COUNTRY_INFO!B35=0,\" \",COUNTRY_INFO!B35))","v":"South"},{"$f":"IF(INTRO!$E$43=\"Non-endemic\",\" \", IF(COUNTRY_INFO!C35=0,\" \",COUNTRY_INFO!C35))","v":"Thyolo"},{"$f":"IF(INTRO!$E$43=\"Non-endemic\", \"Not required\", COUNTRY_INFO!Y35)","v":1},{"$f":"IF(OR(COUNTRY_INFO!R35=\"Unknown\",COUNTRY_INFO!R35=\"Surveillance\",COUNTRY_INFO!R35=\"Not required\",COUNTRY_INFO!R35=0),0,IF($D35<>0, COUNTRY_INFO!R35,0))","v":52316},162901,null,215217,null,null,null,null,null,{"$f":"IF($I35<>\"Yes\",$F35*2,($F35+ROUND(J35*$F35/SUM(COUNTRY_INFO!$E35:$G35),0))*2)","v":325802},{"$f":"IF($I35<>\"Yes\",$G35*3,($G35+ROUND(J35*$G35/SUM(COUNTRY_INFO!$E35:$G35),0))*3)","v":0},325802,null,325802]
[{"$f":"IF(INTRO!$E$43=\"Non-endemic\",\" \", IF(COUNTRY_INFO!A36=0,\" \",COUNTRY_INFO!A36))","v":"MALAWI"},{"$f":"IF(INTRO!$E$43=\"Non-endemic\",\" \", IF(COUNTRY_INFO!B36=0,\" \",COUNTRY_INFO!B36))","v":"South"},{"$f":"IF(INTRO!$E$43=\"Non-endemic\",\" \", IF(COUNTRY_INFO!C36=0,\" \",COUNTRY_INFO!C36))","v":"Zomba"},{"$f":"IF(INTRO!$E$43=\"Non-endemic\", \"Not required\", COUNTRY_INFO!Y36)","v":1},{"$f":"IF(OR(COUNTRY_INFO!R36=\"Unknown\",COUNTRY_INFO!R36=\"Surveillance\",COUNTRY_INFO!R36=\"Not required\",COUNTRY_INFO!R36=0),0,IF($D36<>0, COUNTRY_INFO!R36,0))","v":71989},224160,null,296149,null,null,null,null,null,{"$f":"IF($I36<>\"Yes\",$F36*2,($F36+ROUND(J36*$F36/SUM(COUNTRY_INFO!$E36:$G36),0))*2)","v":448320},{"$f":"IF($I36<>\"Yes\",$G36*3,($G36+ROUND(J36*$G36/SUM(COUNTRY_INFO!$E36:$G36),0))*3)","v":0},448320,null,448320]
[{"$f":"IF(INTRO!$E$43=\"Non-endemic\",\" \", IF(COUNTRY_INFO!A37=0,\" \",COUNTRY_INFO!A37))","v":"MALAWI"},{"$f":"IF(INTRO!$E$43=\"Non-endemic\",\" \", IF(COUNTRY_INFO!B37=0,\" \",COUNTRY_INFO!B37))","v":"South"},{"$f":"IF(INTRO!$E$43=\"Non-endemic\",\" \", IF(COUNTRY_INFO!C37=0,\" \",COUNTRY_INFO!C37))","v":"Neno"},{"$f":"IF(INTRO!$E$43=\"Non-endemic\", \"Not required\", COUNTRY_INFO!Y37)","v":0},{"$f":"IF(OR(COUNTRY_INFO!R37=\"Unknown\",COUNTRY_INFO!R37=\"Surveillance\",COUNTRY_INFO!R37=\"Not required\",COUNTRY_INFO!R37=0),0,IF($D37<>0, COUNTRY_INFO!R37,0))","v":0},0,null,0,null,null,null,null,null,{"$f":"IF($I37<>\"Yes\",$F37*2,($F37+ROUND(J37*$F37/SUM(COUNTRY_INFO!$E37:$G37),0))*2)","v":0},{"$f":"IF($I37<>\"Yes\",$G37*3,($G37+ROUND(J37*$G37/SUM(COUNTRY_INFO!$E37:$G37),0))*3)","v":0},0,null,0]
[{"$f":"IF(INTRO!$E$43=\"Non-endemic\",\" \", IF(COUNTRY_INFO!A38=0,\" \",COUNTRY_INFO!A38))","v":"MALAWI"},{"$f":"IF(INTRO!$E$43=\"Non-endemic\",\" \", IF(COUNTRY_INFO!B38=0,\" \",COUNTRY_INFO!B38))","v":"South"},{"$f":"IF(INTRO!$E$43=\"Non-endemic\",\" \", IF(COUNTRY_INFO!C38=0,\" \",COUNTRY_INFO!C38))","v":"Mwanza"},{"$f":"IF(INTRO!$E$43=\"Non-endemic\", \"Not required\", COUNTRY_INFO!Y38)","v":1},{"$f":"IF(OR(COUNTRY_INFO!R38=\"Unknown\",COUNTRY_INFO!R38=\"Surveillance\",COUNTRY_INFO!R38=\"Not required\",COUNTRY_INFO!R38=0),0,IF($D38<>0, COUNTRY_INFO!R38,0))","v":13452},41887,null,55339,null,null,null,null,null,{"$f":"IF($I38<>\"Yes\",$F38*2,($F38+ROUND(J38*$F38/SUM(COUNTRY_INFO!$E38:$G38),0))*2)","v":83774},{"$f":"IF($I38<>\"Yes\",$G38*3,($G38+ROUND(J38*$G38/SUM(COUNTRY_INFO!$E38:$G38),0))*3)","v":0},83774,null,83774]

{"sheet":"IVM","index":5,"n_rows":38,"n_cols":14,"rows_kept":38,"cut":false,"hidden":false,"merged":[[5,3,7,3],[6,13,7,13],[6,8,7,8],[6,6,7,6],[6,7,7,7],[6,9,7,9],[6,10,7,10],[6,11,7,11],[3,0,3,2],[3,4,3,5],[6,4,7,4],[6,5,7,5],[5,8,5,13],[6,0,7,0],[6,1,7,1],[6,2,7,2],[5,0,5,2],[5,4,5,5],[5,6,5,7],[6,12,7,12]]}
["Ivermectin (IVM)"]
["Administrative structure, eligible population by age group, treatment plan and information about tablets"]
[]
["TOTAL",null,null,{"$f":"SUBTOTAL(9,D$10:D$1010)","v":2891396},null,null,{"$f":"SUBTOTAL(9,G$10:G$1010)","v":0},2891396,0,9328272.7999999989,0,9328272.7999999989,0,9328272.7999999989]
[]
["Country administrative structure",null,null,"Population requiring treatment with IVM","Treatment plan",null,"Target population",null,"Ivermectin (IVM)"]
["Country","Province/State","District",null,"LF","Oncho","LF","Oncho","LF only","Oncho only","LF+Oncho","Total required","Remaining in stock","Tablets to be procured"]
[]
[]
[{"$f":"IF(INTRO!$E$39=\"Non-endemic\",\" \",IF(COUNTRY_INFO!A10=0,\" \",COUNTRY_INFO!A10))","v":"MALAWI"},{"$f":"IF(INTRO!$E$39=\"Non-endemic\",\" \",IF(COUNTRY_INFO!B10=0,\" \",COUNTRY_INFO!B10))","v":"North"},{"$f":"IF(INTRO!$E$39=\"Non-endemic\",\" \",IF(COUNTRY_INFO!C10=0,\" \",COUNTRY_INFO!C10))","v":"Chitipa"},{"$f":"IF(INTRO!$E$39=\"Non-endemic\",0,IF(INTRO!$E$39=\"Endemic but PC is not required\",IF(COUNTRY_INFO!$H10=1,COUNTRY_INFO!F10+COUNTRY_INFO!G10,0),IF(COUNTRY_INFO!$H10=1,COUNTRY_INFO!F10+COUNTRY_INFO!G10,IF(COUNTRY_INFO!$I10=1,IF(COUNTRY_INFO!M10>=(COUNTRY_INFO!F10+COUNTRY_INFO!G10),COUNTRY_INFO!F10+COUNTRY_INFO!G10,COUNTRY_INFO!$M10),0))))","v":0},{"$f":"IF(AND(INTRO!$E$39=\"Non-endemic\",INTRO!$E$37=\"Non-endemic\"),\"Not required\",IF(INTRO!$E$39=\"Non-endemic\",\"Treat with DEC\",COUNTRY_INFO!V10))","v":0},{"$f":"IF(INTRO!$E$39<>\"Non-endemic\",COUNTRY_INFO!W10,\"Not required\")","v":0},{"$f":"IF(COUNTRY_INFO!H10=1, IF($E10=1,$D10, 0),0)","v":0},{"$f":"IF(COUNTRY_INFO!I10=1, IF(AND(COUNTRY_INFO!$I10=1,$F10<>0),IF(COUNTRY_INFO!M10>=(COUNTRY_INFO!F10+COUNTRY_INFO!G10),COUNTRY_INFO!F10+COUNTRY_INFO!G10,COUNTRY_INFO!$M10), 0),0)","v":0},{"$f":"IF(G10<H10,0,IF($E10=1, (G10-H10)*2.8, 0))","v":0},{"$f":"IF($E10<$F10, H10*(F10-E10)*2.8, 0)","v":0},{"$f":"IF(AND($E10=1, $F10<>0), H10*2.8, 0)","v":0},{"$f":"SUM(I10:K10)","v":0},null,{"$f":"IF($L10>$M10,$L10-$M10,0)","v":0}]
[{"$f":"IF(INTRO!$E$39=\"Non-endemic\",\" \",IF(COUNTRY_INFO!A11=0,\" \",COUNTRY_INFO!A11))","v":"MALAWI"},{"$f":"IF(INTRO!$E$39=\"Non-endemic\",\" \",IF(COUNTRY_INFO!B11=0,\" \",COUNTRY_INFO!B11))","v":"North"},{"$f":"IF(INTRO!$E$39=\"Non-endemic\",\" \",IF(COUNTRY_INFO!C11=0,\" \",COUNTRY_INFO!C11))","v":"Karonga"},{"$f":"IF(INTRO!$E$39=\"Non-endemic\",0,IF(INTRO!$E$39=\"Endemic but PC is not required\",IF(COUNTRY_INFO!$H11=1,COUNTRY_INFO!F11+COUNTRY_INFO!G11,0),IF(COUNTRY_INFO!$H11=1,COUNTRY_INFO!F11+COUNTRY_INFO!G11,IF(COUNTRY_INFO!$I11=1,IF(COUNTRY_INFO!M11>=(COUNTRY_INFO!F11+COUNTRY_INFO!G11),COUNTRY_INFO!F11+COUNTRY_INFO!G11,COUNTRY_INFO!$M11),0))))","v":0},{"$f":"IF(AND(INTRO!$E$39=\"Non-endemic\",INTRO!$E$37=\"Non-endemic\"),\"Not required\",IF(INTRO!$E$39=\"Non-endemic\",\"Treat with DEC\",COUNTRY_INFO!V11))","v":0},{"$f":"IF(INTRO!$E$39<>\"Non-endemic\",COUNTRY_INFO!W11,\"Not required\")","v":0},{"$f":"IF(COUNTRY_INFO!H11=1, IF($E11=1,$D11, 0),0)","v":0},{"$f":"IF(COUNTRY_INFO!I11=1, IF(AND(COUNTRY_INFO!$I11=1,$F11<>0),IF(COUNTRY_INFO!M11>=(COUNTRY_INFO!F11+COUNTRY_INFO!G11),COUNTRY_INFO!F11+COUNTRY_INFO!G11,COUNTRY_INFO!$M11), 0),0)","v":0},0,0,{"$f":"IF(AND($E11=1, $F11<>0), H11*2.8, 0)","v":0},{"$f":"SUM(I11:K11)","v":0},null,0]
[{"$f":"IF(INTRO!$E$39=\"Non-endemic\",\" \",IF(COUNTRY_INFO!A12=0,\" \",COUNTRY_INFO!A12))","v":"MALAWI"},{"$f":"IF(INTRO!$E$39=\"Non-endemic\",\" \",IF(COUNTRY_INFO!B12=0,\" \",COUNTRY_INFO!B12))","v":"North"},{"$f":"IF(INTRO!$E$39=\"Non-endemic\",\" \",IF(COUNTRY_INFO!C12=0,\" \",COUNTRY_INFO!C12))","v":"Rumphi"},{"$f":"IF(INTRO!$E$39=\"Non-endemic\",0,IF(INTRO!$E$39=\"Endemic but PC is not required\",IF(COUNTRY_INFO!$H12=1,COUNTRY_INFO!F12+COUNTRY_INFO!G12,0),IF(COUNTRY_INFO!$H12=1,COUNTRY_INFO!F12+COUNTRY_INFO!G12,IF(COUNTRY_INFO!$I12=1,IF(COUNTRY_INFO!M12>=(COUNTRY_INFO!F12+COUNTRY_INFO!G12),COUNTRY_INFO!F12+COUNTRY_INFO!G12,COUNTRY_INFO!$M12),0))))","v":0},{"$f":"IF(AND(INTRO!$E$39=\"Non-endemic\",INTRO!$E$37=\"Non-endemic\"),\"Not required\",IF(INTRO!$E$39=\"Non-endemic\",\"Treat with DEC\",COUNTRY_INFO!V12))","v":0},{"$f":"IF(INTRO!$E$39<>\"Non-endemic\",COUNTRY_INFO!W12,\"Not required\")","v":0},{"$f":"IF(COUNTRY_INFO!H12=1, IF($E12=1,$D12, 0),0)","v":0},{"$f":"IF(COUNTRY_INFO!I12=1, IF(AND(COUNTRY_INFO!$I12=1,$F12<>0),IF(COUNTRY_INFO!M12>=(COUNTRY_INFO!F12+COUNTRY_INFO!G12),COUNTRY_INFO!F12+COUNTRY_INFO!G12,COUNTRY_INFO!$M12), 0),0)","v":0},0,0,0,0,null,0]
[{"$f":"IF(INTRO!$E$39=\"Non-endemic\",\" \",IF(COUNTRY_INFO!A13=0,\" \",COUNTRY_INFO!A13))","v":"MALAWI"},{"$f":"IF(INTRO!$E$39=\"Non-endemic\",\" \",IF(COUNTRY_INFO!B13=0,\" \",COUNTRY_INFO!B13))","v":"North"},{"$f":"IF(INTRO!$E$39=\"Non-endemic\",\" \",IF(COUNTRY_INFO!C13=0,\" \",COUNTRY_INFO!C13))","v":"Mzimba North"},{"$f":"IF(INTRO!$E$39=\"Non-endemic\",0,IF(INTRO!$E$39=\"Endemic but PC is not required\",IF(COUNTRY_INFO!$H13=1,COUNTRY_INFO!F13+COUNTRY_INFO!G13,0),IF(COUNTRY_INFO!$H13=1,COUNTRY_INFO!F13+COUNTRY_INFO!G13,IF(COUNTRY_INFO!$I13=1,IF(COUNTRY_INFO!M13>=(COUNTRY_INFO!F13+COUNTRY_INFO!G13),COUNTRY_INFO!F13+COUNTRY_INFO!G13,COUNTRY_INFO!$M13),0))))","v":0},{"$f":"IF(AND(INTRO!$E$39=\"Non-endemic\",INTRO!$E$37=\"Non-endemic\"),\"Not required\",IF(INTRO!$E$39=\"Non-endemic\",\"Treat with DEC\",COUNTRY_INFO!V13))","v":0},{"$f":"IF(INTRO!$E$39<>\"Non-endemic\",COUNTRY_INFO!W13,\"Not required\")","v":0},{"$f":"IF(COUNTRY_INFO!H13=1, IF($E13=1,$D13, 0),0)","v":0},{"$f":"IF(COUNTRY_INFO!I13=1, IF(AND(COUNTRY_INFO!$I13=1,$F13<>0),IF(COUNTRY_INFO!M13>=(COUNTRY_INFO!F13+COUNTRY_INFO!G13),COUNTRY_INFO!F13+COUNTRY_INFO!G13,COUNTRY_INFO!$M13), 0),0)","v":0},0,0,0,0,null,0]
[{"$f":"IF(INTRO!$E$39=\"Non-endemic\",\" \",IF(COUNTRY_INFO!A14=0,\" \",COUNTRY_INFO!A14))","v":"MALAWI"},{"$f":"IF(INTRO!$E$39=\"Non-endemic\",\" \",IF(COUNTRY_INFO!B14=0,\" \",COUNTRY_INFO!B14))","v":"North"},{"$f":"IF(INTRO!$E$39=\"Non-endemic\",\" \",IF(COUNTRY_INFO!C14=0,\" \",COUNTRY_INFO!C14))","v":"Mzimba South"},{"$f":"IF(INTRO!$E$39=\"Non-endemic\",0,IF(INTRO!$E$39=\"Endemic but PC is not required\",IF(COUNTRY_INFO!$H14=1,COUNTRY_INFO!F14+COUNTRY_INFO!G14,0),IF(COUNTRY_INFO!$H14=1,COUNTRY_INFO!F14+COUNTRY_INFO!G14,IF(COUNTRY_INFO!$I14=1,IF(COUNTRY_INFO!M14>=(COUNTRY_INFO!F14+COUNTRY_INFO!G14),COUNTRY_INFO!F14+COUNTRY_INFO!G14,COUNTRY_INFO!$M14),0))))","v":0},{"$f":"IF(AND(INTRO!$E$39=\"Non-endemic\",INTRO!$E$37=\"Non-endemic\"),\"Not required\",IF(INTRO!$E$39=\"Non-endemic\",\"Treat with DEC\",COUNTRY_INFO!V14))","v":0},{"$f":"IF(INTRO!$E$39<>\"Non-endemic\",COUNTRY_INFO!W14,\"Not required\")","v":0},{"$f":"IF(COUNTRY_INFO!H14=1, IF($E14=1,$D14, 0),0)","v":0},{"$f":"IF(COUNTRY_INFO!I14=1, IF(AND(COUNTRY_INFO!$I14=1,$F14<>0),IF(COUNTRY_INFO!M14>=(COUNTRY_INFO!F14+COUNTRY_INFO!G14),COUNTRY_INFO!F14+COUNTRY_INFO!G14,COUNTRY_INFO!$M14), 0),0)","v":0},0,0,0,0,null,0]
[{"$f":"IF(INTRO!$E$39=\"Non-endemic\",\" \",IF(COUNTRY_INFO!A15=0,\" \",COUNTRY_INFO!A15))","v":"MALAWI"},{"$f":"IF(INTRO!$E$39=\"Non-endemic\",\" \",IF(COUNTRY_INFO!B15=0,\" \",COUNTRY_INFO!B15))","v":"North"},{"$f":"IF(INTRO!$E$39=\"Non-endemic\",\" \",IF(COUNTRY_INFO!C15=0,\" \",COUNTRY_INFO!C15))","v":"Nkhata bay"},{"$f":"IF(INTRO!$E$39=\"Non-endemic\",0,IF(INTRO!$E$39=\"Endemic but PC is not required\",IF(COUNTRY_INFO!$H15=1,COUNTRY_INFO!F15+COUNTRY_INFO!G15,0),IF(COUNTRY_INFO!$H15=1,COUNTRY_INFO!F15+COUNTRY_INFO!G15,IF(COUNTRY_INFO!$I15=1,IF(COUNTRY_INFO!M15>=(COUNTRY_INFO!F15+COUNTRY_INFO!G15),COUNTRY_INFO!F15+COUNTRY_INFO!G15,COUNTRY_INFO!$M15),0))))","v":0},{"$f":"IF(AND(INTRO!$E$39=\"Non-endemic\",INTRO!$E$37=\"Non-endemic\"),\"Not required\",IF(INTRO!$E$39=\"Non-endemic\",\"Treat with DEC\",COUNTRY_INFO!V15))","v":0},{"$f":"IF(INTRO!$E$39<>\"Non-endemic\",COUNTRY_INFO!W15,\"Not required\")","v":0},{"$f":"IF(COUNTRY_INFO!H15=1, IF($E15=1,$D15, 0),0)","v":0},{"$f":"IF(COUNTRY_INFO!I15=1, IF(AND(COUNTRY_INFO!$I15=1,$F15<>0),IF(COUNTRY_INFO!M15>=(COUNTRY_INFO!F15+COUNTRY_INFO!G15),COUNTRY_INFO!F15+COUNTRY_INFO!G15,COUNTRY_INFO!$M15), 0),0)","v":0},0,0,0,0,null,0]
[{"$f":"IF(INTRO!$E$39=\"Non-endemic\",\" \",IF(COUNTRY_INFO!A16=0,\" \",COUNTRY_INFO!A16))","v":"MALAWI"},{"$f":"IF(INTRO!$E$39=\"Non-endemic\",\" \",IF(COUNTRY_INFO!B16=0,\" \",COUNTRY_INFO!B16))","v":"North"},{"$f":"IF(INTRO!$E$39=\"Non-endemic\",\" \",IF(COUNTRY_INFO!C16=0,\" \",COUNTRY_INFO!C16))","v":"Likoma"},{"$f":"IF(INTRO!$E$39=\"Non-endemic\",0,IF(INTRO!$E$39=\"Endemic but PC is not required\",IF(COUNTRY_INFO!$H16=1,COUNTRY_INFO!F16+COUNTRY_INFO!G16,0),IF(COUNTRY_INFO!$H16=1,COUNTRY_INFO!F16+COUNTRY_INFO!G16,IF(COUNTRY_INFO!$I16=1,IF(COUNTRY_INFO!M16>=(COUNTRY_INFO!F16+COUNTRY_INFO!G16),COUNTRY_INFO!F16+COUNTRY_INFO!G16,COUNTRY_INFO!$M16),0))))","v":0},{"$f":"IF(AND(INTRO!$E$39=\"Non-endemic\",INTRO!$E$37=\"Non-endemic\"),\"Not required\",IF(INTRO!$E$39=\"Non-endemic\",\"Treat with DEC\",COUNTRY_INFO!V16))","v":0},{"$f":"IF(INTRO!$E$39<>\"Non-endemic\",COUNTRY_INFO!W16,\"Not required\")","v":0},{"$f":"IF(COUNTRY_INFO!H16=1, IF($E16=1,$D16, 0),0)","v":0},{"$f":"IF(COUNTRY_INFO!I16=1, IF(AND(COUNTRY_INFO!$I16=1,$F16<>0),IF(COUNTRY_INFO!M16>=(COUNTRY_INFO!F16+COUNTRY_INFO!G16),COUNTRY_INFO!F16+COUNTRY_INFO!G16,COUNTRY_INFO!$M16), 0),0)","v":0},0,0,0,0,null,0]
[{"$f":"IF(INTRO!$E$39=\"Non-endemic\",\" \",IF(COUNTRY_INFO!A17=0,\" \",COUNTRY_INFO!A17))","v":"MALAWI"},{"$f":"IF(INTRO!$E$39=\"Non-endemic\",\" \",IF(COUNTRY_INFO!B17=0,\" \",COUNTRY_INFO!B17))","v":"Central"},{"$f":"IF(INTRO!$E$39=\"Non-endemic\",\" \",IF(COUNTRY_INFO!C17=0,\" \",COUNTRY_INFO!C17))","v":"Kasungu"},{"$f":"IF(INTRO!$E$39=\"Non-endemic\",0,IF(INTRO!$E$39=\"Endemic but PC is not required\",IF(COUNTRY_INFO!$H17=1,COUNTRY_INFO!F17+COUNTRY_INFO!G17,0),IF(COUNTRY_INFO!$H17=1,COUNTRY_INFO!F17+COUNTRY_INFO!G17,IF(COUNTRY_INFO!$I17=1,IF(COUNTRY_INFO!M17>=(COUNTRY_INFO!F17+COUNTRY_INFO!G17),COUNTRY_INFO!F17+COUNTRY_INFO!G17,COUNTRY_INFO!$M17),0))))","v":0},{"$f":"IF(AND(INTRO!$E$39=\"Non-endemic\",INTRO!$E$37=\"Non-endemic\"),\"Not required\",IF(INTRO!$E$39=\"Non-endemic\",\"Treat with DEC\",COUNTRY_INFO!V17))","v":0},{"$f":"IF(INTRO!$E$39<>\"Non-endemic\",COUNTRY_INFO!W17,\"Not required\")","v":0},{"$f":"IF(COUNTRY_INFO!H17=1, IF($E17=1,$D17, 0),0)","v":0},{"$f":"IF(COUNTRY_INFO!I17=1, IF(AND(COUNTRY_INFO!$I17=1,$F17<>0),IF(COUNTRY_INFO!M17>=(COUNTRY_INFO!F17+COUNTRY_INFO!G17),COUNTRY_INFO!F17+COUNTRY_INFO!G17,COUNTRY_INFO!$M17), 0),0)","v":0},0,0,0,0,null,0]
[{"$f":"IF(INTRO!$E$39=\"Non-endemic\",\" \",IF(COUNTRY_INFO!A18=0,\" \",COUNTRY_INFO!A18))","v":"MALAWI"},{"$f":"IF(INTRO!$E$39=\"Non-endemic\",\" \",IF(COUNTRY_INFO!B18=0,\" \",COUNTRY_INFO!B18))","v":"Central"},{"$f":"IF(INTRO!$E$39=\"Non-endemic\",\" \",IF(COUNTRY_INFO!C18=0,\" \",COUNTRY_INFO!C18))","v":"Dedza"},{"$f":"IF(INTRO!$E$39=\"Non-endemic\",0,IF(INTRO!$E$39=\"Endemic but PC is not required\",IF(COUNTRY_INFO!$H18=1,COUNTRY_INFO!F18+COUNTRY_INFO!G18,0),IF(COUNTRY_INFO!$H18=1,COUNTRY_INFO!F18+COUNTRY_INFO!G18,IF(COUNTRY_INFO!$I18=1,IF(COUNTRY_INFO!M18>=(COUNTRY_INFO!F18+COUNTRY_INFO!G18),COUNTRY_INFO!F18+COUNTRY_INFO!G18,COUNTRY_INFO!$M18),0))))","v":0},{"$f":"IF(AND(INTRO!$E$39=\"Non-endemic\",INTRO!$E$37=\"Non-endemic\"),\"Not required\",IF(INTRO!$E$39=\"Non-endemic\",\"Treat with DEC\",COUNTRY_INFO!V18))","v":0},{"$f":"IF(INTRO!$E$39<>\"Non-endemic\",COUNTRY_INFO!W18,\"Not required\")","v":0},{"$f":"IF(COUNTRY_INFO!H18=1, IF($E18=1,$D18, 0),0)","v":0},{"$f":"IF(COUNTRY_INFO!I18=1, IF(AND(COUNTRY_INFO!$I18=1,$F18<>0),IF(COUNTRY_INFO!M18>=(COUNTRY_INFO!F18+COUNTRY_INFO!G18),COUNTRY_INFO!F18+COUNTRY_INFO!G18,COUNTRY_INFO!$M18), 0),0)","v":0},0,0,0,0,null,0]
[{"$f":"IF(INTRO!$E$39=\"Non-endemic\",\" \",IF(COUNTRY_INFO!A19=0,\" \",COUNTRY_INFO!A19))","v":"MALAWI"},{"$f":"IF(INTRO!$E$39=\"Non-endemic\",\" \",IF(COUNTRY_INFO!B19=0,\" \",COUNTRY_INFO!B19))","v":"Central"},{"$f":"IF(INTRO!$E$39=\"Non-endemic\",\" \",IF(COUNTRY_INFO!C19=0,\" \",COUNTRY_INFO!C19))","v":"Dowa"},{"$f":"IF(INTRO!$E$39=\"Non-endemic\",0,IF(INTRO!$E$39=\"Endemic but PC is not required\",IF(COUNTRY_INFO!$H19=1,COUNTRY_INFO!F19+COUNTRY_INFO!G19,0),IF(COUNTRY_INFO!$H19=1,COUNTRY_INFO!F19+COUNTRY_INFO!G19,IF(COUNTRY_INFO!$I19=1,IF(COUNTRY_INFO!M19>=(COUNTRY_INFO!F19+COUNTRY_INFO!G19),COUNTRY_INFO!F19+COUNTRY_INFO!G19,COUNTRY_INFO!$M19),0))))","v":0},{"$f":"IF(AND(INTRO!$E$39=\"Non-endemic\",INTRO!$E$37=\"Non-endemic\"),\"Not required\",IF(INTRO!$E$39=\"Non-endemic\",\"Treat with DEC\",COUNTRY_INFO!V19))","v":0},{"$f":"IF(INTRO!$E$39<>\"Non-endemic\",COUNTRY_INFO!W19,\"Not required\")","v":0},{"$f":"IF(COUNTRY_INFO!H19=1, IF($E19=1,$D19, 0),0)","v":0},{"$f":"IF(COUNTRY_INFO!I19=1, IF(AND(COUNTRY_INFO!$I19=1,$F19<>0),IF(COUNTRY_INFO!M19>=(COUNTRY_INFO!F19+COUNTRY_INFO!G19),COUNTRY_INFO!F19+COUNTRY_INFO!G19,COUNTRY_INFO!$M19), 0),0)","v":0},0,0,0,0,null,0]
[{"$f":"IF(INTRO!$E$39=\"Non-endemic\",\" \",IF(COUNTRY_INFO!A20=0,\" \",COUNTRY_INFO!A20))","v":"MALAWI"},{"$f":"IF(INTRO!$E$39=\"Non-endemic\",\" \",IF(COUNTRY_INFO!B20=0,\" \",COUNTRY_INFO!B20))","v":"Central"},{"$f":"IF(INTRO!$E$39=\"Non-endemic\",\" \",IF(COUNTRY_INFO!C20=0,\" \",COUNTRY_INFO!C20))","v":"Lilongwe"},{"$f":"IF(INTRO!$E$39=\"Non-endemic\",0,IF(INTRO!$E$39=\"Endemic but PC is not required\",IF(COUNTRY_INFO!$H20=1,COUNTRY_INFO!F20+COUNTRY_INFO!G20,0),IF(COUNTRY_INFO!$H20=1,COUNTRY_INFO!F20+COUNTRY_INFO!G20,IF(COUNTRY_INFO!$I20=1,IF(COUNTRY_INFO!M20>=(COUNTRY_INFO!F20+COUNTRY_INFO!G20),COUNTRY_INFO!F20+COUNTRY_INFO!G20,COUNTRY_INFO!$M20),0))))","v":0},{"$f":"IF(AND(INTRO!$E$39=\"Non-endemic\",INTRO!$E$37=\"Non-endemic\"),\"Not required\",IF(INTRO!$E$39=\"Non-endemic\",\"Treat with DEC\",COUNTRY_INFO!V20))","v":0},{"$f":"IF(INTRO!$E$39<>\"Non-endemic\",COUNTRY_INFO!W20,\"Not required\")","v":0},{"$f":"IF(COUNTRY_INFO!H20=1, IF($E20=1,$D20, 0),0)","v":0},{"$f":"IF(COUNTRY_INFO!I20=1, IF(AND(COUNTRY_INFO!$I20=1,$F20<>0),IF(COUNTRY_INFO!M20>=(COUNTRY_INFO!F20+COUNTRY_INFO!G20),COUNTRY_INFO!F20+COUNTRY_INFO!G20,COUNTRY_INFO!$M20), 0),0)","v":0},0,0,0,0,null,0]
[{"$f":"IF(INTRO!$E$39=\"Non-endemic\",\" \",IF(COUNTRY_INFO!A21=0,\" \",COUNTRY_INFO!A21))","v":"MALAWI"},{"$f":"IF(INTRO!$E$39=\"Non-endemic\",\" \",IF(COUNTRY_INFO!B21=0,\" \",COUNTRY_INFO!B21))","v":"Central"},{"$f":"IF(INTRO!$E$39=\"Non-endemic\",\" \",IF(COUNTRY_INFO!C21=0,\" \",COUNTRY_INFO!C21))","v":"Mchinji"},{"$f":"IF(INTRO!$E$39=\"Non-endemic\",0,IF(INTRO!$E$39=\"Endemic but PC is not required\",IF(COUNTRY_INFO!$H21=1,COUNTRY_INFO!F21+COUNTRY_INFO!G21,0),IF(COUNTRY_INFO!$H21=1,COUNTRY_INFO!F21+COUNTRY_INFO!G21,IF(COUNTRY_INFO!$I21=1,IF(COUNTRY_INFO!M21>=(COUNTRY_INFO!F21+COUNTRY_INFO!G21),COUNTRY_INFO!F21+COUNTRY_INFO!G21,COUNTRY_INFO!$M21),0))))","v":0},{"$f":"IF(AND(INTRO!$E$39=\"Non-endemic\",INTRO!$E$37=\"Non-endemic\"),\"Not required\",IF(INTRO!$E$39=\"Non-endemic\",\"Treat with DEC\",COUNTRY_INFO!V21))","v":0},{"$f":"IF(INTRO!$E$39<>\"Non-endemic\",COUNTRY_INFO!W21,\"Not required\")","v":0},{"$f":"IF(COUNTRY_INFO!H21=1, IF($E21=1,$D21, 0),0)","v":0},{"$f":"IF(COUNTRY_INFO!I21=1, IF(AND(COUNTRY_INFO!$I21=1,$F21<>0),IF(COUNTRY_INFO!M21>=(COUNTRY_INFO!F21+COUNTRY_INFO!G21),COUNTRY_INFO!F21+COUNTRY_INFO!G21,COUNTRY_INFO!$M21), 0),0)","v":0},0,0,0,0,null,0]
[{"$f":"IF(INTRO!$E$39=\"Non-endemic\",\" \",IF(COUNTRY_INFO!A22=0,\" \",COUNTRY_INFO!A22))","v":"MALAWI"},{"$f":"IF(INTRO!$E$39=\"Non-endemic\",\" \",IF(COUNTRY_INFO!B22=0,\" \",COUNTRY_INFO!B22))","v":"Central"},{"$f":"IF(INTRO!$E$39=\"Non-endemic\",\" \",IF(COUNTRY_INFO!C22=0,\" \",COUNTRY_INFO!C22))","v":"Salima"},{"$f":"IF(INTRO!$E$39=\"Non-endemic\",0,IF(INTRO!$E$39=\"Endemic but PC is not required\",IF(COUNTRY_INFO!$H22=1,COUNTRY_INFO!F22+COUNTRY_INFO!G22,0),IF(COUNTRY_INFO!$H22=1,COUNTRY_INFO!F22+COUNTRY_INFO!G22,IF(COUNTRY_INFO!$I22=1,IF(COUNTRY_INFO!M22>=(COUNTRY_INFO!F22+COUNTRY_INFO!G22),COUNTRY_INFO!F22+COUNTRY_INFO!G22,COUNTRY_INFO!$M22),0))))","v":0},{"$f":"IF(AND(INTRO!$E$39=\"Non-endemic\",INTRO!$E$37=\"Non-endemic\"),\"Not required\",IF(INTRO!$E$39=\"Non-endemic\",\"Treat with DEC\",COUNTRY_INFO!V22))","v":0},{"$f":"IF(INTRO!$E$39<>\"Non-endemic\",COUNTRY_INFO!W22,\"Not required\")","v":0},{"$f":"IF(COUNTRY_INFO!H22=1, IF($E22=1,$D22, 0),0)","v":0},{"$f":"IF(COUNTRY_INFO!I22=1, IF(AND(COUNTRY_INFO!$I22=1,$F22<>0),IF(COUNTRY_INFO!M22>=(COUNTRY_INFO!F22+COUNTRY_INFO!G22),COUNTRY_INFO!F22+COUNTRY_INFO!G22,COUNTRY_INFO!$M22), 0),0)","v":0},0,0,0,0,null,0]
[{"$f":"IF(INTRO!$E$39=\"Non-endemic\",\" \",IF(COUNTRY_INFO!A23=0,\" \",COUNTRY_INFO!A23))","v":"MALAWI"},{"$f":"IF(INTRO!$E$39=\"Non-endemic\",\" \",IF(COUNTRY_INFO!B23=0,\" \",COUNTRY_INFO!B23))","v":"Central"},{"$f":"IF(INTRO!$E$39=\"Non-endemic\",\" \",IF(COUNTRY_INFO!C23=0,\" \",COUNTRY_INFO!C23))","v":"Nkhotakota"},{"$f":"IF(INTRO!$E$39=\"Non-endemic\",0,IF(INTRO!$E$39=\"Endemic but PC is not required\",IF(COUNTRY_INFO!$H23=1,COUNTRY_INFO!F23+COUNTRY_INFO!G23,0),IF(COUNTRY_INFO!$H23=1,COUNTRY_INFO!F23+COUNTRY_INFO!G23,IF(COUNTRY_INFO!$I23=1,IF(COUNTRY_INFO!M23>=(COUNTRY_INFO!F23+COUNTRY_INFO!G23),COUNTRY_INFO!F23+COUNTRY_INFO!G23,COUNTRY_INFO!$M23),0))))","v":0},{"$f":"IF(AND(INTRO!$E$39=\"Non-endemic\",INTRO!$E$37=\"Non-endemic\"),\"Not required\",IF(INTRO!$E$39=\"Non-endemic\",\"Treat with DEC\",COUNTRY_INFO!V23))","v":0},{"$f":"IF(INTRO!$E$39<>\"Non-endemic\",COUNTRY_INFO!W23,\"Not required\")","v":0},{"$f":"IF(COUNTRY_INFO!H23=1, IF($E23=1,$D23, 0),0)","v":0},{"$f":"IF(COUNTRY_INFO!I23=1, IF(AND(COUNTRY_INFO!$I23=1,$F23<>0),IF(COUNTRY_INFO!M23>=(COUNTRY_INFO!F23+COUNTRY_INFO!G23),COUNTRY_INFO!F23+COUNTRY_INFO!G23,COUNTRY_INFO!$M23), 0),0)","v":0},0,0,0,0,null,0]
[{"$f":"IF(INTRO!$E$39=\"Non-endemic\",\" \",IF(COUNTRY_INFO!A24=0,\" \",COUNTRY_INFO!A24))","v":"MALAWI"},{"$f":"IF(INTRO!$E$39=\"Non-endemic\",\" \",IF(COUNTRY_INFO!B24=0,\" \",COUNTRY_INFO!B24))","v":"Central"},{"$f":"IF(INTRO!$E$39=\"Non-endemic\",\" \",IF(COUNTRY_INFO!C24=0,\" \",COUNTRY_INFO!C24))","v":"Ntchisi"},{"$f":"IF(INTRO!$E$39=\"Non-endemic\",0,IF(INTRO!$E$39=\"Endemic but PC is not required\",IF(COUNTRY_INFO!$H24=1,COUNTRY_INFO!F24+COUNTRY_INFO!G24,0),IF(COUNTRY_INFO!$H24=1,COUNTRY_INFO!F24+COUNTRY_INFO!G24,IF(COUNTRY_INFO!$I24=1,IF(COUNTRY_INFO!M24>=(COUNTRY_INFO!F24+COUNTRY_INFO!G24),COUNTRY_INFO!F24+COUNTRY_INFO!G24,COUNTRY_INFO!$M24),0))))","v":0},{"$f":"IF(AND(INTRO!$E$39=\"Non-endemic\",INTRO!$E$37=\"Non-endemic\"),\"Not required\",IF(INTRO!$E$39=\"Non-endemic\",\"Treat with DEC\",COUNTRY_INFO!V24))","v":0},{"$f":"IF(INTRO!$E$39<>\"Non-endemic\",COUNTRY_INFO!W24,\"Not required\")","v":0},{"$f":"IF(COUNTRY_INFO!H24=1, IF($E24=1,$D24, 0),0)","v":0},{"$f":"IF(COUNTRY_INFO!I24=1, IF(AND(COUNTRY_INFO!$I24=1,$F24<>0),IF(COUNTRY_INFO!M24>=(COUNTRY_INFO!F24+COUNTRY_INFO!G24),COUNTRY_INFO!F24+COUNTRY_INFO!G24,COUNTRY_INFO!$M24), 0),0)","v":0},0,0,0,0,null,0]
[{"$f":"IF(INTRO!$E$39=\"Non-endemic\",\" \",IF(COUNTRY_INFO!A25=0,\" \",COUNTRY_INFO!A25))","v":"MALAWI"},{"$f":"IF(INTRO!$E$39=\"Non-endemic\",\" \",IF(COUNTRY_INFO!B25=0,\" \",COUNTRY_INFO!B25))","v":"Central"},{"$f":"IF(INTRO!$E$39=\"Non-endemic\",\" \",IF(COUNTRY_INFO!C25=0,\" \",COUNTRY_INFO!C25))","v":"Ntcheu"},{"$f":"IF(INTRO!$E$39=\"Non-endemic\",0,IF(INTRO!$E$39=\"Endemic but PC is not required\",IF(COUNTRY_INFO!$H25=1,COUNTRY_INFO!F25+COUNTRY_INFO!G25,0),IF(COUNTRY_INFO!$H25=1,COUNTRY_INFO!F25+COUNTRY_INFO!G25,IF(COUNTRY_INFO!$I25=1,IF(COUNTRY_INFO!M25>=(COUNTRY_INFO!F25+COUNTRY_INFO!G25),COUNTRY_INFO!F25+COUNTRY_INFO!G25,COUNTRY_INFO!$M25),0))))","v":214930},{"$f":"IF(AND(INTRO!$E$39=\"Non-endemic\",INTRO!$E$37=\"Non-endemic\"),\"Not required\",IF(INTRO!$E$39=\"Non-endemic\",\"Treat with DEC\",COUNTRY_INFO!V25))","v":0},{"$f":"IF(INTRO!$E$39<>\"Non-endemic\",COUNTRY_INFO!W25,\"Not required\")","v":2},{"$f":"IF(COUNTRY_INFO!H25=1, IF($E25=1,$D25, 0),0)","v":0},{"$f":"IF(COUNTRY_INFO!I25=1, IF(AND(COUNTRY_INFO!$I25=1,$F25<>0),IF(COUNTRY_INFO!M25>=(COUNTRY_INFO!F25+COUNTRY_INFO!G25),COUNTRY_INFO!F25+COUNTRY_INFO!G25,COUNTRY_INFO!$M25), 0),0)","v":214930},0,1203608,0,1203608,0,1203608]
[{"$f":"IF(INTRO!$E$39=\"Non-endemic\",\" \",IF(COUNTRY_INFO!A26=0,\" \",COUNTRY_INFO!A26))","v":"MALAWI"},{"$f":"IF(INTRO!$E$39=\"Non-endemic\",\" \",IF(COUNTRY_INFO!B26=0,\" \",COUNTRY_INFO!B26))","v":"South"},{"$f":"IF(INTRO!$E$39=\"Non-endemic\",\" \",IF(COUNTRY_INFO!C26=0,\" \",COUNTRY_INFO!C26))","v":"Balaka"},{"$f":"IF(INTRO!$E$39=\"Non-endemic\",0,IF(INTRO!$E$39=\"Endemic but PC is not required\",IF(COUNTRY_INFO!$H26=1,COUNTRY_INFO!F26+COUNTRY_INFO!G26,0),IF(COUNTRY_INFO!$H26=1,COUNTRY_INFO!F26+COUNTRY_INFO!G26,IF(COUNTRY_INFO!$I26=1,IF(COUNTRY_INFO!M26>=(COUNTRY_INFO!F26+COUNTRY_INFO!G26),COUNTRY_INFO!F26+COUNTRY_INFO!G26,COUNTRY_INFO!$M26),0))))","v":0},{"$f":"IF(AND(INTRO!$E$39=\"Non-endemic\",INTRO!$E$37=\"Non-endemic\"),\"Not required\",IF(INTRO!$E$39=\"Non-endemic\",\"Treat with DEC\",COUNTRY_INFO!V26))","v":0},{"$f":"IF(INTRO!$E$39<>\"Non-endemic\",COUNTRY_INFO!W26,\"Not required\")","v":0},{"$f":"IF(COUNTRY_INFO!H26=1, IF($E26=1,$D26, 0),0)","v":0},{"$f":"IF(COUNTRY_INFO!I26=1, IF(AND(COUNTRY_INFO!$I26=1,$F26<>0),IF(COUNTRY_INFO!M26>=(COUNTRY_INFO!F26+COUNTRY_INFO!G26),COUNTRY_INFO!F26+COUNTRY_INFO!G26,COUNTRY_INFO!$M26), 0),0)","v":0},0,0,0,0,null,0]
[{"$f":"IF(INTRO!$E$39=\"Non-endemic\",\" \",IF(COUNTRY_INFO!A27=0,\" \",COUNTRY_INFO!A27))","v":"MALAWI"},{"$f":"IF(INTRO!$E$39=\"Non-endemic\",\" \",IF(COUNTRY_INFO!B27=0,\" \",COUNTRY_INFO!B27))","v":"South"},{"$f":"IF(INTRO!$E$39=\"Non-endemic\",\" \",IF(COUNTRY_INFO!C27=0,\" \",COUNTRY_INFO!C27))","v":"Chikwawa"},{"$f":"IF(INTRO!$E$39=\"Non-endemic\",0,IF(INTRO!$E$39=\"Endemic but PC is not required\",IF(COUNTRY_INFO!$H27=1,COUNTRY_INFO!F27+COUNTRY_INFO!G27,0),IF(COUNTRY_INFO!$H27=1,COUNTRY_INFO!F27+COUNTRY_INFO!G27,IF(COUNTRY_INFO!$I27=1,IF(COUNTRY_INFO!M27>=(COUNTRY_INFO!F27+COUNTRY_INFO!G27),COUNTRY_INFO!F27+COUNTRY_INFO!G27,COUNTRY_INFO!$M27),0))))","v":139183},{"$f":"IF(AND(INTRO!$E$39=\"Non-endemic\",INTRO!$E$37=\"Non-endemic\"),\"Not required\",IF(INTRO!$E$39=\"Non-endemic\",\"Treat with DEC\",COUNTRY_INFO!V27))","v":0},{"$f":"IF(INTRO!$E$39<>\"Non-endemic\",COUNTRY_INFO!W27,\"Not required\")","v":1},{"$f":"IF(COUNTRY_INFO!H27=1, IF($E27=1,$D27, 0),0)","v":0},{"$f":"IF(COUNTRY_INFO!I27=1, IF(AND(COUNTRY_INFO!$I27=1,$F27<>0),IF(COUNTRY_INFO!M27>=(COUNTRY_INFO!F27+COUNTRY_INFO!G27),COUNTRY_INFO!F27+COUNTRY_INFO!G27,COUNTRY_INFO!$M27), 0),0)","v":139183},0,389712.39999999997,0,389712.39999999997,0,389712.39999999997]
[{"$f":"IF(INTRO!$E$39=\"Non-endemic\",\" \",IF(COUNTRY_INFO!A28=0,\" \",COUNTRY_INFO!A28))","v":"MALAWI"},{"$f":"IF(INTRO!$E$39=\"Non-endemic\",\" \",IF(COUNTRY_INFO!B28=0,\" \",COUNTRY_INFO!B28))","v":"South"},{"$f":"IF(INTRO!$E$39=\"Non-endemic\",\" \",IF(COUNTRY_INFO!C28=0,\" \",COUNTRY_INFO!C28))","v":"Chiradzulu"},{"$f":"IF(INTRO!$E$39=\"Non-endemic\",0,IF(INTRO!$E$39=\"Endemic but PC is not required\",IF(COUNTRY_INFO!$H28=1,COUNTRY_INFO!F28+COUNTRY_INFO!G28,0),IF(COUNTRY_INFO!$H28=1,COUNTRY_INFO!F28+COUNTRY_INFO!G28,IF(COUNTRY_INFO!$I28=1,IF(COUNTRY_INFO!M28>=(COUNTRY_INFO!F28+COUNTRY_INFO!G28),COUNTRY_INFO!F28+COUNTRY_INFO!G28,COUNTRY_INFO!$M28),0))))","v":224426},{"$f":"IF(AND(INTRO!$E$39=\"Non-endemic\",INTRO!$E$37=\"Non-endemic\"),\"Not required\",IF(INTRO!$E$39=\"Non-endemic\",\"Treat with DEC\",COUNTRY_INFO!V28))","v":0},{"$f":"IF(INTRO!$E$39<>\"Non-endemic\",COUNTRY_INFO!W28,\"Not required\")","v":1},{"$f":"IF(COUNTRY_INFO!H28=1, IF($E28=1,$D28, 0),0)","v":0},{"$f":"IF(COUNTRY_INFO!I28=1, IF(AND(COUNTRY_INFO!$I28=1,$F28<>0),IF(COUNTRY_INFO!M28>=(COUNTRY_INFO!F28+COUNTRY_INFO!G28),COUNTRY_INFO!F28+COUNTRY_INFO!G28,COUNTRY_INFO!$M28), 0),0)","v":224426},0,628392.79999999993,0,628392.79999999993,0,628392.79999999993]
[{"$f":"IF(INTRO!$E$39=\"Non-endemic\",\" \",IF(COUNTRY_INFO!A29=0,\" \",COUNTRY_INFO!A29))","v":"MALAWI"},{"$f":"IF(INTRO!$E$39=\"Non-endemic\",\" \",IF(COUNTRY_INFO!B29=0,\" \",COUNTRY_INFO!B29))","v":"South"},{"$f":"IF(INTRO!$E$39=\"Non-endemic\",\" \",IF(COUNTRY_INFO!C29=0,\" \",COUNTRY_INFO!C29))","v":"Machinga"},{"$f":"IF(INTRO!$E$39=\"Non-endemic\",0,IF(INTRO!$E$39=\"Endemic but PC is not required\",IF(COUNTRY_INFO!$H29=1,COUNTRY_INFO!F29+COUNTRY_INFO!G29,0),IF(COUNTRY_INFO!$H29=1,COUNTRY_INFO!F29+COUNTRY_INFO!G29,IF(COUNTRY_INFO!$I29=1,IF(COUNTRY_INFO!M29>=(COUNTRY_INFO!F29+COUNTRY_INFO!G29),COUNTRY_INFO!F29+COUNTRY_INFO!G29,COUNTRY_INFO!$M29),0))))","v":0},{"$f":"IF(AND(INTRO!$E$39=\"Non-endemic\",INTRO!$E$37=\"Non-endemic\"),\"Not required\",IF(INTRO!$E$39=\"Non-endemic\",\"Treat with DEC\",COUNTRY_INFO!V29))","v":0},{"$f":"IF(INTRO!$E$39<>\"Non-endemic\",COUNTRY_INFO!W29,\"Not required\")","v":0},{"$f":"IF(COUNTRY_INFO!H29=1, IF($E29=1,$D29, 0),0)","v":0},{"$f":"IF(COUNTRY_INFO!I29=1, IF(AND(COUNTRY_INFO!$I29=1,$F29<>0),IF(COUNTRY_INFO!M29>=(COUNTRY_INFO!F29+COUNTRY_INFO!G29),COUNTRY_INFO!F29+COUNTRY_INFO!G29,COUNTRY_INFO!$M29), 0),0)","v":0},0,0,0,0,null,0]
[{"$f":"IF(INTRO!$E$39=\"Non-endemic\",\" \",IF(COUNTRY_INFO!A30=0,\" \",COUNTRY_INFO!A30))","v":"MALAWI"},{"$f":"IF(INTRO!$E$39=\"Non-endemic\",\" \",IF(COUNTRY_INFO!B30=0,\" \",COUNTRY_INFO!B30))","v":"South"},{"$f":"IF(INTRO!$E$39=\"Non-endemic\",\" \",IF(COUNTRY_INFO!C30=0,\" \",COUNTRY_INFO!C30))","v":"Blantyre"},{"$f":"IF(INTRO!$E$39=\"Non-endemic\",0,IF(INTRO!$E$39=\"Endemic but PC is not required\",IF(COUNTRY_INFO!$H30=1,COUNTRY_INFO!F30+COUNTRY_INFO!G30,0),IF(COUNTRY_INFO!$H30=1,COUNTRY_INFO!F30+COUNTRY_INFO!G30,IF(COUNTRY_INFO!$I30=1,IF(COUNTRY_INFO!M30>=(COUNTRY_INFO!F30+COUNTRY_INFO!G30),COUNTRY_INFO!F30+COUNTRY_INFO!G30,COUNTRY_INFO!$M30),0))))","v":555704},{"$f":"IF(AND(INTRO!$E$39=\"Non-endemic\",INTRO!$E$37=\"Non-endemic\"),\"Not required\",IF(INTRO!$E$39=\"Non-endemic\",\"Treat with DEC\",COUNTRY_INFO!V30))","v":0},{"$f":"IF(INTRO!$E$39<>\"Non-endemic\",COUNTRY_INFO!W30,\"Not required\")","v":1},{"$f":"IF(COUNTRY_INFO!H30=1, IF($E30=1,$D30, 0),0)","v":0},{"$f":"IF(COUNTRY_INFO!I30=1, IF(AND(COUNTRY_INFO!$I30=1,$F30<>0),IF(COUNTRY_INFO!M30>=(COUNTRY_INFO!F30+COUNTRY_INFO!G30),COUNTRY_INFO!F30+COUNTRY_INFO!G30,COUNTRY_INFO!$M30), 0),0)","v":555704},0,1555971.2,0,1555971.2,0,1555971.2]
[{"$f":"IF(INTRO!$E$39=\"Non-endemic\",\" \",IF(COUNTRY_INFO!A31=0,\" \",COUNTRY_INFO!A31))","v":"MALAWI"},{"$f":"IF(INTRO!$E$39=\"Non-endemic\",\" \",IF(COUNTRY_INFO!B31=0,\" \",COUNTRY_INFO!B31))","v":"South"},{"$f":"IF(INTRO!$E$39=\"Non-endemic\",\" \",IF(COUNTRY_INFO!C31=0,\" \",COUNTRY_INFO!C31))","v":"Mangochi"},{"$f":"IF(INTRO!$E$39=\"Non-endemic\",0,IF(INTRO!$E$39=\"Endemic but PC is not required\",IF(COUNTRY_INFO!$H31=1,COUNTRY_INFO!F31+COUNTRY_INFO!G31,0),IF(COUNTRY_INFO!$H31=1,COUNTRY_INFO!F31+COUNTRY_INFO!G31,IF(COUNTRY_INFO!$I31=1,IF(COUNTRY_INFO!M31>=(COUNTRY_INFO!F31+COUNTRY_INFO!G31),COUNTRY_INFO!F31+COUNTRY_INFO!G31,COUNTRY_INFO!$M31),0))))","v":0},{"$f":"IF(AND(INTRO!$E$39=\"Non-endemic\",INTRO!$E$37=\"Non-endemic\"),\"Not required\",IF(INTRO!$E$39=\"Non-endemic\",\"Treat with DEC\",COUNTRY_INFO!V31))","v":0},{"$f":"IF(INTRO!$E$39<>\"Non-endemic\",COUNTRY_INFO!W31,\"Not required\")","v":0},{"$f":"IF(COUNTRY_INFO!H31=1, IF($E31=1,$D31, 0),0)","v":0},{"$f":"IF(COUNTRY_INFO!I31=1, IF(AND(COUNTRY_INFO!$I31=1,$F31<>0),IF(COUNTRY_INFO!M31>=(COUNTRY_INFO!F31+COUNTRY_INFO!G31),COUNTRY_INFO!F31+COUNTRY_INFO!G31,COUNTRY_INFO!$M31), 0),0)","v":0},0,0,0,0,null,0]
[{"$f":"IF(INTRO!$E$39=\"Non-endemic\",\" \",IF(COUNTRY_INFO!A32=0,\" \",COUNTRY_INFO!A32))","v":"MALAWI"},{"$f":"IF(INTRO!$E$39=\"Non-endemic\",\" \",IF(COUNTRY_INFO!B32=0,\" \",COUNTRY_INFO!B32))","v":"South"},{"$f":"IF(INTRO!$E$39=\"Non-endemic\",\" \",IF(COUNTRY_INFO!C32=0,\" \",COUNTRY_INFO!C32))","v":"Mulanje"},{"$f":"IF(INTRO!$E$39=\"Non-endemic\",0,IF(INTRO!$E$39=\"Endemic but PC is not required\",IF(COUNTRY_INFO!$H32=1,COUNTRY_INFO!F32+COUNTRY_INFO!G32,0),IF(COUNTRY_INFO!$H32=1,COUNTRY_INFO!F32+COUNTRY_INFO!G32,IF(COUNTRY_INFO!$I32=1,IF(COUNTRY_INFO!M32>=(COUNTRY_INFO!F32+COUNTRY_INFO!G32),COUNTRY_INFO!F32+COUNTRY_INFO!G32,COUNTRY_INFO!$M32),0))))","v":590458},{"$f":"IF(AND(INTRO!$E$39=\"Non-endemic\",INTRO!$E$37=\"Non-endemic\"),\"Not required\",IF(INTRO!$E$39=\"Non-endemic\",\"Treat with DEC\",COUNTRY_INFO!V32))","v":0},{"$f":"IF(INTRO!$E$39<>\"Non-endemic\",COUNTRY_INFO!W32,\"Not required\")","v":1},{"$f":"IF(COUNTRY_INFO!H32=1, IF($E32=1,$D32, 0),0)","v":0},{"$f":"IF(COUNTRY_INFO!I32=1, IF(AND(COUNTRY_INFO!$I32=1,$F32<>0),IF(COUNTRY_INFO!M32>=(COUNTRY_INFO!F32+COUNTRY_INFO!G32),COUNTRY_INFO!F32+COUNTRY_INFO!G32,COUNTRY_INFO!$M32), 0),0)","v":590458},0,1653282.4,0,1653282.4,0,1653282.4]
[{"$f":"IF(INTRO!$E$39=\"Non-endemic\",\" \",IF(COUNTRY_INFO!A33=0,\" \",COUNTRY_INFO!A33))","v":"MALAWI"},{"$f":"IF(INTRO!$E$39=\"Non-endemic\",\" \",IF(COUNTRY_INFO!B33=0,\" \",COUNTRY_INFO!B33))","v":"South"},{"$f":"IF(INTRO!$E$39=\"Non-endemic\",\" \",IF(COUNTRY_INFO!C33=0,\" \",COUNTRY_INFO!C33))","v":"Nsanje"},{"$f":"IF(INTRO!$E$39=\"Non-endemic\",0,IF(INTRO!$E$39=\"Endemic but PC is not required\",IF(COUNTRY_INFO!$H33=1,COUNTRY_INFO!F33+COUNTRY_INFO!G33,0),IF(COUNTRY_INFO!$H33=1,COUNTRY_INFO!F33+COUNTRY_INFO!G33,IF(COUNTRY_INFO!$I33=1,IF(COUNTRY_INFO!M33>=(COUNTRY_INFO!F33+COUNTRY_INFO!G33),COUNTRY_INFO!F33+COUNTRY_INFO!G33,COUNTRY_INFO!$M33),0))))","v":0},{"$f":"IF(AND(INTRO!$E$39=\"Non-endemic\",INTRO!$E$37=\"Non-endemic\"),\"Not required\",IF(INTRO!$E$39=\"Non-endemic\",\"Treat with DEC\",COUNTRY_INFO!V33))","v":0},{"$f":"IF(INTRO!$E$39<>\"Non-endemic\",COUNTRY_INFO!W33,\"Not required\")","v":0},{"$f":"IF(COUNTRY_INFO!H33=1, IF($E33=1,$D33, 0),0)","v":0},{"$f":"IF(COUNTRY_INFO!I33=1, IF(AND(COUNTRY_INFO!$I33=1,$F33<>0),IF(COUNTRY_INFO!M33>=(COUNTRY_INFO!F33+COUNTRY_INFO!G33),COUNTRY_INFO!F33+COUNTRY_INFO!G33,COUNTRY_INFO!$M33), 0),0)","v":0},0,0,0,0,null,0]
[{"$f":"IF(INTRO!$E$39=\"Non-endemic\",\" \",IF(COUNTRY_INFO!A34=0,\" \",COUNTRY_INFO!A34))","v":"MALAWI"},{"$f":"IF(INTRO!$E$39=\"Non-endemic\",\" \",IF(COUNTRY_INFO!B34=0,\" \",COUNTRY_INFO!B34))","v":"South"},{"$f":"IF(INTRO!$E$39=\"Non-endemic\",\" \",IF(COUNTRY_INFO!C34=0,\" \",COUNTRY_INFO!C34))","v":"Phalombe"},{"$f":"IF(INTRO!$E$39=\"Non-endemic\",0,IF(INTRO!$E$39=\"Endemic but PC is not required\",IF(COUNTRY_INFO!$H34=1,COUNTRY_INFO!F34+COUNTRY_INFO!G34,0),IF(COUNTRY_INFO!$H34=1,COUNTRY_INFO!F34+COUNTRY_INFO!G34,IF(COUNTRY_INFO!$I34=1,IF(COUNTRY_INFO!M34>=(COUNTRY_INFO!F34+COUNTRY_INFO!G34),COUNTRY_INFO!F34+COUNTRY_INFO!G34,COUNTRY_INFO!$M34),0))))","v":55251},{"$f":"IF(AND(INTRO!$E$39=\"Non-endemic\",INTRO!$E$37=\"Non-endemic\"),\"Not required\",IF(INTRO!$E$39=\"Non-endemic\",\"Treat with DEC\",COUNTRY_INFO!V34))","v":0},{"$f":"IF(INTRO!$E$39<>\"Non-endemic\",COUNTRY_INFO!W34,\"Not required\")","v":1},{"$f":"IF(COUNTRY_INFO!H34=1, IF($E34=1,$D34, 0),0)","v":0},{"$f":"IF(COUNTRY_INFO!I34=1, IF(AND(COUNTRY_INFO!$I34=1,$F34<>0),IF(COUNTRY_INFO!M34>=(COUNTRY_INFO!F34+COUNTRY_INFO!G34),COUNTRY_INFO!F34+COUNTRY_INFO!G34,COUNTRY_INFO!$M34), 0),0)","v":55251},0,154702.79999999999,0,154702.79999999999,0,154702.79999999999]
[{"$f":"IF(INTRO!$E$39=\"Non-endemic\",\" \",IF(COUNTRY_INFO!A35=0,\" \",COUNTRY_INFO!A35))","v":"MALAWI"},{"$f":"IF(INTRO!$E$39=\"Non-endemic\",\" \",IF(COUNTRY_INFO!B35=0,\" \",COUNTRY_INFO!B35))","v":"South"},{"$f":"IF(INTRO!$E$39=\"Non-endemic\",\" \",IF(COUNTRY_INFO!C35=0,\" \",COUNTRY_INFO!C35))","v":"Thyolo"},{"$f":"IF(INTRO!$E$39=\"Non-endemic\",0,IF(INTRO!$E$39=\"Endemic but PC is not required\",IF(COUNTRY_INFO!$H35=1,COUNTRY_INFO!F35+COUNTRY_INFO!G35,0),IF(COUNTRY_INFO!$H35=1,COUNTRY_INFO!F35+COUNTRY_INFO!G35,IF(COUNTRY_INFO!$I35=1,IF(COUNTRY_INFO!M35>=(COUNTRY_INFO!F35+COUNTRY_INFO!G35),COUNTRY_INFO!F35+COUNTRY_INFO!G35,COUNTRY_INFO!$M35),0))))","v":588613},{"$f":"IF(AND(INTRO!$E$39=\"Non-endemic\",INTRO!$E$37=\"Non-endemic\"),\"Not required\",IF(INTRO!$E$39=\"Non-endemic\",\"Treat with DEC\",COUNTRY_INFO!V35))","v":0},{"$f":"IF(INTRO!$E$39<>\"Non-endemic\",COUNTRY_INFO!W35,\"Not required\")","v":1},{"$f":"IF(COUNTRY_INFO!H35=1, IF($E35=1,$D35, 0),0)","v":0},{"$f":"IF(COUNTRY_INFO!I35=1, IF(AND(COUNTRY_INFO!$I35=1,$F35<>0),IF(COUNTRY_INFO!M35>=(COUNTRY_INFO!F35+COUNTRY_INFO!G35),COUNTRY_INFO!F35+COUNTRY_INFO!G35,COUNTRY_INFO!$M35), 0),0)","v":588613},0,1648116.4,0,1648116.4,0,1648116.4]
[{"$f":"IF(INTRO!$E$39=\"Non-endemic\",\" \",IF(COUNTRY_INFO!A36=0,\" \",COUNTRY_INFO!A36))","v":"MALAWI"},{"$f":"IF(INTRO!$E$39=\"Non-endemic\",\" \",IF(COUNTRY_INFO!B36=0,\" \",COUNTRY_INFO!B36))","v":"South"},{"$f":"IF(INTRO!$E$39=\"Non-endemic\",\" \",IF(COUNTRY_INFO!C36=0,\" \",COUNTRY_INFO!C36))","v":"Zomba"},{"$f":"IF(INTRO!$E$39=\"Non-endemic\",0,IF(INTRO!$E$39=\"Endemic but PC is not required\",IF(COUNTRY_INFO!$H36=1,COUNTRY_INFO!F36+COUNTRY_INFO!G36,0),IF(COUNTRY_INFO!$H36=1,COUNTRY_INFO!F36+COUNTRY_INFO!G36,IF(COUNTRY_INFO!$I36=1,IF(COUNTRY_INFO!M36>=(COUNTRY_INFO!F36+COUNTRY_INFO!G36),COUNTRY_INFO!F36+COUNTRY_INFO!G36,COUNTRY_INFO!$M36),0))))","v":225200},{"$f":"IF(AND(INTRO!$E$39=\"Non-endemic\",INTRO!$E$37=\"Non-endemic\"),\"Not required\",IF(INTRO!$E$39=\"Non-endemic\",\"Treat with DEC\",COUNTRY_INFO!V36))","v":0},{"$f":"IF(INTRO!$E$39<>\"Non-endemic\",COUNTRY_INFO!W36,\"Not required\")","v":2},{"$f":"IF(COUNTRY_INFO!H36=1, IF($E36=1,$D36, 0),0)","v":0},{"$f":"IF(COUNTRY_INFO!I36=1, IF(AND(COUNTRY_INFO!$I36=1,$F36<>0),IF(COUNTRY_INFO!M36>=(COUNTRY_INFO!F36+COUNTRY_INFO!G36),COUNTRY_INFO!F36+COUNTRY_INFO!G36,COUNTRY_INFO!$M36), 0),0)","v":225200},0,1261120,0,1261120,0,1261120]
[{"$f":"IF(INTRO!$E$39=\"Non-endemic\",\" \",IF(COUNTRY_INFO!A37=0,\" \",COUNTRY_INFO!A37))","v":"MALAWI"},{"$f":"IF(INTRO!$E$39=\"Non-endemic\",\" \",IF(COUNTRY_INFO!B37=0,\" \",COUNTRY_INFO!B37))","v":"South"},{"$f":"IF(INTRO!$E$39=\"Non-endemic\",\" \",IF(COUNTRY_INFO!C37=0,\" \",COUNTRY_INFO!C37))","v":"Neno"},{"$f":"IF(INTRO!$E$39=\"Non-endemic\",0,IF(INTRO!$E$39=\"Endemic but PC is not required\",IF(COUNTRY_INFO!$H37=1,COUNTRY_INFO!F37+COUNTRY_INFO!G37,0),IF(COUNTRY_INFO!$H37=1,COUNTRY_INFO!F37+COUNTRY_INFO!G37,IF(COUNTRY_INFO!$I37=1,IF(COUNTRY_INFO!M37>=(COUNTRY_INFO!F37+COUNTRY_INFO!G37),COUNTRY_INFO!F37+COUNTRY_INFO!G37,COUNTRY_INFO!$M37),0))))","v":164273},{"$f":"IF(AND(INTRO!$E$39=\"Non-endemic\",INTRO!$E$37=\"Non-endemic\"),\"Not required\",IF(INTRO!$E$39=\"Non-endemic\",\"Treat with DEC\",COUNTRY_INFO!V37))","v":0},{"$f":"IF(INTRO!$E$39<>\"Non-endemic\",COUNTRY_INFO!W37,\"Not required\")","v":1},{"$f":"IF(COUNTRY_INFO!H37=1, IF($E37=1,$D37, 0),0)","v":0},{"$f":"IF(COUNTRY_INFO!I37=1, IF(AND(COUNTRY_INFO!$I37=1,$F37<>0),IF(COUNTRY_INFO!M37>=(COUNTRY_INFO!F37+COUNTRY_INFO!G37),COUNTRY_INFO!F37+COUNTRY_INFO!G37,COUNTRY_INFO!$M37), 0),0)","v":164273},0,459964.39999999997,0,459964.39999999997,0,459964.39999999997]
[{"$f":"IF(INTRO!$E$39=\"Non-endemic\",\" \",IF(COUNTRY_INFO!A38=0,\" \",COUNTRY_INFO!A38))","v":"MALAWI"},{"$f":"IF(INTRO!$E$39=\"Non-endemic\",\" \",IF(COUNTRY_INFO!B38=0,\" \",COUNTRY_INFO!B38))","v":"South"},{"$f":"IF(INTRO!$E$39=\"Non-endemic\",\" \",IF(COUNTRY_INFO!C38=0,\" \",COUNTRY_INFO!C38))","v":"Mwanza"},{"$f":"IF(INTRO!$E$39=\"Non-endemic\",0,IF(INTRO!$E$39=\"Endemic but PC is not required\",IF(COUNTRY_INFO!$H38=1,COUNTRY_INFO!F38+COUNTRY_INFO!G38,0),IF(COUNTRY_INFO!$H38=1,COUNTRY_INFO!F38+COUNTRY_INFO!G38,IF(COUNTRY_INFO!$I38=1,IF(COUNTRY_INFO!M38>=(COUNTRY_INFO!F38+COUNTRY_INFO!G38),COUNTRY_INFO!F38+COUNTRY_INFO!G38,COUNTRY_INFO!$M38),0))))","v":133358},{"$f":"IF(AND(INTRO!$E$39=\"Non-endemic\",INTRO!$E$37=\"Non-endemic\"),\"Not required\",IF(INTRO!$E$39=\"Non-endemic\",\"Treat with DEC\",COUNTRY_INFO!V38))","v":0},{"$f":"IF(INTRO!$E$39<>\"Non-endemic\",COUNTRY_INFO!W38,\"Not required\")","v":1},{"$f":"IF(COUNTRY_INFO!H38=1, IF($E38=1,$D38, 0),0)","v":0},{"$f":"IF(COUNTRY_INFO!I38=1, IF(AND(COUNTRY_INFO!$I38=1,$F38<>0),IF(COUNTRY_INFO!M38>=(COUNTRY_INFO!F38+COUNTRY_INFO!G38),COUNTRY_INFO!F38+COUNTRY_INFO!G38,COUNTRY_INFO!$M38), 0),0)","v":133358},0,373402.39999999997,0,373402.39999999997,0,373402.39999999997]

{"sheet":"IVM+","index":6,"n_rows":38,"n_cols":8,"rows_kept":38,"cut":false,"hidden":true,"merged":[[6,0,7,0],[6,1,7,1],[6,2,7,2],[6,3,7,3],[3,0,3,2],[5,0,5,2],[6,5,7,5],[6,6,7,6],[6,7,7,7],[5,4,7,4],[5,5,5,7]]}
["Ivermectin (IVM) for IDA therapy"]
["Administrative structure, eligible population by age group, treatment plan and information about tablets"]
[]
["TOTAL",null,null,null,{"$f":"SUBTOTAL(9,E$10:E$1010)","v":0},0,0,0]
[]
["Country administrative structure",null,null,"Treatment plan","Population targeted for treatment with IVM \n(IDA therapy)","Ivermectin (IVM)"]
["Country","Province/State","District","LF",null,"Total required","Remaining in stock","Tablets to be procured"]
[]
[]
[{"$f":"IF(AND(INTRO!$E$37=\"Endemic\",INTRO!$E$39=\"Non-endemic\"),IF(COUNTRY_INFO!A10=0,\" \",COUNTRY_INFO!A10),\" \")","v":" "},{"$f":"IF(AND(INTRO!$E$37=\"Endemic\",INTRO!$E$39=\"Non-endemic\"),IF(COUNTRY_INFO!B10=0,\" \",COUNTRY_INFO!B10),\" \")","v":" "},{"$f":"IF(AND(INTRO!$E$37=\"Endemic\",INTRO!$E$39=\"Non-endemic\"),IF(COUNTRY_INFO!C10=0,\" \",COUNTRY_INFO!C10),\" \")","v":" "},{"$f":"IF(COUNTRY_INFO!Z10<>\"\",COUNTRY_INFO!V10,0)","v":0},{"$f":"IF(AND(COUNTRY_INFO!Z10<>\"\",COUNTRY_INFO!$H10=1),COUNTRY_INFO!F10+COUNTRY_INFO!G10,0)","v":0},{"$f":"E10*2.8","v":0},null,{"$f":"IF($F10>$G10,$F10-$G10,0)","v":0}]
[{"$f":"IF(AND(INTRO!$E$37=\"Endemic\",INTRO!$E$39=\"Non-endemic\"),IF(COUNTRY_INFO!A11=0,\" \",COUNTRY_INFO!A11),\" \")","v":" "},{"$f":"IF(AND(INTRO!$E$37=\"Endemic\",INTRO!$E$39=\"Non-endemic\"),IF(COUNTRY_INFO!B11=0,\" \",COUNTRY_INFO!B11),\" \")","v":" "},{"$f":"IF(AND(INTRO!$E$37=\"Endemic\",INTRO!$E$39=\"Non-endemic\"),IF(COUNTRY_INFO!C11=0,\" \",COUNTRY_INFO!C11),\" \")","v":" "},{"$f":"IF(COUNTRY_INFO!Z11<>\"\",COUNTRY_INFO!V11,0)","v":0},{"$f":"IF(AND(COUNTRY_INFO!Z11<>\"\",COUNTRY_INFO!$H11=1),COUNTRY_INFO!F11+COUNTRY_INFO!G11,0)","v":0},{"$f":"E11*2.8","v":0},null,0]
[{"$f":"IF(AND(INTRO!$E$37=\"Endemic\",INTRO!$E$39=\"Non-endemic\"),IF(COUNTRY_INFO!A12=0,\" \",COUNTRY_INFO!A12),\" \")","v":" "},{"$f":"IF(AND(INTRO!$E$37=\"Endemic\",INTRO!$E$39=\"Non-endemic\"),IF(COUNTRY_INFO!B12=0,\" \",COUNTRY_INFO!B12),\" \")","v":" "},{"$f":"IF(AND(INTRO!$E$37=\"Endemic\",INTRO!$E$39=\"Non-endemic\"),IF(COUNTRY_INFO!C12=0,\" \",COUNTRY_INFO!C12),\" \")","v":" "},{"$f":"IF(COUNTRY_INFO!Z12<>\"\",COUNTRY_INFO!V12,0)","v":0},{"$f":"IF(AND(COUNTRY_INFO!Z12<>\"\",COUNTRY_INFO!$H12=1),COUNTRY_INFO!F12+COUNTRY_INFO!G12,0)","v":0},0,null,0]
[{"$f":"IF(AND(INTRO!$E$37=\"Endemic\",INTRO!$E$39=\"Non-endemic\"),IF(COUNTRY_INFO!A13=0,\" \",COUNTRY_INFO!A13),\" \")","v":" "},{"$f":"IF(AND(INTRO!$E$37=\"Endemic\",INTRO!$E$39=\"Non-endemic\"),IF(COUNTRY_INFO!B13=0,\" \",COUNTRY_INFO!B13),\" \")","v":" "},{"$f":"IF(AND(INTRO!$E$37=\"Endemic\",INTRO!$E$39=\"Non-endemic\"),IF(COUNTRY_INFO!C13=0,\" \",COUNTRY_INFO!C13),\" \")","v":" "},{"$f":"IF(COUNTRY_INFO!Z13<>\"\",COUNTRY_INFO!V13,0)","v":0},{"$f":"IF(AND(COUNTRY_INFO!Z13<>\"\",COUNTRY_INFO!$H13=1),COUNTRY_INFO!F13+COUNTRY_INFO!G13,0)","v":0},0,null,0]
[{"$f":"IF(AND(INTRO!$E$37=\"Endemic\",INTRO!$E$39=\"Non-endemic\"),IF(COUNTRY_INFO!A14=0,\" \",COUNTRY_INFO!A14),\" \")","v":" "},{"$f":"IF(AND(INTRO!$E$37=\"Endemic\",INTRO!$E$39=\"Non-endemic\"),IF(COUNTRY_INFO!B14=0,\" \",COUNTRY_INFO!B14),\" \")","v":" "},{"$f":"IF(AND(INTRO!$E$37=\"Endemic\",INTRO!$E$39=\"Non-endemic\"),IF(COUNTRY_INFO!C14=0,\" \",COUNTRY_INFO!C14),\" \")","v":" "},{"$f":"IF(COUNTRY_INFO!Z14<>\"\",COUNTRY_INFO!V14,0)","v":0},{"$f":"IF(AND(COUNTRY_INFO!Z14<>\"\",COUNTRY_INFO!$H14=1),COUNTRY_INFO!F14+COUNTRY_INFO!G14,0)","v":0},0,null,0]
[{"$f":"IF(AND(INTRO!$E$37=\"Endemic\",INTRO!$E$39=\"Non-endemic\"),IF(COUNTRY_INFO!A15=0,\" \",COUNTRY_INFO!A15),\" \")","v":" "},{"$f":"IF(AND(INTRO!$E$37=\"Endemic\",INTRO!$E$39=\"Non-endemic\"),IF(COUNTRY_INFO!B15=0,\" \",COUNTRY_INFO!B15),\" \")","v":" "},{"$f":"IF(AND(INTRO!$E$37=\"Endemic\",INTRO!$E$39=\"Non-endemic\"),IF(COUNTRY_INFO!C15=0,\" \",COUNTRY_INFO!C15),\" \")","v":" "},{"$f":"IF(COUNTRY_INFO!Z15<>\"\",COUNTRY_INFO!V15,0)","v":0},{"$f":"IF(AND(COUNTRY_INFO!Z15<>\"\",COUNTRY_INFO!$H15=1),COUNTRY_INFO!F15+COUNTRY_INFO!G15,0)","v":0},0,null,0]
[{"$f":"IF(AND(INTRO!$E$37=\"Endemic\",INTRO!$E$39=\"Non-endemic\"),IF(COUNTRY_INFO!A16=0,\" \",COUNTRY_INFO!A16),\" \")","v":" "},{"$f":"IF(AND(INTRO!$E$37=\"Endemic\",INTRO!$E$39=\"Non-endemic\"),IF(COUNTRY_INFO!B16=0,\" \",COUNTRY_INFO!B16),\" \")","v":" "},{"$f":"IF(AND(INTRO!$E$37=\"Endemic\",INTRO!$E$39=\"Non-endemic\"),IF(COUNTRY_INFO!C16=0,\" \",COUNTRY_INFO!C16),\" \")","v":" "},{"$f":"IF(COUNTRY_INFO!Z16<>\"\",COUNTRY_INFO!V16,0)","v":0},{"$f":"IF(AND(COUNTRY_INFO!Z16<>\"\",COUNTRY_INFO!$H16=1),COUNTRY_INFO!F16+COUNTRY_INFO!G16,0)","v":0},0,null,0]
[{"$f":"IF(AND(INTRO!$E$37=\"Endemic\",INTRO!$E$39=\"Non-endemic\"),IF(COUNTRY_INFO!A17=0,\" \",COUNTRY_INFO!A17),\" \")","v":" "},{"$f":"IF(AND(INTRO!$E$37=\"Endemic\",INTRO!$E$39=\"Non-endemic\"),IF(COUNTRY_INFO!B17=0,\" \",COUNTRY_INFO!B17),\" \")","v":" "},{"$f":"IF(AND(INTRO!$E$37=\"Endemic\",INTRO!$E$39=\"Non-endemic\"),IF(COUNTRY_INFO!C17=0,\" \",COUNTRY_INFO!C17),\" \")","v":" "},{"$f":"IF(COUNTRY_INFO!Z17<>\"\",COUNTRY_INFO!V17,0)","v":0},{"$f":"IF(AND(COUNTRY_INFO!Z17<>\"\",COUNTRY_INFO!$H17=1),COUNTRY_INFO!F17+COUNTRY_INFO!G17,0)","v":0},0,null,0]
[{"$f":"IF(AND(INTRO!$E$37=\"Endemic\",INTRO!$E$39=\"Non-endemic\"),IF(COUNTRY_INFO!A18=0,\" \",COUNTRY_INFO!A18),\" \")","v":" "},{"$f":"IF(AND(INTRO!$E$37=\"Endemic\",INTRO!$E$39=\"Non-endemic\"),IF(COUNTRY_INFO!B18=0,\" \",COUNTRY_INFO!B18),\" \")","v":" "},{"$f":"IF(AND(INTRO!$E$37=\"Endemic\",INTRO!$E$39=\"Non-endemic\"),IF(COUNTRY_INFO!C18=0,\" \",COUNTRY_INFO!C18),\" \")","v":" "},{"$f":"IF(COUNTRY_INFO!Z18<>\"\",COUNTRY_INFO!V18,0)","v":0},{"$f":"IF(AND(COUNTRY_INFO!Z18<>\"\",COUNTRY_INFO!$H18=1),COUNTRY_INFO!F18+COUNTRY_INFO!G18,0)","v":0},0,null,0]
[{"$f":"IF(AND(INTRO!$E$37=\"Endemic\",INTRO!$E$39=\"Non-endemic\"),IF(COUNTRY_INFO!A19=0,\" \",COUNTRY_INFO!A19),\" \")","v":" "},{"$f":"IF(AND(INTRO!$E$37=\"Endemic\",INTRO!$E$39=\"Non-endemic\"),IF(COUNTRY_INFO!B19=0,\" \",COUNTRY_INFO!B19),\" \")","v":" "},{"$f":"IF(AND(INTRO!$E$37=\"Endemic\",INTRO!$E$39=\"Non-endemic\"),IF(COUNTRY_INFO!C19=0,\" \",COUNTRY_INFO!C19),\" \")","v":" "},{"$f":"IF(COUNTRY_INFO!Z19<>\"\",COUNTRY_INFO!V19,0)","v":0},{"$f":"IF(AND(COUNTRY_INFO!Z19<>\"\",COUNTRY_INFO!$H19=1),COUNTRY_INFO!F19+COUNTRY_INFO!G19,0)","v":0},0,null,0]
[{"$f":"IF(AND(INTRO!$E$37=\"Endemic\",INTRO!$E$39=\"Non-endemic\"),IF(COUNTRY_INFO!A20=0,\" \",COUNTRY_INFO!A20),\" \")","v":" "},{"$f":"IF(AND(INTRO!$E$37=\"Endemic\",INTRO!$E$39=\"Non-endemic\"),IF(COUNTRY_INFO!B20=0,\" \",COUNTRY_INFO!B20),\" \")","v":" "},{"$f":"IF(AND(INTRO!$E$37=\"Endemic\",INTRO!$E$39=\"Non-endemic\"),IF(COUNTRY_INFO!C20=0,\" \",COUNTRY_INFO!C20),\" \")","v":" "},{"$f":"IF(COUNTRY_INFO!Z20<>\"\",COUNTRY_INFO!V20,0)","v":0},{"$f":"IF(AND(COUNTRY_INFO!Z20<>\"\",COUNTRY_INFO!$H20=1),COUNTRY_INFO!F20+COUNTRY_INFO!G20,0)","v":0},0,null,0]
[{"$f":"IF(AND(INTRO!$E$37=\"Endemic\",INTRO!$E$39=\"Non-endemic\"),IF(COUNTRY_INFO!A21=0,\" \",COUNTRY_INFO!A21),\" \")","v":" "},{"$f":"IF(AND(INTRO!$E$37=\"Endemic\",INTRO!$E$39=\"Non-endemic\"),IF(COUNTRY_INFO!B21=0,\" \",COUNTRY_INFO!B21),\" \")","v":" "},{"$f":"IF(AND(INTRO!$E$37=\"Endemic\",INTRO!$E$39=\"Non-endemic\"),IF(COUNTRY_INFO!C21=0,\" \",COUNTRY_INFO!C21),\" \")","v":" "},{"$f":"IF(COUNTRY_INFO!Z21<>\"\",COUNTRY_INFO!V21,0)","v":0},{"$f":"IF(AND(COUNTRY_INFO!Z21<>\"\",COUNTRY_INFO!$H21=1),COUNTRY_INFO!F21+COUNTRY_INFO!G21,0)","v":0},0,null,0]
[{"$f":"IF(AND(INTRO!$E$37=\"Endemic\",INTRO!$E$39=\"Non-endemic\"),IF(COUNTRY_INFO!A22=0,\" \",COUNTRY_INFO!A22),\" \")","v":" "},{"$f":"IF(AND(INTRO!$E$37=\"Endemic\",INTRO!$E$39=\"Non-endemic\"),IF(COUNTRY_INFO!B22=0,\" \",COUNTRY_INFO!B22),\" \")","v":" "},{"$f":"IF(AND(INTRO!$E$37=\"Endemic\",INTRO!$E$39=\"Non-endemic\"),IF(COUNTRY_INFO!C22=0,\" \",COUNTRY_INFO!C22),\" \")","v":" "},{"$f":"IF(COUNTRY_INFO!Z22<>\"\",COUNTRY_INFO!V22,0)","v":0},{"$f":"IF(AND(COUNTRY_INFO!Z22<>\"\",COUNTRY_INFO!$H22=1),COUNTRY_INFO!F22+COUNTRY_INFO!G22,0)","v":0},0,null,0]
[{"$f":"IF(AND(INTRO!$E$37=\"Endemic\",INTRO!$E$39=\"Non-endemic\"),IF(COUNTRY_INFO!A23=0,\" \",COUNTRY_INFO!A23),\" \")","v":" "},{"$f":"IF(AND(INTRO!$E$37=\"Endemic\",INTRO!$E$39=\"Non-endemic\"),IF(COUNTRY_INFO!B23=0,\" \",COUNTRY_INFO!B23),\" \")","v":" "},{"$f":"IF(AND(INTRO!$E$37=\"Endemic\",INTRO!$E$39=\"Non-endemic\"),IF(COUNTRY_INFO!C23=0,\" \",COUNTRY_INFO!C23),\" \")","v":" "},{"$f":"IF(COUNTRY_INFO!Z23<>\"\",COUNTRY_INFO!V23,0)","v":0},{"$f":"IF(AND(COUNTRY_INFO!Z23<>\"\",COUNTRY_INFO!$H23=1),COUNTRY_INFO!F23+COUNTRY_INFO!G23,0)","v":0},0,null,0]
[{"$f":"IF(AND(INTRO!$E$37=\"Endemic\",INTRO!$E$39=\"Non-endemic\"),IF(COUNTRY_INFO!A24=0,\" \",COUNTRY_INFO!A24),\" \")","v":" "},{"$f":"IF(AND(INTRO!$E$37=\"Endemic\",INTRO!$E$39=\"Non-endemic\"),IF(COUNTRY_INFO!B24=0,\" \",COUNTRY_INFO!B24),\" \")","v":" "},{"$f":"IF(AND(INTRO!$E$37=\"Endemic\",INTRO!$E$39=\"Non-endemic\"),IF(COUNTRY_INFO!C24=0,\" \",COUNTRY_INFO!C24),\" \")","v":" "},{"$f":"IF(COUNTRY_INFO!Z24<>\"\",COUNTRY_INFO!V24,0)","v":0},{"$f":"IF(AND(COUNTRY_INFO!Z24<>\"\",COUNTRY_INFO!$H24=1),COUNTRY_INFO!F24+COUNTRY_INFO!G24,0)","v":0},0,null,0]
[{"$f":"IF(AND(INTRO!$E$37=\"Endemic\",INTRO!$E$39=\"Non-endemic\"),IF(COUNTRY_INFO!A25=0,\" \",COUNTRY_INFO!A25),\" \")","v":" "},{"$f":"IF(AND(INTRO!$E$37=\"Endemic\",INTRO!$E$39=\"Non-endemic\"),IF(COUNTRY_INFO!B25=0,\" \",COUNTRY_INFO!B25),\" \")","v":" "},{"$f":"IF(AND(INTRO!$E$37=\"Endemic\",INTRO!$E$39=\"Non-endemic\"),IF(COUNTRY_INFO!C25=0,\" \",COUNTRY_INFO!C25),\" \")","v":" "},{"$f":"IF(COUNTRY_INFO!Z25<>\"\",COUNTRY_INFO!V25,0)","v":0},{"$f":"IF(AND(COUNTRY_INFO!Z25<>\"\",COUNTRY_INFO!$H25=1),COUNTRY_INFO!F25+COUNTRY_INFO!G25,0)","v":0},0,null,0]
[{"$f":"IF(AND(INTRO!$E$37=\"Endemic\",INTRO!$E$39=\"Non-endemic\"),IF(COUNTRY_INFO!A26=0,\" \",COUNTRY_INFO!A26),\" \")","v":" "},{"$f":"IF(AND(INTRO!$E$37=\"Endemic\",INTRO!$E$39=\"Non-endemic\"),IF(COUNTRY_INFO!B26=0,\" \",COUNTRY_INFO!B26),\" \")","v":" "},{"$f":"IF(AND(INTRO!$E$37=\"Endemic\",INTRO!$E$39=\"Non-endemic\"),IF(COUNTRY_INFO!C26=0,\" \",COUNTRY_INFO!C26),\" \")","v":" "},{"$f":"IF(COUNTRY_INFO!Z26<>\"\",COUNTRY_INFO!V26,0)","v":0},{"$f":"IF(AND(COUNTRY_INFO!Z26<>\"\",COUNTRY_INFO!$H26=1),COUNTRY_INFO!F26+COUNTRY_INFO!G26,0)","v":0},0,null,0]
[{"$f":"IF(AND(INTRO!$E$37=\"Endemic\",INTRO!$E$39=\"Non-endemic\"),IF(COUNTRY_INFO!A27=0,\" \",COUNTRY_INFO!A27),\" \")","v":" "},{"$f":"IF(AND(INTRO!$E$37=\"Endemic\",INTRO!$E$39=\"Non-endemic\"),IF(COUNTRY_INFO!B27=0,\" \",COUNTRY_INFO!B27),\" \")","v":" "},{"$f":"IF(AND(INTRO!$E$37=\"Endemic\",INTRO!$E$39=\"Non-endemic\"),IF(COUNTRY_INFO!C27=0,\" \",COUNTRY_INFO!C27),\" \")","v":" "},{"$f":"IF(COUNTRY_INFO!Z27<>\"\",COUNTRY_INFO!V27,0)","v":0},{"$f":"IF(AND(COUNTRY_INFO!Z27<>\"\",COUNTRY_INFO!$H27=1),COUNTRY_INFO!F27+COUNTRY_INFO!G27,0)","v":0},0,null,0]
[{"$f":"IF(AND(INTRO!$E$37=\"Endemic\",INTRO!$E$39=\"Non-endemic\"),IF(COUNTRY_INFO!A28=0,\" \",COUNTRY_INFO!A28),\" \")","v":" "},{"$f":"IF(AND(INTRO!$E$37=\"Endemic\",INTRO!$E$39=\"Non-endemic\"),IF(COUNTRY_INFO!B28=0,\" \",COUNTRY_INFO!B28),\" \")","v":" "},{"$f":"IF(AND(INTRO!$E$37=\"Endemic\",INTRO!$E$39=\"Non-endemic\"),IF(COUNTRY_INFO!C28=0,\" \",COUNTRY_INFO!C28),\" \")","v":" "},{"$f":"IF(COUNTRY_INFO!Z28<>\"\",COUNTRY_INFO!V28,0)","v":0},{"$f":"IF(AND(COUNTRY_INFO!Z28<>\"\",COUNTRY_INFO!$H28=1),COUNTRY_INFO!F28+COUNTRY_INFO!G28,0)","v":0},0,null,0]
[{"$f":"IF(AND(INTRO!$E$37=\"Endemic\",INTRO!$E$39=\"Non-endemic\"),IF(COUNTRY_INFO!A29=0,\" \",COUNTRY_INFO!A29),\" \")","v":" "},{"$f":"IF(AND(INTRO!$E$37=\"Endemic\",INTRO!$E$39=\"Non-endemic\"),IF(COUNTRY_INFO!B29=0,\" \",COUNTRY_INFO!B29),\" \")","v":" "},{"$f":"IF(AND(INTRO!$E$37=\"Endemic\",INTRO!$E$39=\"Non-endemic\"),IF(COUNTRY_INFO!C29=0,\" \",COUNTRY_INFO!C29),\" \")","v":" "},{"$f":"IF(COUNTRY_INFO!Z29<>\"\",COUNTRY_INFO!V29,0)","v":0},{"$f":"IF(AND(COUNTRY_INFO!Z29<>\"\",COUNTRY_INFO!$H29=1),COUNTRY_INFO!F29+COUNTRY_INFO!G29,0)","v":0},0,null,0]
[{"$f":"IF(AND(INTRO!$E$37=\"Endemic\",INTRO!$E$39=\"Non-endemic\"),IF(COUNTRY_INFO!A30=0,\" \",COUNTRY_INFO!A30),\" \")","v":" "},{"$f":"IF(AND(INTRO!$E$37=\"Endemic\",INTRO!$E$39=\"Non-endemic\"),IF(COUNTRY_INFO!B30=0,\" \",COUNTRY_INFO!B30),\" \")","v":" "},{"$f":"IF(AND(INTRO!$E$37=\"Endemic\",INTRO!$E$39=\"Non-endemic\"),IF(COUNTRY_INFO!C30=0,\" \",COUNTRY_INFO!C30),\" \")","v":" "},{"$f":"IF(COUNTRY_INFO!Z30<>\"\",COUNTRY_INFO!V30,0)","v":0},{"$f":"IF(AND(COUNTRY_INFO!Z30<>\"\",COUNTRY_INFO!$H30=1),COUNTRY_INFO!F30+COUNTRY_INFO!G30,0)","v":0},0,null,0]
[{"$f":"IF(AND(INTRO!$E$37=\"Endemic\",INTRO!$E$39=\"Non-endemic\"),IF(COUNTRY_INFO!A31=0,\" \",COUNTRY_INFO!A31),\" \")","v":" "},{"$f":"IF(AND(INTRO!$E$37=\"Endemic\",INTRO!$E$39=\"Non-endemic\"),IF(COUNTRY_INFO!B31=0,\" \",COUNTRY_INFO!B31),\" \")","v":" "},{"$f":"IF(AND(INTRO!$E$37=\"Endemic\",INTRO!$E$39=\"Non-endemic\"),IF(COUNTRY_INFO!C31=0,\" \",COUNTRY_INFO!C31),\" \")","v":" "},{"$f":"IF(COUNTRY_INFO!Z31<>\"\",COUNTRY_INFO!V31,0)","v":0},{"$f":"IF(AND(COUNTRY_INFO!Z31<>\"\",COUNTRY_INFO!$H31=1),COUNTRY_INFO!F31+COUNTRY_INFO!G31,0)","v":0},0,null,0]
[{"$f":"IF(AND(INTRO!$E$37=\"Endemic\",INTRO!$E$39=\"Non-endemic\"),IF(COUNTRY_INFO!A32=0,\" \",COUNTRY_INFO!A32),\" \")","v":" "},{"$f":"IF(AND(INTRO!$E$37=\"Endemic\",INTRO!$E$39=\"Non-endemic\"),IF(COUNTRY_INFO!B32=0,\" \",COUNTRY_INFO!B32),\" \")","v":" "},{"$f":"IF(AND(INTRO!$E$37=\"Endemic\",INTRO!$E$39=\"Non-endemic\"),IF(COUNTRY_INFO!C32=0,\" \",COUNTRY_INFO!C32),\" \")","v":" "},{"$f":"IF(COUNTRY_INFO!Z32<>\"\",COUNTRY_INFO!V32,0)","v":0},{"$f":"IF(AND(COUNTRY_INFO!Z32<>\"\",COUNTRY_INFO!$H32=1),COUNTRY_INFO!F32+COUNTRY_INFO!G32,0)","v":0},0,null,0]
[{"$f":"IF(AND(INTRO!$E$37=\"Endemic\",INTRO!$E$39=\"Non-endemic\"),IF(COUNTRY_INFO!A33=0,\" \",COUNTRY_INFO!A33),\" \")","v":" "},{"$f":"IF(AND(INTRO!$E$37=\"Endemic\",INTRO!$E$39=\"Non-endemic\"),IF(COUNTRY_INFO!B33=0,\" \",COUNTRY_INFO!B33),\" \")","v":" "},{"$f":"IF(AND(INTRO!$E$37=\"Endemic\",INTRO!$E$39=\"Non-endemic\"),IF(COUNTRY_INFO!C33=0,\" \",COUNTRY_INFO!C33),\" \")","v":" "},{"$f":"IF(COUNTRY_INFO!Z33<>\"\",COUNTRY_INFO!V33,0)","v":0},{"$f":"IF(AND(COUNTRY_INFO!Z33<>\"\",COUNTRY_INFO!$H33=1),COUNTRY_INFO!F33+COUNTRY_INFO!G33,0)","v":0},0,null,0]
[{"$f":"IF(AND(INTRO!$E$37=\"Endemic\",INTRO!$E$39=\"Non-endemic\"),IF(COUNTRY_INFO!A34=0,\" \",COUNTRY_INFO!A34),\" \")","v":" "},{"$f":"IF(AND(INTRO!$E$37=\"Endemic\",INTRO!$E$39=\"Non-endemic\"),IF(COUNTRY_INFO!B34=0,\" \",COUNTRY_INFO!B34),\" \")","v":" "},{"$f":"IF(AND(INTRO!$E$37=\"Endemic\",INTRO!$E$39=\"Non-endemic\"),IF(COUNTRY_INFO!C34=0,\" \",COUNTRY_INFO!C34),\" \")","v":" "},{"$f":"IF(COUNTRY_INFO!Z34<>\"\",COUNTRY_INFO!V34,0)","v":0},{"$f":"IF(AND(COUNTRY_INFO!Z34<>\"\",COUNTRY_INFO!$H34=1),COUNTRY_INFO!F34+COUNTRY_INFO!G34,0)","v":0},0,null,0]
[{"$f":"IF(AND(INTRO!$E$37=\"Endemic\",INTRO!$E$39=\"Non-endemic\"),IF(COUNTRY_INFO!A35=0,\" \",COUNTRY_INFO!A35),\" \")","v":" "},{"$f":"IF(AND(INTRO!$E$37=\"Endemic\",INTRO!$E$39=\"Non-endemic\"),IF(COUNTRY_INFO!B35=0,\" \",COUNTRY_INFO!B35),\" \")","v":" "},{"$f":"IF(AND(INTRO!$E$37=\"Endemic\",INTRO!$E$39=\"Non-endemic\"),IF(COUNTRY_INFO!C35=0,\" \",COUNTRY_INFO!C35),\" \")","v":" "},{"$f":"IF(COUNTRY_INFO!Z35<>\"\",COUNTRY_INFO!V35,0)","v":0},{"$f":"IF(AND(COUNTRY_INFO!Z35<>\"\",COUNTRY_INFO!$H35=1),COUNTRY_INFO!F35+COUNTRY_INFO!G35,0)","v":0},0,null,0]
[{"$f":"IF(AND(INTRO!$E$37=\"Endemic\",INTRO!$E$39=\"Non-endemic\"),IF(COUNTRY_INFO!A36=0,\" \",COUNTRY_INFO!A36),\" \")","v":" "},{"$f":"IF(AND(INTRO!$E$37=\"Endemic\",INTRO!$E$39=\"Non-endemic\"),IF(COUNTRY_INFO!B36=0,\" \",COUNTRY_INFO!B36),\" \")","v":" "},{"$f":"IF(AND(INTRO!$E$37=\"Endemic\",INTRO!$E$39=\"Non-endemic\"),IF(COUNTRY_INFO!C36=0,\" \",COUNTRY_INFO!C36),\" \")","v":" "},{"$f":"IF(COUNTRY_INFO!Z36<>\"\",COUNTRY_INFO!V36,0)","v":0},{"$f":"IF(AND(COUNTRY_INFO!Z36<>\"\",COUNTRY_INFO!$H36=1),COUNTRY_INFO!F36+COUNTRY_INFO!G36,0)","v":0},0,null,0]
[{"$f":"IF(AND(INTRO!$E$37=\"Endemic\",INTRO!$E$39=\"Non-endemic\"),IF(COUNTRY_INFO!A37=0,\" \",COUNTRY_INFO!A37),\" \")","v":" "},{"$f":"IF(AND(INTRO!$E$37=\"Endemic\",INTRO!$E$39=\"Non-endemic\"),IF(COUNTRY_INFO!B37=0,\" \",COUNTRY_INFO!B37),\" \")","v":" "},{"$f":"IF(AND(INTRO!$E$37=\"Endemic\",INTRO!$E$39=\"Non-endemic\"),IF(COUNTRY_INFO!C37=0,\" \",COUNTRY_INFO!C37),\" \")","v":" "},{"$f":"IF(COUNTRY_INFO!Z37<>\"\",COUNTRY_INFO!V37,0)","v":0},{"$f":"IF(AND(COUNTRY_INFO!Z37<>\"\",COUNTRY_INFO!$H37=1),COUNTRY_INFO!F37+COUNTRY_INFO!G37,0)","v":0},0,null,0]
[{"$f":"IF(AND(INTRO!$E$37=\"Endemic\",INTRO!$E$39=\"Non-endemic\"),IF(COUNTRY_INFO!A38=0,\" \",COUNTRY_INFO!A38),\" \")","v":" "},{"$f":"IF(AND(INTRO!$E$37=\"Endemic\",INTRO!$E$39=\"Non-endemic\"),IF(COUNTRY_INFO!B38=0,\" \",COUNTRY_INFO!B38),\" \")","v":" "},{"$f":"IF(AND(INTRO!$E$37=\"Endemic\",INTRO!$E$39=\"Non-endemic\"),IF(COUNTRY_INFO!C38=0,\" \",COUNTRY_INFO!C38),\" \")","v":" "},{"$f":"IF(COUNTRY_INFO!Z38<>\"\",COUNTRY_INFO!V38,0)","v":0},{"$f":"IF(AND(COUNTRY_INFO!Z38<>\"\",COUNTRY_INFO!$H38=1),COUNTRY_INFO!F38+COUNTRY_INFO!G38,0)","v":0},0,null,0]

{"sheet":"SUMMARY","index":7,"n_rows":93,"n_cols":8,"rows_kept":93,"cut":false,"hidden":false,"merged":[[74,2,74,3],[74,4,74,5],[73,2,73,3],[73,4,73,5],[60,4,60,6],[61,4,61,6],[62,4,62,6],[72,2,72,3],[72,4,72,5],[25,1,27,1],[9,7,10,7],[32,2,35,4],[81,2,81,7],[83,3,83,7],[59,4,59,6],[50,1,50,7],[56,1,56,7],[51,1,51,7],[52,1,52,7],[80,1,80,7],[58,1,58,7],[78,1,78,7],[79,1,79,7],[66,1,66,7],[76,2,76,3],[9,1,10,1],[9,3,9,6],[9,2,10,2],[17,1,19,1],[21,1,23,1],[83,1,83,2],[0,1,0,7],[1,1,1,7],[2,1,2,5],[3,1,3,7],[4,1,4,7],[6,1,6,7],[5,2,5,5],[65,1,65,7],[54,1,54,7],[53,1,53,7],[36,1,36,7],[41,2,41,3],[41,4,41,5],[41,6,41,7],[55,1,55,7],[82,2,82,6],[63,4,63,6],[75,2,75,3],[97,1,97,7],[75,4,75,5],[70,4,70,5],[71,4,71,5],[70,2,70,3],[71,2,71,3],[92,1,92,7],[76,4,76,5],[87,1,87,7],[91,1,91,7],[86,1,86,7],[84,1,84,2],[84,3,84,7]]}
[]
[null,"Joint request for selected PC medicines v.4.1"]
[]
[null,"This form constitutes an official government request to WHO for the supply of the PC medicines. To ensure the medicines are delivered on time, the request for PC medicines should be submitted at least 9 months before the first date of MDA planned in the calendar year of the request. "]
[]
[null,"Country",{"$f":"IF(INTRO!$E$33<>0,INTRO!$E$33,\" \")","v":"MALAWI"},null,null,null,"Year",{"$f":"IF(INTRO!$E$35<>0,INTRO!$E$35,\" \")","v":2024}]
[]
[null,"Information on PC medicines requested to WHO"]
[]
[null,"PC medicine","Target group","Number of tablets",null,null,null,"Specify \nsource"]
[null,null,null,"Required","In stock","In pipeline","Requested"]
[null,"Diethylcarbamazine citrate","ALL",0,0,null,{"$f":"IF(D12>(E12+F12),D12-E12-F12, 0)","v":0}]
[null,null,null,null,null,null,0]
[null,"Ivermectin","ALL",9328272.7999999989,0,null,9328272.7999999989]
[]
[null,"Albendazole for LF","ALL",0,0,null,0]
[null,null,null,null,null,null,0]
[null,"Albendazole for STH","PreSAC",0,null,null,0]
[null,null,"SAC",2459358,6234500,null,0]
[null,null,"WRA",0,null,null,0]
[]
[null,"Mebendazole","PreSAC",null,null,null,0]
[null,null,"SAC",null,null,null,0]
[null,null,"WRA",null,null,null,0]
[]
[null,"Praziquantel","PreSAC",0,null,null,0]
[null,null,"SAC",6748226,null,13905000,0]
[null,null,"Adults",0,null,null,{"$f":"IF(D28>(E28+F28),D28-E28-F28, 0)","v":0}]
[]
[null,"Number of people to be treated with donated medicine ( see User Guide for details )"]
[]
[null,"Disease",null,null,null,"Round 1","Round 2","Round 3"]
[null,"Lymphatic filariasis","These figures are estimated only \nfor targeted age groups to be treated \nwith donated medicines in areas \nwhere treatment for \na specific disease is planned",null,null,0]
[null,"Onchocerciasis",null,null,null,2891396,440130]
[null,"Schistosomiasis",null,null,null,3348548,191461]
[null,"Soil-transmitted helminthiases",null,null,null,0,0,0]
[]
[]
[]
[null,"Information on planned PC interventions"]
[]
[null,"PC medicine","Planned date of the \n1st round of PC",null,"Planned date of the \n2nd round of PC",null,"Date by which the medicine should arrive to the national warehouse"]
[null,"Diethylcarbamazine citrate"]
[null,"Ivermectin","April",2024,"September",2024,"May",2024]
[null,"Albendazole for LF"]
[null,"Albendazole for STH","July",2024,null,null,"March",2024]
[null,"Mebendazole"]
[null,"Praziquantel"]
[]
[null,"Checklist"]
[null,"Submission"]
[null,"What should be submitted?"]
[null,"The supply of the requested medicines should be based on up-to-date epidemiological data, specific usage plans, and capacity for implementation. The following checklist ensures that all necessary forms and information are provided to WHO (in electronic format). "]
[null,"Joint request for selected PC medicines"]
[null,"Joint reporting form"]
[null,"PC epidemiological data reporting form"]
[]
[null,"Availability of funding for implementation in the year for which the medicines are requested"]
[]
[null,"Diseases \ntargeted for implementation","Total treatments","Funding secured for","Source",null,null,"Amount"]
[null,{"$f":"B33","v":"Lymphatic filariasis"},{"$f":"SUM(F33:H33)","v":0}]
[null,{"$f":"B34","v":"Onchocerciasis"},{"$f":"SUM(F34:H34)","v":3331526},"No"]
[null,{"$f":"B35","v":"Schistosomiasis"},{"$f":"SUM(F35:H35)","v":3540009},"No"]
[null,{"$f":"B36","v":"Soil-transmitted helminthiases"},{"$f":"SUM(F36:H36)","v":0},"No"]
[]
[null,"Who should fill in the form? "]
[null,"National NTD coordinator should compile all required information needed to complete the request form. In the absence of such a coordinator, specific programme managers should coordinate their respective part. The final single request must be approved by the Ministry of Health."]
[]
[null,"Information on person(s) who has filled in the form"]
[]
[null,"Title ","Name",null,"Phone",null,"Email","Date"]
[null,"ONCHO Programme Manager","Laston Sitima",null,"265 999 978 624",null,"lastonsitima64@gmail.com"]
[null,"Data Manager","Andrew Nguluwe",null,"265 999 757 991",null,"andynguluwe@gmail.com"]
[]
[]
[]
[]
[]
[null,"The WHO recommends that all serious adverse events suspected to be associated with use of PC medicines should be reported in accordance with national Pharmacovigilance guidelines. In the absence of a national Pharmacovigilance system, contact the WHO Neglected Tropical Disease department for guidance."]
[null,"The WHO is committed to facilitate PC medicines donation with a free-of-charge supply of a) albendazole, mebendazole and praziquantel to the MoH’s national warehouse; and b) diethylcarbamazine citrate to the entry port/airport of recipient countries."]
[null,"The institution submitting the present request is responsible for a) arranging the offloading of the medicines from the truck and storing it in the national warehouse and subsequent shipment to the final distribution centres; b) for registering the donated medicine, if required, by the relevant national regulatory authorities; and c) for informing about any changes of their PC campaigns (e.g. postpone of the planned MDA date, replacement of NTD coordinator, etc.)."]
[null,null,"I have read and accept WHO Data Sharing Policy"]
[null,null,"I confirm that all information provided in this form is complete and correct"]
[null,"Name and signature of NTD coordinator \nor Ministry of Health representative"]
[null,"Date:"]
[]
[null,"Please complete information on shipment and consignee in the worksheet SHIPMENT. Any additional details related to this Request should be provided in the \"Additional information\" box in the worksheet SHIPMENT."]
[null,"Please send the national request (signed and in electronic format) to the concerned WR with copy to:"]
[null,"WHO headquarters","PC_JointForms@who.int"]
[null,"WHO Regional Office","Regional Advisor for NTD"]
[null,"Mectizan donation program","Dr Yao Sodahlon, email: ysodahlon@taskforce.org"]
[]
[null,"Please note that your request will be reviewed by an independent panel before approval. The information in this form, joint reporting form and PC epidemiological data reporting form are essential for WHO to ensure efficient usage of medicines. As part of its ongoing monitoring and evaluation activities, and to meet its contractual obligations to donors and other partners, WHO and its appointed agents reserve the right to periodically inspect stocks of the medicines at country level."]

{"sheet":"SHIPMENT","index":8,"n_rows":48,"n_cols":8,"rows_kept":48,"cut":false,"hidden":false,"merged":[[34,1,34,7],[36,1,36,7],[0,1,0,7],[1,1,1,7],[2,1,2,5],[17,5,17,7],[18,5,18,7],[19,2,19,4],[19,5,19,7],[21,2,21,4],[3,2,3,5],[4,1,4,7],[22,2,22,4],[22,5,22,7],[15,2,15,4],[20,5,20,7],[15,5,15,7],[20,2,20,4],[18,2,18,4],[16,2,16,4],[47,1,56,7],[45,1,45,7],[37,1,37,6],[38,1,38,5],[40,1,40,7],[41,1,41,6],[39,1,39,6],[42,1,42,6],[43,1,43,7],[25,2,25,4],[25,5,25,7],[24,1,24,7],[6,1,6,7],[7,2,7,4],[7,5,7,7],[8,2,8,4],[8,5,8,7],[9,2,9,4],[9,5,9,7],[10,2,10,4],[10,5,10,7],[11,2,11,4],[11,5,11,7],[12,2,12,4],[12,5,12,7],[13,2,13,4],[13,5,13,7],[14,2,14,4],[14,5,14,7],[23,2,23,4],[23,5,23,7],[21,5,21,7],[16,5,16,7],[17,2,17,4],[26,2,26,4],[26,5,26,7],[27,2,27,4],[27,5,27,7],[28,2,28,4],[28,5,28,7],[32,2,32,4],[32,5,32,7],[29,2,29,4],[29,5,29,7],[30,2,30,4],[30,5,30,7],[31,2,31,4],[31,5,31,7]]}
[]
[null,"Joint request for selected PC medicines v.4.1"]
[]
[null,"Country",{"$f":"IF(INTRO!$E$33<>0,INTRO!$E$33,\" \")","v":"MALAWI"},null,null,null,"Year",{"$f":"IF(INTRO!$E$35<>0,INTRO!$E$35,\" \")","v":2024}]
[]
[null,"Information on shipment and consignee "]
[]
[null,"IVM","Consignee",null,null,"Delivery point / Final recipient\nif different from the consignee"]
[null,"Name","Laston Sitima"]
[null,"Department/Unit","Preventive Health"]
[null,"Organization","Ministry of Health"]
[null,"Phone","265 999 978 624"]
[null,"Fax","NA"]
[null,"E-mail","lastonsitima64@gmail.com"]
[null,"Mailing address","CHSU, Area 3, P/Bag 65, Lilongwe, MALAWI"]
[]
[null,"ALB for STH","Consignee",null,null,"Delivery point / Final recipient\nif different from the consignee"]
[null,"Name","Dr Neema Kimambo"]
[null,"Department/Unit"]
[null,"Organization","World Health Organisation"]
[null,"Phone",2651772450]
[null,"Fax","265 1 772 350"]
[null,"E-mail","kimambon@who.int"]
[null,"Mailing address","Box 30390, Capital City, Lilongwe 3, Area 13"]
[]
[null,"PZQ","Consignee",null,null,"Delivery point / Final recipient\nif different from the consignee"]
[null,"Name","Dr Neema Kimambo"]
[null,"Department/Unit"]
[null,"Organization","World Health Organisation"]
[null,"Phone",2651772450]
[null,"Fax","265 1 772 350"]
[null,"E-mail","kimambon@who.int"]
[null,"Mailing address","Box 30390, Capital City, Lilongwe 3, Area 13"]
[]
[]
[null,"Information on import requirements"]
[]
[null,"Is the Import Permit required?",null,null,null,null,null,"No"]
[null,"How long does it take to obtain the Import Permit?"]
[null,"Do you require any documents to be submitted together with the Import Permit application?"]
[]
[null,"Does the consignee have to get customs clearance before the shipment can proceed?",null,null,null,null,null,"No"]
[null,"Is there any additional information may be helpful in ensuring timely clearance and delivery of medicines to your country? "]
[]
[]
[null,"Additional information"]
[]
[null,"Overall calculation for STH in the summary is not giving auto sum for the requested albendazole which is supposed to be is 6,325,304"]

{"sheet":"DATA_POLICY","index":9,"n_rows":39,"n_cols":8,"rows_kept":39,"cut":false,"hidden":true,"merged":[[55,1,55,2],[0,1,0,5],[1,1,1,7],[3,3,3,5],[6,1,6,7],[8,1,12,7],[13,1,16,7],[17,1,21,7],[22,1,25,7],[26,2,36,7],[38,1,45,7]]}
[]
[null,"Joint request for selected PC medicines v.4.1"]
[]
[null,"Country",null,{"$f":"IF(INTRO!$E$33<>0,INTRO!$E$33,\" \")","v":"MALAWI"},null,null,"Year",{"$f":"IF(INTRO!$E$35<>0,INTRO!$E$35,\" \")","v":2024}]
[]
[]
[null,"WHO Data Sharing Policy statement"]
[]
[null,"Data are the basis for all sound public health actions and the benefits of data sharing are widely recognized, including scientific and public health benefits. Whenever possible, WHO wishes to promote the sharing of health data, including but not restricted to surveillance and epidemiological data.  "]
[]
[]
[]
[]
[null,{"$f":"\"In this connection, and without prejudice to information sharing and publication pursuant to legally binding instruments, by providing data to WHO, the Ministry of Health of \" & D4 & \":\"","v":"In this connection, and without prejudice to information sharing and publication pursuant to legally binding instruments, by providing data to WHO, the Ministry of Health of MALAWI:"}]
[]
[]
[]
[null,"Confirms that all data to be supplied to WHO hereunder have been collected in accordance with applicable national laws, including data protection laws aimed at protecting the confidentiality of identifiable persons;"]
[]
[]
[]
[]
[null,{"$f":"\"Agrees that WHO shall be entitled, subject always to measures to ensure the ethical and secure use of the data, and subject always to an appropriate acknowledgement of \"&D4&\":\"","v":"Agrees that WHO shall be entitled, subject always to measures to ensure the ethical and secure use of the data, and subject always to an appropriate acknowledgement of MALAWI:"}]
[]
[]
[]
[null,null,"to publish the data, stripped of any personal identifiers and make the Data available to any interested party on request (to the extent they have not, or not yet, been published by WHO) on terms that allow non-commercial, not-for-profit use of the Data for public health purposes (provided always that publication of the Data shall remain under the control of WHO); \nto use, compile, aggregate, evaluate and analyse the Data and publish and disseminate the results thereof in conjunction with WHO’s work and in accordance with the Organization’s policies and practices."]
[]
[]
[]
[]
[]
[]
[]
[]
[]
[]
[]
[null,{"$f":"CONCATENATE(\"Except where data sharing and publication is required under legally binding instruments (IHR, WHO Nomenclature Regulations 1967, etc.), the Ministry of Health of \", D4,\" may in respect of certain data opt out of (any part of) the above,\" & \" by notifying WHO thereof in writing at the following address, provided that any such notification shall clearly identify the data in question and clearly indicate the scope of the opt-out (in reference to the  above), \" & \"and provided that specific reasons shall be given for the opt out.\")","v":"Except where data sharing and publication is required under legally binding instruments (IHR, WHO Nomenclature Regulations 1967, etc.), the Ministry of Health of MALAWI may in respect of certain data opt out of (any part of) the above, by notifying WHO thereof in writing at the following address, provided that any such notification shall clearly identify the data in question and clearly indicate the scope of the opt-out (in reference to the  above), and provided that specific reasons shall be given for the opt out."}]